Workbook

Sheet Overview
B1: EV Charging Financial Analysis Tool
B2: ="Version " & TEXT(MAX(Version[Version]), "#,##0.00") -> Version 2.10 | H2: ="Last Updated: " & TEXT(MAX(Version[Date]), "m/d/yyyy") -> Last Updated: 4/11/2019

Sheet Initial Settings
A1: =B5 -> Corridor and Community DC Fast Charging Complex (Urban Site)
A3: Initial Settings
A5: Scenario Name | B5: Corridor and Community DC Fast Charging Complex (Urban Site)
A6: Initial Year | B6: 2017
A9: Load values from external file
A11: Save all user inputs to an external file
A13: Sensitivity Settings
A15: Update sensitivity analysis results
A17: Sensitivity Variable ID | B17: Sensitivity Input Field Selection | C17: Min Value | D17: Max Value | E17: Current Value | F17: Valid | G17: Field Code | H17: Field Lookup | I17: Sensitivity Reference
A18: 1 | B18: Expected annual utilization growth rate [%] | C18: 0 | D18: 0.55 | E18: =IFERROR(INDIRECT(SensitivitySummary[[#This Row],[Field Code]]), "Error") -> 0.1 | F18: =IF(IFERROR(VLOOKUP(SensitivitySummary[[#This Row],[Sensitivity Input Field Selection]], InputFields[],2,FALSE), "Error")<> "Error", "OK", "Error") -> OK | G18: =VLOOKUP(SensitivitySummary[[#This Row],[Sensitivity Input Field Selection]], InputFields[],2,FALSE) -> market_inputs_expected_annual_utilization_rate | H18: =MID(CELL("filename",INDIRECT(SensitivitySummary[[#This Row],[Field Code]])),FIND("]", CELL("filename",INDIRECT(SensitivitySummary[[#This Row],[Field Code]])))+1,32) & "!" & ADDRESS(ROW(INDIRECT(SensitivitySummary[[#This Row],[Field Code]])),COLUMN(INDIRECT(SensitivitySummary[[#This Row],[Field Code]])),4,1) -> Market Inputs!E35 | I18: =CELL("address", OFFSET('Sensitivity Tables'!A$9, 16*(SensitivitySummary[[#This Row],[Sensitivity Variable ID]]-1), 0)) -> '[ev_charging_financial_analysis_tool_v2.10.xlsm]Sensitivity Tables'!$A$9
A19: 2 | B19: [Station Type 1] Initial average utilization [# of charging sessions per station per year] | C19: 0 | D19: =365*12 -> 4380 | E19: =IFERROR(INDIRECT(SensitivitySummary[[#This Row],[Field Code]]), "Error") -> 5548 | F19: =IF(IFERROR(VLOOKUP(SensitivitySummary[[#This Row],[Sensitivity Input Field Selection]], InputFields[],2,FALSE), "Error")<> "Error", "OK", "Error") -> OK | G19: =VLOOKUP(SensitivitySummary[[#This Row],[Sensitivity Input Field Selection]], InputFields[],2,FALSE) -> market_inputs_station_1_initial_average_utilization | H19: =MID(CELL("filename",INDIRECT(SensitivitySummary[[#This Row],[Field Code]])),FIND("]", CELL("filename",INDIRECT(SensitivitySummary[[#This Row],[Field Code]])))+1,32) & "!" & ADDRESS(ROW(INDIRECT(SensitivitySummary[[#This Row],[Field Code]])),COLUMN(INDIRECT(SensitivitySummary[[#This Row],[Field Code]])),4,1) -> Market Inputs!E36 | I19: =CELL("address", OFFSET('Sensitivity Tables'!A$9, 16*(SensitivitySummary[[#This Row],[Sensitivity Variable ID]]-1), 0)) -> '[ev_charging_financial_analysis_tool_v2.10.xlsm]Sensitivity Tables'!$A$25
A20: 3 | B20: Climate benefit [$ per ton of greenhouse gas emissions abated] | C20: 0 | D20: 100 | E20: =IFERROR(INDIRECT(SensitivitySummary[[#This Row],[Field Code]]), "Error") -> 42 | F20: =IF(IFERROR(VLOOKUP(SensitivitySummary[[#This Row],[Sensitivity Input Field Selection]], InputFields[],2,FALSE), "Error")<> "Error", "OK", "Error") -> OK | G20: =VLOOKUP(SensitivitySummary[[#This Row],[Sensitivity Input Field Selection]], InputFields[],2,FALSE) -> market_inputs_climate_benefit | H20: =MID(CELL("filename",INDIRECT(SensitivitySummary[[#This Row],[Field Code]])),FIND("]", CELL("filename",INDIRECT(SensitivitySummary[[#This Row],[Field Code]])))+1,32) & "!" & ADDRESS(ROW(INDIRECT(SensitivitySummary[[#This Row],[Field Code]])),COLUMN(INDIRECT(SensitivitySummary[[#This Row],[Field Code]])),4,1) -> Market Inputs!E11 | I20: =CELL("address", OFFSET('Sensitivity Tables'!A$9, 16*(SensitivitySummary[[#This Row],[Sensitivity Variable ID]]-1), 0)) -> '[ev_charging_financial_analysis_tool_v2.10.xlsm]Sensitivity Tables'!$A$41
A21: 4 | B21: EV fuel economy [miles per kilowatt-hour] | C21: 0 | D21: 50 | E21: =IFERROR(INDIRECT(SensitivitySummary[[#This Row],[Field Code]]), "Error") -> 3.5 | F21: =IF(IFERROR(VLOOKUP(SensitivitySummary[[#This Row],[Sensitivity Input Field Selection]], InputFields[],2,FALSE), "Error")<> "Error", "OK", "Error") -> OK | G21: =VLOOKUP(SensitivitySummary[[#This Row],[Sensitivity Input Field Selection]], InputFields[],2,FALSE) -> market_inputs_ev_fuel_economy | H21: =MID(CELL("filename",INDIRECT(SensitivitySummary[[#This Row],[Field Code]])),FIND("]", CELL("filename",INDIRECT(SensitivitySummary[[#This Row],[Field Code]])))+1,32) & "!" & ADDRESS(ROW(INDIRECT(SensitivitySummary[[#This Row],[Field Code]])),COLUMN(INDIRECT(SensitivitySummary[[#This Row],[Field Code]])),4,1) -> Market Inputs!E6 | I21: =CELL("address", OFFSET('Sensitivity Tables'!A$9, 16*(SensitivitySummary[[#This Row],[Sensitivity Variable ID]]-1), 0)) -> '[ev_charging_financial_analysis_tool_v2.10.xlsm]Sensitivity Tables'!$A$57
A22: 5 | B22: Share of onsite energy generation (type 1 station) [%] | C22: 0 | D22: 1 | E22: =IFERROR(INDIRECT(SensitivitySummary[[#This Row],[Field Code]]), "Error") -> 0 | F22: =IF(IFERROR(VLOOKUP(SensitivitySummary[[#This Row],[Sensitivity Input Field Selection]], InputFields[],2,FALSE), "Error")<> "Error", "OK", "Error") -> OK | G22: =VLOOKUP(SensitivitySummary[[#This Row],[Sensitivity Input Field Selection]], InputFields[],2,FALSE) -> ooi_type_1_share_onsite_energy_generation | H22: =MID(CELL("filename",INDIRECT(SensitivitySummary[[#This Row],[Field Code]])),FIND("]", CELL("filename",INDIRECT(SensitivitySummary[[#This Row],[Field Code]])))+1,32) & "!" & ADDRESS(ROW(INDIRECT(SensitivitySummary[[#This Row],[Field Code]])),COLUMN(INDIRECT(SensitivitySummary[[#This Row],[Field Code]])),4,1) -> Owner-Operator Inputs!E58 | I22: =CELL("address", OFFSET('Sensitivity Tables'!A$9, 16*(SensitivitySummary[[#This Row],[Sensitivity Variable ID]]-1), 0)) -> '[ev_charging_financial_analysis_tool_v2.10.xlsm]Sensitivity Tables'!$A$73
A23: 6 | B23: Estimated NPV of lifetime after-tax profit per station (type 1 station) [$] | C23: 0 | D23: 18000 | E23: =IFERROR(INDIRECT(SensitivitySummary[[#This Row],[Field Code]]), "Error") -> 0 | F23: =IF(IFERROR(VLOOKUP(SensitivitySummary[[#This Row],[Sensitivity Input Field Selection]], InputFields[],2,FALSE), "Error")<> "Error", "OK", "Error") -> OK | G23: =VLOOKUP(SensitivitySummary[[#This Row],[Sensitivity Input Field Selection]], InputFields[],2,FALSE) -> psp_type_1_estimated_npv_of_lifetime_after_tax_profit_per_station | H23: =MID(CELL("filename",INDIRECT(SensitivitySummary[[#This Row],[Field Code]])),FIND("]", CELL("filename",INDIRECT(SensitivitySummary[[#This Row],[Field Code]])))+1,32) & "!" & ADDRESS(ROW(INDIRECT(SensitivitySummary[[#This Row],[Field Code]])),COLUMN(INDIRECT(SensitivitySummary[[#This Row],[Field Code]])),4,1) -> Private Sector Partner Inputs!E38 | I23: =CELL("address", OFFSET('Sensitivity Tables'!A$9, 16*(SensitivitySummary[[#This Row],[Sensitivity Variable ID]]-1), 0)) -> '[ev_charging_financial_analysis_tool_v2.10.xlsm]Sensitivity Tables'!$A$89
A24: 7 | B24: Annual customer revenue sharing agreement (from sales) [% of revenue] | C24: 0 | D24: 0.45 | E24: =IFERROR(INDIRECT(SensitivitySummary[[#This Row],[Field Code]]), "Error") -> 0.1 | F24: =IF(IFERROR(VLOOKUP(SensitivitySummary[[#This Row],[Sensitivity Input Field Selection]], InputFields[],2,FALSE), "Error")<> "Error", "OK", "Error") -> OK | G24: =VLOOKUP(SensitivitySummary[[#This Row],[Sensitivity Input Field Selection]], InputFields[],2,FALSE) -> psp_annual_customer_revenue_sharing_agreement | H24: =MID(CELL("filename",INDIRECT(SensitivitySummary[[#This Row],[Field Code]])),FIND("]", CELL("filename",INDIRECT(SensitivitySummary[[#This Row],[Field Code]])))+1,32) & "!" & ADDRESS(ROW(INDIRECT(SensitivitySummary[[#This Row],[Field Code]])),COLUMN(INDIRECT(SensitivitySummary[[#This Row],[Field Code]])),4,1) -> Private Sector Partner Inputs!E58 | I24: =CELL("address", OFFSET('Sensitivity Tables'!A$9, 16*(SensitivitySummary[[#This Row],[Sensitivity Variable ID]]-1), 0)) -> '[ev_charging_financial_analysis_tool_v2.10.xlsm]Sensitivity Tables'!$A$105
A25: 8 | B25: Demand charge (type 1 station) [$/kW/month] | C25: 0 | D25: 12 | E25: =IFERROR(INDIRECT(SensitivitySummary[[#This Row],[Field Code]]), "Error") -> 11.48 | F25: =IF(IFERROR(VLOOKUP(SensitivitySummary[[#This Row],[Sensitivity Input Field Selection]], InputFields[],2,FALSE), "Error")<> "Error", "OK", "Error") -> OK | G25: =VLOOKUP(SensitivitySummary[[#This Row],[Sensitivity Input Field Selection]], InputFields[],2,FALSE) -> ooi_type_1_demand_charge | H25: =MID(CELL("filename",INDIRECT(SensitivitySummary[[#This Row],[Field Code]])),FIND("]", CELL("filename",INDIRECT(SensitivitySummary[[#This Row],[Field Code]])))+1,32) & "!" & ADDRESS(ROW(INDIRECT(SensitivitySummary[[#This Row],[Field Code]])),COLUMN(INDIRECT(SensitivitySummary[[#This Row],[Field Code]])),4,1) -> Owner-Operator Inputs!E61 | I25: =CELL("address", OFFSET('Sensitivity Tables'!A$9, 16*(SensitivitySummary[[#This Row],[Sensitivity Variable ID]]-1), 0)) -> '[ev_charging_financial_analysis_tool_v2.10.xlsm]Sensitivity Tables'!$A$121
A26: 9 | B26: Per-energy user fee (type 1 station) [$/kWh] | C26: 0 | D26: 1 | E26: =IFERROR(INDIRECT(SensitivitySummary[[#This Row],[Field Code]]), "Error") -> 0.6 | F26: =IF(IFERROR(VLOOKUP(SensitivitySummary[[#This Row],[Sensitivity Input Field Selection]], InputFields[],2,FALSE), "Error")<> "Error", "OK", "Error") -> OK | G26: =VLOOKUP(SensitivitySummary[[#This Row],[Sensitivity Input Field Selection]], InputFields[],2,FALSE) -> ooi_type_1_per_energy_user_fee | H26: =MID(CELL("filename",INDIRECT(SensitivitySummary[[#This Row],[Field Code]])),FIND("]", CELL("filename",INDIRECT(SensitivitySummary[[#This Row],[Field Code]])))+1,32) & "!" & ADDRESS(ROW(INDIRECT(SensitivitySummary[[#This Row],[Field Code]])),COLUMN(INDIRECT(SensitivitySummary[[#This Row],[Field Code]])),4,1) -> Owner-Operator Inputs!E45 | I26: =CELL("address", OFFSET('Sensitivity Tables'!A$9, 16*(SensitivitySummary[[#This Row],[Sensitivity Variable ID]]-1), 0)) -> '[ev_charging_financial_analysis_tool_v2.10.xlsm]Sensitivity Tables'!$A$137 | N26: Terminal
A27: 10 | B27: Total number of type 1 stations [#] | C27: 0 | D27: 20 | E27: =IFERROR(INDIRECT(SensitivitySummary[[#This Row],[Field Code]]), "Error") -> 1 | F27: =IF(IFERROR(VLOOKUP(SensitivitySummary[[#This Row],[Sensitivity Input Field Selection]], InputFields[],2,FALSE), "Error")<> "Error", "OK", "Error") -> OK | G27: =VLOOKUP(SensitivitySummary[[#This Row],[Sensitivity Input Field Selection]], InputFields[],2,FALSE) -> ooi_type_1_total_number_of_stations | H27: =MID(CELL("filename",INDIRECT(SensitivitySummary[[#This Row],[Field Code]])),FIND("]", CELL("filename",INDIRECT(SensitivitySummary[[#This Row],[Field Code]])))+1,32) & "!" & ADDRESS(ROW(INDIRECT(SensitivitySummary[[#This Row],[Field Code]])),COLUMN(INDIRECT(SensitivitySummary[[#This Row],[Field Code]])),4,1) -> Owner-Operator Inputs!E23 | I27: =CELL("address", OFFSET('Sensitivity Tables'!A$9, 16*(SensitivitySummary[[#This Row],[Sensitivity Variable ID]]-1), 0)) -> '[ev_charging_financial_analysis_tool_v2.10.xlsm]Sensitivity Tables'!$A$153

Sheet Lists_Hidden (hidden)
A1: ='Initial Settings'!B5 -> Corridor and Community DC Fast Charging Complex (Urban Site)
A3: Lists
A5: Yes/No List | C5: Input Fields | F5: Input Fields from Excel
A6: Y | C6: Input Field | D6: Field Code | F6: Input Field | G6: Field Code
A7: N | C7: Annual advertising revenue (In-station advertising) [$] | D7: ooi_annual_advertising_revenue | F7: =OFFSET(INDIRECT(CELL("address", INDIRECT(AllNamedFields[[#This Row],[Field Code]]))), 0, -4) ->  | G7: List_Yes_No
C8: Annual average traffic volume of route in first year [# of cars] | D8: market_inputs_annual_avg_traffic_volume | F8: =OFFSET(INDIRECT(CELL("address", INDIRECT(AllNamedFields[[#This Row],[Field Code]]))), 0, -4) -> Annual average traffic volume of route in first year [# of cars] | G8: market_inputs_annual_avg_traffic_volume
C9: Annual communications cost (average per type 1 site/year) [$] | D9: ooi_type_1_annual_communications_cost | F9: =OFFSET(INDIRECT(CELL("address", INDIRECT(AllNamedFields[[#This Row],[Field Code]]))), 0, -4) -> Projected annual growth rate in traffic volume [%] | G9: market_inputs_annual_growth_rate_traffic_volume
C10: Annual communications cost (type 2 station) [$] | D10: ooi_type_2_annual_communications_cost | F10: =OFFSET(INDIRECT(CELL("address", INDIRECT(AllNamedFields[[#This Row],[Field Code]]))), 0, -4) -> Climate benefit [$ per ton of greenhouse gas emissions abated] | G10: market_inputs_climate_benefit
C11: Annual communications cost (type 3 station) [$] | D11: ooi_type_3_annual_communications_cost | F11: =OFFSET(INDIRECT(CELL("address", INDIRECT(AllNamedFields[[#This Row],[Field Code]]))), 0, -4) -> 42 | G11: market_inputs_co2e_gasoline
C12: Annual compounded growth rate in electricity price (type 1 station) [%] | D12: ooi_type_1_annual_compounded_growth_rate_in_electricity_price | F12: =OFFSET(INDIRECT(CELL("address", INDIRECT(AllNamedFields[[#This Row],[Field Code]]))), 0, -4) -> Electrical grid benefit [$ per megawatt-hour] | G12: market_inputs_electrical_grid_benefit
C13: Annual compounded growth rate in electricity price (type 2 station) [%] | D13: ooi_type_2_annual_compounded_growth_rate_in_electricity_price | F13: =OFFSET(INDIRECT(CELL("address", INDIRECT(AllNamedFields[[#This Row],[Field Code]]))), 0, -4) -> Electrical grid emissions rate [carbon dioxide equivalent pounds per megawatt-hour] | G13: market_inputs_electrical_grid_emissions_rate
C14: Annual compounded growth rate in electricity price (type 3 station) [%] | D14: ooi_type_3_annual_compounded_growth_rate_in_electricity_price | F14: =OFFSET(INDIRECT(CELL("address", INDIRECT(AllNamedFields[[#This Row],[Field Code]]))), 0, -4) -> Energy security benefit [$ per gasoline gallon displaced] | G14: market_inputs_energy_security_benefit
C15: Annual customer revenue sharing agreement (from sales) [% of revenue] | D15: psp_annual_customer_revenue_sharing_agreement | F15: =OFFSET(INDIRECT(CELL("address", INDIRECT(AllNamedFields[[#This Row],[Field Code]]))), 0, -4) -> EV fuel economy [miles per kilowatt-hour] | G15: market_inputs_ev_fuel_economy
C16: Annual equity return cap [%] | D16: pusp_equity_return_cap | F16: =OFFSET(INDIRECT(CELL("address", INDIRECT(AllNamedFields[[#This Row],[Field Code]]))), 0, -4) -> EVs as a percentage of total registered vehicles in first year [%] | G16: market_inputs_evs_as_percentage_of_total_registered_vehicles
C17: Annual flat fee (paid to owner-operator) [$] | D17: psp_annual_flat_fee | F17: =OFFSET(INDIRECT(CELL("address", INDIRECT(AllNamedFields[[#This Row],[Field Code]]))), 0, -4) -> Expected annual utilization growth rate [%] | G17: market_inputs_expected_annual_utilization_rate
C18: Annual growth rate in number of subscribers [%] | D18: ooi_annual_growth_rate_in_number_of_subscribers | F18: =OFFSET(INDIRECT(CELL("address", INDIRECT(AllNamedFields[[#This Row],[Field Code]]))), 0, -4) -> [Station Type 3] Expected number of Not used sessions per car per trip | G18: market_inputs_expected_dc_fast_charging_local_sessions_per_car_per_trip
C19: Annual maintenance cost as percentage of equipment value (type 1 station) [%] | D19: ooi_type_1_annual_maintenance_cost_as_percentage_of_equipment_value | F19: =OFFSET(INDIRECT(CELL("address", INDIRECT(AllNamedFields[[#This Row],[Field Code]]))), 0, -4) -> [Station Type 1] Expected number of DC Fast Charging (Urban) sessions per car per trip | G19: market_inputs_expected_dc_sessions_per_car_per_trip
C20: Annual maintenance cost as percentage of equipment value (type 2 station) [%] | D20: ooi_type_2_annual_maintenance_cost_as_percentage_of_equipment_value | F20: =OFFSET(INDIRECT(CELL("address", INDIRECT(AllNamedFields[[#This Row],[Field Code]]))), 0, -4) -> [Station Type 2] Expected number of sessions per car per trip | G20: market_inputs_expected_level_2_sessions_per_car_per_trip
C21: Annual maintenance cost as percentage of equipment value (type 3 station) [%] | D21: ooi_type_3_annual_maintenance_cost_as_percentage_of_equipment_value | F21: =OFFSET(INDIRECT(CELL("address", INDIRECT(AllNamedFields[[#This Row],[Field Code]]))), 0, -4) -> Conventional vehicle replacement fuel economy [mpg] | G21: market_inputs_gasoline_fuel_economy
C22: Annual warranty cost (type 1 station) [%] | D22: ooi_type_1_annual_warranty | F22: =OFFSET(INDIRECT(CELL("address", INDIRECT(AllNamedFields[[#This Row],[Field Code]]))), 0, -4) -> Projected annual growth rate of EVs as a percentage of total registered vehicles [%] | G22: market_inputs_projects_annual_growth_rate_evs
C23: Annual warranty cost (type 2 station) [$] | D23: ooi_type_2_annual_warranty | F23: =OFFSET(INDIRECT(CELL("address", INDIRECT(AllNamedFields[[#This Row],[Field Code]]))), 0, -4) -> State and Local Sales tax [%] | G23: market_inputs_sales_tax_rate
C24: Annual warranty cost (type 3 station) [$] | D24: ooi_type_3_annual_warranty | F24: =OFFSET(INDIRECT(CELL("address", INDIRECT(AllNamedFields[[#This Row],[Field Code]]))), 0, -4) -> [Station Type 1] Initial average utilization [# of charging sessions per station per year] | G24: market_inputs_station_1_initial_average_utilization
C25: Average charging energy per type 1 session [kWh/session] | D25: ooi_type_1_average_charging_energy_per_session | F25: =OFFSET(INDIRECT(CELL("address", INDIRECT(AllNamedFields[[#This Row],[Field Code]]))), 0, -4) -> [Station Type 2] Initial average utilization [# of charging sessions per station per year] | G25: market_inputs_station_2_initial_average_utilization
C26: Average charging energy per type 2 session [kWh/session] | D26: ooi_type_2_average_charging_energy_per_session | F26: =OFFSET(INDIRECT(CELL("address", INDIRECT(AllNamedFields[[#This Row],[Field Code]]))), 0, -4) -> [Station Type 3] Initial average utilization [# of charging sessions per station per year] | G26: market_inputs_station_3_initial_average_utilization
C27: Average charging energy per type 3 session [kWh/session] | D27: ooi_type_3_average_charging_energy_per_session | F27: =OFFSET(INDIRECT(CELL("address", INDIRECT(AllNamedFields[[#This Row],[Field Code]]))), 0, -4) -> Use traffic-derived values [1] or direct inputs [2] | G27: market_inputs_use_traffic_derived_values_or_direct_inputs
C28: Average expected revenue per customer per minute [$] | D28: psp_average_expected_revenue_per_customer_per_minute | F28: =OFFSET(INDIRECT(CELL("address", INDIRECT(AllNamedFields[[#This Row],[Field Code]]))), 0, -4) ->  | G28: model_settings_company_name
C29: Average time of charging session (type 1 station) [minutes] | D29: ooi_type_1_average_time_of_charging_session | F29: =OFFSET(INDIRECT(CELL("address", INDIRECT(AllNamedFields[[#This Row],[Field Code]]))), 0, -4) ->  | G29: model_settings_initial_year
C30: Average time of charging session (type 2 station) [minutes] | D30: ooi_type_2_average_time_of_charging_session | F30: =OFFSET(INDIRECT(CELL("address", INDIRECT(AllNamedFields[[#This Row],[Field Code]]))), 0, -4) ->  | G30: Names_to_Export
C31: Average time of charging session (type 3 station) [minutes] | D31: ooi_type_3_average_time_of_charging_session | F31: =OFFSET(INDIRECT(CELL("address", INDIRECT(AllNamedFields[[#This Row],[Field Code]]))), 0, -4) -> 0 | G31: ooi_accounts_payable_1
C32: Charging station equipment cost per type 1 station [$] | D32: ooi_type_1_charging_station_equipment_cost | F32: =OFFSET(INDIRECT(CELL("address", INDIRECT(AllNamedFields[[#This Row],[Field Code]]))), 0, -4) -> 0.12 | G32: ooi_accounts_payable_10
C33: Charging station equipment cost per type 2 station [$] | D33: ooi_type_2_charging_station_equipment_cost | F33: =OFFSET(INDIRECT(CELL("address", INDIRECT(AllNamedFields[[#This Row],[Field Code]]))), 0, -4) -> 0 | G33: ooi_accounts_payable_2
C34: Charging station equipment cost per type 3 station [$] | D34: ooi_type_3_charging_station_equipment_cost | F34: =OFFSET(INDIRECT(CELL("address", INDIRECT(AllNamedFields[[#This Row],[Field Code]]))), 0, -4) -> 0 | G34: ooi_accounts_payable_3
C35: Charging station type | D35: ooi_type_1_charging_station_type | F35: =OFFSET(INDIRECT(CELL("address", INDIRECT(AllNamedFields[[#This Row],[Field Code]]))), 0, -4) -> 0 | G35: ooi_accounts_payable_4
C36: Charging station type | D36: ooi_type_3_charging_station_type | F36: =OFFSET(INDIRECT(CELL("address", INDIRECT(AllNamedFields[[#This Row],[Field Code]]))), 0, -4) -> 0.12 | G36: ooi_accounts_payable_5
C37: Charging station type | D37: ooi_type_2_charging_station_type | F37: =OFFSET(INDIRECT(CELL("address", INDIRECT(AllNamedFields[[#This Row],[Field Code]]))), 0, -4) -> 0.12 | G37: ooi_accounts_payable_6
C38: Climate benefit [$ per ton of greenhouse gas emissions abated] | D38: market_inputs_climate_benefit | F38: =OFFSET(INDIRECT(CELL("address", INDIRECT(AllNamedFields[[#This Row],[Field Code]]))), 0, -4) -> 0.12 | G38: ooi_accounts_payable_7
C39: Construction and equipment installation cost per type 1 station [$] | D39: ooi_type_1_construction_and_equipment_installation_cost | F39: =OFFSET(INDIRECT(CELL("address", INDIRECT(AllNamedFields[[#This Row],[Field Code]]))), 0, -4) -> 0.12 | G39: ooi_accounts_payable_8
C40: Construction and equipment installation cost per type 2 station [$] | D40: ooi_type_2_construction_and_equipment_installation_cost | F40: =OFFSET(INDIRECT(CELL("address", INDIRECT(AllNamedFields[[#This Row],[Field Code]]))), 0, -4) -> 0.12 | G40: ooi_accounts_payable_9
C41: Construction and equipment installation cost per type 3 station [$] | D41: ooi_type_3_construction_and_equipment_installation_cost | F41: =OFFSET(INDIRECT(CELL("address", INDIRECT(AllNamedFields[[#This Row],[Field Code]]))), 0, -4) -> 0 | G41: ooi_accounts_receivable_1
C42: Conventional vehicle replacement fuel economy [mpg] | D42: market_inputs_gasoline_fuel_economy | F42: =OFFSET(INDIRECT(CELL("address", INDIRECT(AllNamedFields[[#This Row],[Field Code]]))), 0, -4) -> 0.05 | G42: ooi_accounts_receivable_10
C43: Demand charge (type 1 station) [$/kW/month] | D43: ooi_type_1_demand_charge | F43: =OFFSET(INDIRECT(CELL("address", INDIRECT(AllNamedFields[[#This Row],[Field Code]]))), 0, -4) -> 0 | G43: ooi_accounts_receivable_2
C44: Demand charge (type 2 station) [$/kW/month] | D44: ooi_type_2_demand_charge | F44: =OFFSET(INDIRECT(CELL("address", INDIRECT(AllNamedFields[[#This Row],[Field Code]]))), 0, -4) -> 0 | G44: ooi_accounts_receivable_3
C45: Demand charge (type 3 station) [$/kW/month] | D45: ooi_type_3_demand_charge | F45: =OFFSET(INDIRECT(CELL("address", INDIRECT(AllNamedFields[[#This Row],[Field Code]]))), 0, -4) -> 0 | G45: ooi_accounts_receivable_4
C46: EV fuel economy [miles per kilowatt-hour] | D46: market_inputs_ev_fuel_economy | F46: =OFFSET(INDIRECT(CELL("address", INDIRECT(AllNamedFields[[#This Row],[Field Code]]))), 0, -4) -> 0.05 | G46: ooi_accounts_receivable_5
C47: EVs as a percentage of total registered vehicles in first year [%] | D47: market_inputs_evs_as_percentage_of_total_registered_vehicles | F47: =OFFSET(INDIRECT(CELL("address", INDIRECT(AllNamedFields[[#This Row],[Field Code]]))), 0, -4) -> 0.05 | G47: ooi_accounts_receivable_6
C48: Electric utility upgrades and grid interconnection cost per type 1 site [$] | D48: ooi_type_1_electric_utility_upgrades_and_grid_interconnection_cost | F48: =OFFSET(INDIRECT(CELL("address", INDIRECT(AllNamedFields[[#This Row],[Field Code]]))), 0, -4) -> 0.05 | G48: ooi_accounts_receivable_7
C49: Electric utility upgrades and grid interconnection cost per type 2 site [$] | D49: ooi_type_2_electric_utility_upgrades_and_grid_interconnection_cost | F49: =OFFSET(INDIRECT(CELL("address", INDIRECT(AllNamedFields[[#This Row],[Field Code]]))), 0, -4) -> 0.05 | G49: ooi_accounts_receivable_8
C50: Electric utility upgrades and grid interconnection cost per type 3 site [$] | D50: ooi_type_3_electric_utility_upgrades_and_grid_interconnection_cost | F50: =OFFSET(INDIRECT(CELL("address", INDIRECT(AllNamedFields[[#This Row],[Field Code]]))), 0, -4) -> 0.05 | G50: ooi_accounts_receivable_9
C51: Electrical grid benefit [$ per megawatt-hour] | D51: market_inputs_electrical_grid_benefit | F51: =OFFSET(INDIRECT(CELL("address", INDIRECT(AllNamedFields[[#This Row],[Field Code]]))), 0, -4) -> Annual advertising revenue (In-station advertising) [$] | G51: ooi_annual_advertising_revenue
C52: Electrical grid emissions rate [carbon dioxide equivalent pounds per megawatt-hour] | D52: market_inputs_electrical_grid_emissions_rate | F52: =OFFSET(INDIRECT(CELL("address", INDIRECT(AllNamedFields[[#This Row],[Field Code]]))), 0, -4) -> Annual growth rate in number of subscribers [%] | G52: ooi_annual_growth_rate_in_number_of_subscribers
C53: Electricity retail price in first year (type 1 station) [$/kWh] | D53: ooi_type_1_electricity_retail_price_in_first_year | F53: =OFFSET(INDIRECT(CELL("address", INDIRECT(AllNamedFields[[#This Row],[Field Code]]))), 0, -4) -> Owner-operator share of climate benefit [%] | G53: ooi_climate_share
C54: Electricity retail price in first year (type 2 station) [$/kWh] | D54: ooi_type_2_electricity_retail_price_in_first_year | F54: =OFFSET(INDIRECT(CELL("address", INDIRECT(AllNamedFields[[#This Row],[Field Code]]))), 0, -4) -> Owner-operator share of electrical grid benefit [%] | G54: ooi_electrical_grid_share
C55: Electricity retail price in first year (type 3 station) [$/kWh] | D55: ooi_type_3_electricity_retail_price_in_first_year | F55: =OFFSET(INDIRECT(CELL("address", INDIRECT(AllNamedFields[[#This Row],[Field Code]]))), 0, -4) -> Owner-operator share of energy security benefit [%] | G55: ooi_energy_security_share
C56: Energy security benefit [$ per gasoline gallon displaced] | D56: market_inputs_energy_security_benefit | F56: =OFFSET(INDIRECT(CELL("address", INDIRECT(AllNamedFields[[#This Row],[Field Code]]))), 0, -4) -> Expected equipment lifespan [years] - All equipment types | G56: ooi_expected_equipment_lifespan_years
C57: Energy storage cost per type 1 site [$] | D57: ooi_type_1_energy_storage | F57: =OFFSET(INDIRECT(CELL("address", INDIRECT(AllNamedFields[[#This Row],[Field Code]]))), 0, -4) -> Income Tax Rate [%] | G57: ooi_income_taxes
C58: Energy storage cost per type 2 site [$] | D58: ooi_type_2_energy_storage | F58: =OFFSET(INDIRECT(CELL("address", INDIRECT(AllNamedFields[[#This Row],[Field Code]]))), 0, -4) -> 0 | G58: ooi_intangibles_1
C59: Energy storage cost per type 3 site [$] | D59: ooi_type_3_energy_storage | F59: =OFFSET(INDIRECT(CELL("address", INDIRECT(AllNamedFields[[#This Row],[Field Code]]))), 0, -4) -> 0 | G59: ooi_intangibles_10
C60: Estimated NPV of lifetime after-tax profit per station (type 1 station) [$] | D60: psp_type_1_estimated_npv_of_lifetime_after_tax_profit_per_station | F60: =OFFSET(INDIRECT(CELL("address", INDIRECT(AllNamedFields[[#This Row],[Field Code]]))), 0, -4) -> 0 | G60: ooi_intangibles_2
C61: Estimated NPV of lifetime after-tax profit per station (type 2 station) [$] | D61: psp_type_2_estimated_npv_of_lifetime_after_tax_profit_per_station | F61: =OFFSET(INDIRECT(CELL("address", INDIRECT(AllNamedFields[[#This Row],[Field Code]]))), 0, -4) -> 0 | G61: ooi_intangibles_3
C62: Estimated NPV of lifetime after-tax profit per station (type 3 station) [$] | D62: psp_type_3_estimated_npv_of_lifetime_after_tax_profit_per_station | F62: =OFFSET(INDIRECT(CELL("address", INDIRECT(AllNamedFields[[#This Row],[Field Code]]))), 0, -4) -> 0 | G62: ooi_intangibles_4
C63: Expected annual utilization growth rate [%] | D63: market_inputs_expected_annual_utilization_rate | F63: =OFFSET(INDIRECT(CELL("address", INDIRECT(AllNamedFields[[#This Row],[Field Code]]))), 0, -4) -> 0 | G63: ooi_intangibles_5
C64: Expected equipment lifespan [years] - All equipment types | D64: ooi_expected_equipment_lifespan_years | F64: =OFFSET(INDIRECT(CELL("address", INDIRECT(AllNamedFields[[#This Row],[Field Code]]))), 0, -4) -> 0 | G64: ooi_intangibles_6
C65: Host site identification and screening per type 1 site [$] | D65: ooi_type_1_host_site_identification_and_screening | F65: =OFFSET(INDIRECT(CELL("address", INDIRECT(AllNamedFields[[#This Row],[Field Code]]))), 0, -4) -> 0 | G65: ooi_intangibles_7
C66: Host site identification and screening per type 2 site [$] | D66: ooi_type_2_host_site_identification_and_screening | F66: =OFFSET(INDIRECT(CELL("address", INDIRECT(AllNamedFields[[#This Row],[Field Code]]))), 0, -4) -> 0 | G66: ooi_intangibles_8
C67: Host site identification and screening per type 3 site [$] | D67: ooi_type_3_host_site_identification_and_screening | F67: =OFFSET(INDIRECT(CELL("address", INDIRECT(AllNamedFields[[#This Row],[Field Code]]))), 0, -4) -> 0 | G67: ooi_intangibles_9
C68: Host site lease or access cost (average per type 1 site/year) [$] | D68: ooi_type_1_host_site_lease_or_access_cost | F68: =OFFSET(INDIRECT(CELL("address", INDIRECT(AllNamedFields[[#This Row],[Field Code]]))), 0, -4) -> 0 | G68: ooi_interest_expense_rate_1
C69: Host site lease or access cost (average per type 2 site/year) [$] | D69: ooi_type_2_host_site_lease_or_access_cost | F69: =OFFSET(INDIRECT(CELL("address", INDIRECT(AllNamedFields[[#This Row],[Field Code]]))), 0, -4) -> 0.0426 | G69: ooi_interest_expense_rate_10
C70: Host site lease or access cost (average per type 3 site/year) [$] | D70: ooi_type_3_host_site_lease_or_access_cost | F70: =OFFSET(INDIRECT(CELL("address", INDIRECT(AllNamedFields[[#This Row],[Field Code]]))), 0, -4) -> 0 | G70: ooi_interest_expense_rate_2
C71: Income Tax Rate [%] | D71: ooi_income_taxes | F71: =OFFSET(INDIRECT(CELL("address", INDIRECT(AllNamedFields[[#This Row],[Field Code]]))), 0, -4) -> 0 | G71: ooi_interest_expense_rate_3
C72: Lease and property transaction costs per type 1 site (one-time fee) [$] | D72: ooi_type_1_lease_and_property_transaction_costs | F72: =OFFSET(INDIRECT(CELL("address", INDIRECT(AllNamedFields[[#This Row],[Field Code]]))), 0, -4) -> 0 | G72: ooi_interest_expense_rate_4
C73: Lease and property transaction costs per type 2 site (one-time fee) [$] | D73: ooi_type_2_lease_and_property_transaction_costs | F73: =OFFSET(INDIRECT(CELL("address", INDIRECT(AllNamedFields[[#This Row],[Field Code]]))), 0, -4) -> 0.0426 | G73: ooi_interest_expense_rate_5
C74: Lease and property transaction costs per type 3 site (one-time fee) [$] | D74: ooi_type_3_lease_and_property_transaction_costs | F74: =OFFSET(INDIRECT(CELL("address", INDIRECT(AllNamedFields[[#This Row],[Field Code]]))), 0, -4) -> 0.0426 | G74: ooi_interest_expense_rate_6
C75: Market Risk Premium | D75: ooi_market_risk_premium | F75: =OFFSET(INDIRECT(CELL("address", INDIRECT(AllNamedFields[[#This Row],[Field Code]]))), 0, -4) -> 0.0426 | G75: ooi_interest_expense_rate_7
C76: Maximum Debt Term [years] | D76: ooi_maximum_debt_term | F76: =OFFSET(INDIRECT(CELL("address", INDIRECT(AllNamedFields[[#This Row],[Field Code]]))), 0, -4) -> 0.0426 | G76: ooi_interest_expense_rate_8
C77: Maximum number of charging sessions per type 1 station [sessions/year/station] | D77: ooi_type_1_maximum_number_charging_sessions_per_station | F77: =OFFSET(INDIRECT(CELL("address", INDIRECT(AllNamedFields[[#This Row],[Field Code]]))), 0, -4) -> 0.0426 | G77: ooi_interest_expense_rate_9
C78: Maximum number of charging sessions per type 2 station [sessions/year/station] | D78: ooi_type_2_maximum_number_charging_sessions_per_station | F78: =OFFSET(INDIRECT(CELL("address", INDIRECT(AllNamedFields[[#This Row],[Field Code]]))), 0, -4) -> 0 | G78: ooi_interest_income_1
C79: Maximum number of charging sessions per type 3 station [sessions/year/station] | D79: ooi_type_3_maximum_number_charging_sessions_per_station | F79: =OFFSET(INDIRECT(CELL("address", INDIRECT(AllNamedFields[[#This Row],[Field Code]]))), 0, -4) -> 0 | G79: ooi_interest_income_10
C80: Maximum power draw (type 1 station) [kW/session] | D80: ooi_type_1_maximum_power_draw | F80: =OFFSET(INDIRECT(CELL("address", INDIRECT(AllNamedFields[[#This Row],[Field Code]]))), 0, -4) -> 0 | G80: ooi_interest_income_2
C81: Maximum power draw (type 2 station) [kW/session] | D81: ooi_type_2_maximum_power_draw | F81: =OFFSET(INDIRECT(CELL("address", INDIRECT(AllNamedFields[[#This Row],[Field Code]]))), 0, -4) -> 0 | G81: ooi_interest_income_3
C82: Maximum power draw (type 3 station) [kW/session] | D82: ooi_type_3_maximum_power_draw | F82: =OFFSET(INDIRECT(CELL("address", INDIRECT(AllNamedFields[[#This Row],[Field Code]]))), 0, -4) -> 0 | G82: ooi_interest_income_4
C83: Maximum retail revenue per customer per session (type 1 station) [$] | D83: psp_type_1_maximum_retail_revenue_per_customer_per_session | F83: =OFFSET(INDIRECT(CELL("address", INDIRECT(AllNamedFields[[#This Row],[Field Code]]))), 0, -4) -> 0 | G83: ooi_interest_income_5
C84: Maximum retail revenue per customer per session (type 2 station) [$] | D84: psp_type_2_maximum_retail_revenue_per_customer_per_session | F84: =OFFSET(INDIRECT(CELL("address", INDIRECT(AllNamedFields[[#This Row],[Field Code]]))), 0, -4) -> 0 | G84: ooi_interest_income_6
C85: Maximum retail revenue per customer per session (type 3 station) [$] | D85: psp_type_3_maximum_retail_revenue_per_customer_per_session | F85: =OFFSET(INDIRECT(CELL("address", INDIRECT(AllNamedFields[[#This Row],[Field Code]]))), 0, -4) -> 0 | G85: ooi_interest_income_7
C86: Non-shareholder contribution to capital (grants, etc.) [% of equity needed] | D86: pusp_non_shareholder_contribution_to_capital | F86: =OFFSET(INDIRECT(CELL("address", INDIRECT(AllNamedFields[[#This Row],[Field Code]]))), 0, -4) -> 0 | G86: ooi_interest_income_8
C87: Number of subscribers in first year [subscribers/year] | D87: ooi_number_of_subscribers_in_first_year | F87: =OFFSET(INDIRECT(CELL("address", INDIRECT(AllNamedFields[[#This Row],[Field Code]]))), 0, -4) -> 0 | G87: ooi_interest_income_9
C88: Owner-Operator Cost of Debt (Long Term) [%] | D88: ooi_owner_operator_cost_of_debt | F88: =OFFSET(INDIRECT(CELL("address", INDIRECT(AllNamedFields[[#This Row],[Field Code]]))), 0, -4) -> Market Risk Premium | G88: ooi_market_risk_premium
C89: Owner-operator share of climate benefit [%] | D89: ooi_climate_share | F89: =OFFSET(INDIRECT(CELL("address", INDIRECT(AllNamedFields[[#This Row],[Field Code]]))), 0, -4) -> Maximum Debt Term [years] | G89: ooi_maximum_debt_term
C90: Owner-operator share of electrical grid benefit [%] | D90: ooi_electrical_grid_share | F90: =OFFSET(INDIRECT(CELL("address", INDIRECT(AllNamedFields[[#This Row],[Field Code]]))), 0, -4) -> Number of subscribers in first year [subscribers/year] | G90: ooi_number_of_subscribers_in_first_year
C91: Owner-operator share of energy security benefit [%] | D91: ooi_energy_security_share | F91: =OFFSET(INDIRECT(CELL("address", INDIRECT(AllNamedFields[[#This Row],[Field Code]]))), 0, -4) -> 0 | G91: ooi_other_income_net_1
C92: Per station subsidy (type 1 station) [$] | D92: psp_per_station_subsidy_type_1 | F92: =OFFSET(INDIRECT(CELL("address", INDIRECT(AllNamedFields[[#This Row],[Field Code]]))), 0, -4) -> 0 | G92: ooi_other_income_net_10
C93: Per station subsidy (type 2 station) [$] | D93: psp_per_station_subsidy_type_2 | F93: =OFFSET(INDIRECT(CELL("address", INDIRECT(AllNamedFields[[#This Row],[Field Code]]))), 0, -4) -> 0 | G93: ooi_other_income_net_2
C94: Per station subsidy (type 3 station) [$] | D94: psp_per_station_subsidy_type_3 | F94: =OFFSET(INDIRECT(CELL("address", INDIRECT(AllNamedFields[[#This Row],[Field Code]]))), 0, -4) -> 0 | G94: ooi_other_income_net_3
C95: Per-charge event user fee (type 1 station) [$/session] | D95: ooi_type_1_per_charge_event_user_fee | F95: =OFFSET(INDIRECT(CELL("address", INDIRECT(AllNamedFields[[#This Row],[Field Code]]))), 0, -4) -> 0 | G95: ooi_other_income_net_4
C96: Per-charge event user fee (type 2 station) [$/session] | D96: ooi_type_2_per_charge_event_user_fee | F96: =OFFSET(INDIRECT(CELL("address", INDIRECT(AllNamedFields[[#This Row],[Field Code]]))), 0, -4) -> 0 | G96: ooi_other_income_net_5
C97: Per-charge event user fee (type 3 station) [$/session] | D97: ooi_type_3_per_charge_event_user_fee | F97: =OFFSET(INDIRECT(CELL("address", INDIRECT(AllNamedFields[[#This Row],[Field Code]]))), 0, -4) -> 0 | G97: ooi_other_income_net_6
C98: Per-energy user fee (type 1 station) [$/kWh] | D98: ooi_type_1_per_energy_user_fee | F98: =OFFSET(INDIRECT(CELL("address", INDIRECT(AllNamedFields[[#This Row],[Field Code]]))), 0, -4) -> 0 | G98: ooi_other_income_net_7
C99: Per-energy user fee (type 2 station) [$/kWh] | D99: ooi_type_2_per_energy_user_fee | F99: =OFFSET(INDIRECT(CELL("address", INDIRECT(AllNamedFields[[#This Row],[Field Code]]))), 0, -4) -> 0 | G99: ooi_other_income_net_8
C100: Per-energy user fee (type 3 station) [$/kWh] | D100: ooi_type_3_per_energy_user_fee | F100: =OFFSET(INDIRECT(CELL("address", INDIRECT(AllNamedFields[[#This Row],[Field Code]]))), 0, -4) -> 0 | G100: ooi_other_income_net_9
C101: Percent Equity Funded [%] | D101: ooi_percent_equity_funded | F101: =OFFSET(INDIRECT(CELL("address", INDIRECT(AllNamedFields[[#This Row],[Field Code]]))), 0, -4) -> 0 | G101: ooi_other_non_current_assets_1
C102: Photovoltaic energy system cost per type 1 site [$] | D102: ooi_type_1_photovoltaic_energy_system | F102: =OFFSET(INDIRECT(CELL("address", INDIRECT(AllNamedFields[[#This Row],[Field Code]]))), 0, -4) -> 0 | G102: ooi_other_non_current_assets_10
C103: Photovoltaic energy system cost per type 2 site [$] | D103: ooi_type_2_photovoltaic_energy_system | F103: =OFFSET(INDIRECT(CELL("address", INDIRECT(AllNamedFields[[#This Row],[Field Code]]))), 0, -4) -> 0 | G103: ooi_other_non_current_assets_2
C104: Photovoltaic energy system cost per type 3 site [$] | D104: ooi_type_3_photovoltaic_energy_system | F104: =OFFSET(INDIRECT(CELL("address", INDIRECT(AllNamedFields[[#This Row],[Field Code]]))), 0, -4) -> 0 | G104: ooi_other_non_current_assets_3
C105: Private Sector Cost of Goods Sold [% of Revenue] | D105: psp_private_sector_cost_of_goods_sold | F105: =OFFSET(INDIRECT(CELL("address", INDIRECT(AllNamedFields[[#This Row],[Field Code]]))), 0, -4) -> 0 | G105: ooi_other_non_current_assets_4
C106: Private Sector Marginal Tax Rate | D106: psp_private_sector_marginal_tax_rate | F106: =OFFSET(INDIRECT(CELL("address", INDIRECT(AllNamedFields[[#This Row],[Field Code]]))), 0, -4) -> 0 | G106: ooi_other_non_current_assets_5
C107: Private Sector Weighted Average Cost of Capital (WACC) | D107: psp_private_sector_wacc | F107: =OFFSET(INDIRECT(CELL("address", INDIRECT(AllNamedFields[[#This Row],[Field Code]]))), 0, -4) -> 0 | G107: ooi_other_non_current_assets_6
C108: Private sector captures host site lease / access fees? | D108: psp_private_sector_captures_host_site_lease | F108: =OFFSET(INDIRECT(CELL("address", INDIRECT(AllNamedFields[[#This Row],[Field Code]]))), 0, -4) -> 0 | G108: ooi_other_non_current_assets_7
C109: Projected Shares Outstanding (Millions) | D109: ooi_projected_shares_outstanding | F109: =OFFSET(INDIRECT(CELL("address", INDIRECT(AllNamedFields[[#This Row],[Field Code]]))), 0, -4) -> 0 | G109: ooi_other_non_current_assets_8
C110: Projected annual growth rate in traffic volume [%] | D110: market_inputs_annual_growth_rate_traffic_volume | F110: =OFFSET(INDIRECT(CELL("address", INDIRECT(AllNamedFields[[#This Row],[Field Code]]))), 0, -4) -> 0 | G110: ooi_other_non_current_assets_9
C111: Projected annual growth rate of EVs as a percentage of total registered vehicles [%] | D111: market_inputs_projects_annual_growth_rate_evs | F111: =OFFSET(INDIRECT(CELL("address", INDIRECT(AllNamedFields[[#This Row],[Field Code]]))), 0, -4) -> 0 | G111: ooi_other_receivable_1
C112: Public Sector Cost of Capital [%] | D112: pusp_public_sector_cost_of_capital | F112: =OFFSET(INDIRECT(CELL("address", INDIRECT(AllNamedFields[[#This Row],[Field Code]]))), 0, -4) -> 0 | G112: ooi_other_receivable_10
C113: Public sector equity has capped annual returns? | D113: pusp_public_sector_equity_has_capped_annual_terms | F113: =OFFSET(INDIRECT(CELL("address", INDIRECT(AllNamedFields[[#This Row],[Field Code]]))), 0, -4) -> 0 | G113: ooi_other_receivable_2
C114: Public sector funded portion of debt [% of debt needed] | D114: pusp_public_sector_funded_portion_of_debt | F114: =OFFSET(INDIRECT(CELL("address", INDIRECT(AllNamedFields[[#This Row],[Field Code]]))), 0, -4) -> 0 | G114: ooi_other_receivable_3
C115: Public sector funded portion of equity investment [% of equity needed] | D115: pusp_public_sector_funded_portion_of_equity_investment | F115: =OFFSET(INDIRECT(CELL("address", INDIRECT(AllNamedFields[[#This Row],[Field Code]]))), 0, -4) -> 0 | G115: ooi_other_receivable_4
C116: Rate (APR) [%] | D116: pusp_rate | F116: =OFFSET(INDIRECT(CELL("address", INDIRECT(AllNamedFields[[#This Row],[Field Code]]))), 0, -4) -> 0 | G116: ooi_other_receivable_5
C117: Risk Free Rate | D117: ooi_risk_free_rate | F117: =OFFSET(INDIRECT(CELL("address", INDIRECT(AllNamedFields[[#This Row],[Field Code]]))), 0, -4) -> 0 | G117: ooi_other_receivable_6
C118: Sales, General, and Administrative [% of Revenue] | D118: ooi_sales_general_and_administrative | F118: =OFFSET(INDIRECT(CELL("address", INDIRECT(AllNamedFields[[#This Row],[Field Code]]))), 0, -4) -> 0 | G118: ooi_other_receivable_7
C119: Share of onsite energy generation (type 1 station) [%] | D119: ooi_type_1_share_onsite_energy_generation | F119: =OFFSET(INDIRECT(CELL("address", INDIRECT(AllNamedFields[[#This Row],[Field Code]]))), 0, -4) -> 0 | G119: ooi_other_receivable_8
C120: Share of onsite energy generation (type 2 station) [%] | D120: ooi_type_2_share_onsite_energy_generation | F120: =OFFSET(INDIRECT(CELL("address", INDIRECT(AllNamedFields[[#This Row],[Field Code]]))), 0, -4) -> 0 | G120: ooi_other_receivable_9
C121: Share of onsite energy generation (type 3 station) [%] | D121: ooi_type_3_share_onsite_energy_generation | F121: =OFFSET(INDIRECT(CELL("address", INDIRECT(AllNamedFields[[#This Row],[Field Code]]))), 0, -4) -> 0 | G121: ooi_other_special_charges_1
C122: State and Local Sales tax [%] | D122: market_inputs_sales_tax_rate | F122: =OFFSET(INDIRECT(CELL("address", INDIRECT(AllNamedFields[[#This Row],[Field Code]]))), 0, -4) -> 0 | G122: ooi_other_special_charges_10
C123: Subscription fee [$/subscriber/year] | D123: ooi_subscription_fee | F123: =OFFSET(INDIRECT(CELL("address", INDIRECT(AllNamedFields[[#This Row],[Field Code]]))), 0, -4) -> 0 | G123: ooi_other_special_charges_2
C124: Term [years] | D124: pusp_term | F124: =OFFSET(INDIRECT(CELL("address", INDIRECT(AllNamedFields[[#This Row],[Field Code]]))), 0, -4) -> 0 | G124: ooi_other_special_charges_3
C125: Total number of type 1 sites [#] | D125: ooi_type_1_total_number_of_sites | F125: =OFFSET(INDIRECT(CELL("address", INDIRECT(AllNamedFields[[#This Row],[Field Code]]))), 0, -4) -> 0 | G125: ooi_other_special_charges_4
C126: Total number of type 1 stations [#] | D126: ooi_type_1_total_number_of_stations | F126: =OFFSET(INDIRECT(CELL("address", INDIRECT(AllNamedFields[[#This Row],[Field Code]]))), 0, -4) -> 0 | G126: ooi_other_special_charges_5
C127: Total number of type 2 sites [#] | D127: ooi_type_2_total_number_of_sites | F127: =OFFSET(INDIRECT(CELL("address", INDIRECT(AllNamedFields[[#This Row],[Field Code]]))), 0, -4) -> 0 | G127: ooi_other_special_charges_6
C128: Total number of type 2 stations [#] | D128: ooi_type_2_total_number_of_stations | F128: =OFFSET(INDIRECT(CELL("address", INDIRECT(AllNamedFields[[#This Row],[Field Code]]))), 0, -4) -> 0 | G128: ooi_other_special_charges_7
C129: Total number of type 3 sites [#] | D129: ooi_type_3_total_number_of_sites | F129: =OFFSET(INDIRECT(CELL("address", INDIRECT(AllNamedFields[[#This Row],[Field Code]]))), 0, -4) -> 0 | G129: ooi_other_special_charges_8
C130: Total number of type 3 stations [#] | D130: ooi_type_3_total_number_of_stations | F130: =OFFSET(INDIRECT(CELL("address", INDIRECT(AllNamedFields[[#This Row],[Field Code]]))), 0, -4) -> 0 | G130: ooi_other_special_charges_9
C131: Type 1 stations capture customer traffic revenue | D131: psp_type_1_stations_capture_customer_traffic_revenue | F131: =OFFSET(INDIRECT(CELL("address", INDIRECT(AllNamedFields[[#This Row],[Field Code]]))), 0, -4) -> Owner-Operator Cost of Debt (Long Term) [%] | G131: ooi_owner_operator_cost_of_debt
C132: Type 2 stations capture customer traffic revenue | D132: psp_type_2_stations_capture_customer_traffic_revenue | F132: =OFFSET(INDIRECT(CELL("address", INDIRECT(AllNamedFields[[#This Row],[Field Code]]))), 0, -4) -> Percent Equity Funded [%] | G132: ooi_percent_equity_funded
C133: Type 3 stations capture customer traffic revenue | D133: psp_type_3_stations_capture_customer_traffic_revenue | F133: =OFFSET(INDIRECT(CELL("address", INDIRECT(AllNamedFields[[#This Row],[Field Code]]))), 0, -4) -> 0 | G133: ooi_prepaid_expenses_1
C134: Use traffic-derived values [1] or direct inputs [2] | D134: market_inputs_use_traffic_derived_values_or_direct_inputs | F134: =OFFSET(INDIRECT(CELL("address", INDIRECT(AllNamedFields[[#This Row],[Field Code]]))), 0, -4) -> 0 | G134: ooi_prepaid_expenses_10
C135: [Station Type 1] Expected number of DC Fast Charging (Rural) sessions per car per trip | D135: market_inputs_expected_dc_sessions_per_car_per_trip | F135: =OFFSET(INDIRECT(CELL("address", INDIRECT(AllNamedFields[[#This Row],[Field Code]]))), 0, -4) -> 0 | G135: ooi_prepaid_expenses_2
C136: [Station Type 1] Initial average utilization [# of charging sessions per station per year] | D136: market_inputs_station_1_initial_average_utilization | F136: =OFFSET(INDIRECT(CELL("address", INDIRECT(AllNamedFields[[#This Row],[Field Code]]))), 0, -4) -> 0 | G136: ooi_prepaid_expenses_3
C137: [Station Type 2] Expected number of sessions per car per trip | D137: market_inputs_expected_level_2_sessions_per_car_per_trip | F137: =OFFSET(INDIRECT(CELL("address", INDIRECT(AllNamedFields[[#This Row],[Field Code]]))), 0, -4) -> 0 | G137: ooi_prepaid_expenses_4
C138: [Station Type 2] Initial average utilization [# of charging sessions per station per year] | D138: market_inputs_station_2_initial_average_utilization | F138: =OFFSET(INDIRECT(CELL("address", INDIRECT(AllNamedFields[[#This Row],[Field Code]]))), 0, -4) -> 0 | G138: ooi_prepaid_expenses_5
C139: [Station Type 3] Expected number of Not used sessions per car per trip | D139: market_inputs_expected_dc_fast_charging_local_sessions_per_car_per_trip | F139: =OFFSET(INDIRECT(CELL("address", INDIRECT(AllNamedFields[[#This Row],[Field Code]]))), 0, -4) -> 0 | G139: ooi_prepaid_expenses_6
C140: [Station Type 3] Initial average utilization [# of charging sessions per station per year] | D140: market_inputs_station_3_initial_average_utilization | F140: =OFFSET(INDIRECT(CELL("address", INDIRECT(AllNamedFields[[#This Row],[Field Code]]))), 0, -4) -> 0 | G140: ooi_prepaid_expenses_7
F141: =OFFSET(INDIRECT(CELL("address", INDIRECT(AllNamedFields[[#This Row],[Field Code]]))), 0, -4) -> 0 | G141: ooi_prepaid_expenses_8
F142: =OFFSET(INDIRECT(CELL("address", INDIRECT(AllNamedFields[[#This Row],[Field Code]]))), 0, -4) -> 0 | G142: ooi_prepaid_expenses_9
F143: =OFFSET(INDIRECT(CELL("address", INDIRECT(AllNamedFields[[#This Row],[Field Code]]))), 0, -4) -> Projected Shares Outstanding (Millions) | G143: ooi_projected_shares_outstanding
F144: =OFFSET(INDIRECT(CELL("address", INDIRECT(AllNamedFields[[#This Row],[Field Code]]))), 0, -4) -> 0 | G144: ooi_revolving_line_of_credit_1
F145: =OFFSET(INDIRECT(CELL("address", INDIRECT(AllNamedFields[[#This Row],[Field Code]]))), 0, -4) -> 0.03 | G145: ooi_revolving_line_of_credit_10
F146: =OFFSET(INDIRECT(CELL("address", INDIRECT(AllNamedFields[[#This Row],[Field Code]]))), 0, -4) -> 0 | G146: ooi_revolving_line_of_credit_2
F147: =OFFSET(INDIRECT(CELL("address", INDIRECT(AllNamedFields[[#This Row],[Field Code]]))), 0, -4) -> 0 | G147: ooi_revolving_line_of_credit_3
F148: =OFFSET(INDIRECT(CELL("address", INDIRECT(AllNamedFields[[#This Row],[Field Code]]))), 0, -4) -> 0 | G148: ooi_revolving_line_of_credit_4
F149: =OFFSET(INDIRECT(CELL("address", INDIRECT(AllNamedFields[[#This Row],[Field Code]]))), 0, -4) -> 0.03 | G149: ooi_revolving_line_of_credit_5
F150: =OFFSET(INDIRECT(CELL("address", INDIRECT(AllNamedFields[[#This Row],[Field Code]]))), 0, -4) -> 0.03 | G150: ooi_revolving_line_of_credit_6
F151: =OFFSET(INDIRECT(CELL("address", INDIRECT(AllNamedFields[[#This Row],[Field Code]]))), 0, -4) -> 0.03 | G151: ooi_revolving_line_of_credit_7
F152: =OFFSET(INDIRECT(CELL("address", INDIRECT(AllNamedFields[[#This Row],[Field Code]]))), 0, -4) -> 0.03 | G152: ooi_revolving_line_of_credit_8
F153: =OFFSET(INDIRECT(CELL("address", INDIRECT(AllNamedFields[[#This Row],[Field Code]]))), 0, -4) -> 0.03 | G153: ooi_revolving_line_of_credit_9
F154: =OFFSET(INDIRECT(CELL("address", INDIRECT(AllNamedFields[[#This Row],[Field Code]]))), 0, -4) -> Risk Free Rate | G154: ooi_risk_free_rate
F155: =OFFSET(INDIRECT(CELL("address", INDIRECT(AllNamedFields[[#This Row],[Field Code]]))), 0, -4) -> Sales, General, and Administrative [% of Revenue] | G155: ooi_sales_general_and_administrative
F156: =OFFSET(INDIRECT(CELL("address", INDIRECT(AllNamedFields[[#This Row],[Field Code]]))), 0, -4) -> Subscription fee [$/subscriber/year] | G156: ooi_subscription_fee
F157: =OFFSET(INDIRECT(CELL("address", INDIRECT(AllNamedFields[[#This Row],[Field Code]]))), 0, -4) -> Annual communications cost (average per type 1 site/year) [$] | G157: ooi_type_1_annual_communications_cost
F158: =OFFSET(INDIRECT(CELL("address", INDIRECT(AllNamedFields[[#This Row],[Field Code]]))), 0, -4) -> Annual compounded growth rate in electricity price (type 1 station) [%] | G158: ooi_type_1_annual_compounded_growth_rate_in_electricity_price
F159: =OFFSET(INDIRECT(CELL("address", INDIRECT(AllNamedFields[[#This Row],[Field Code]]))), 0, -4) -> Annual maintenance cost as percentage of equipment value (type 1 station) [%] | G159: ooi_type_1_annual_maintenance_cost_as_percentage_of_equipment_value
F160: =OFFSET(INDIRECT(CELL("address", INDIRECT(AllNamedFields[[#This Row],[Field Code]]))), 0, -4) -> Annual warranty cost (type 1 station) [%] | G160: ooi_type_1_annual_warranty
F161: =OFFSET(INDIRECT(CELL("address", INDIRECT(AllNamedFields[[#This Row],[Field Code]]))), 0, -4) -> Average charging energy per type 1 session [kWh/session] | G161: ooi_type_1_average_charging_energy_per_session
F162: =OFFSET(INDIRECT(CELL("address", INDIRECT(AllNamedFields[[#This Row],[Field Code]]))), 0, -4) -> Average time of charging session (type 1 station) [minutes] | G162: ooi_type_1_average_time_of_charging_session
F163: =OFFSET(INDIRECT(CELL("address", INDIRECT(AllNamedFields[[#This Row],[Field Code]]))), 0, -4) -> Charging station equipment cost per type 1 station [$] | G163: ooi_type_1_charging_station_equipment_cost
F164: =OFFSET(INDIRECT(CELL("address", INDIRECT(AllNamedFields[[#This Row],[Field Code]]))), 0, -4) -> Charging station type | G164: ooi_type_1_charging_station_type
F165: =OFFSET(INDIRECT(CELL("address", INDIRECT(AllNamedFields[[#This Row],[Field Code]]))), 0, -4) -> Construction and equipment installation cost per type 1 station [$] | G165: ooi_type_1_construction_and_equipment_installation_cost
F166: =OFFSET(INDIRECT(CELL("address", INDIRECT(AllNamedFields[[#This Row],[Field Code]]))), 0, -4) -> Demand charge (type 1 station) [$/kW/month] | G166: ooi_type_1_demand_charge
F167: =OFFSET(INDIRECT(CELL("address", INDIRECT(AllNamedFields[[#This Row],[Field Code]]))), 0, -4) -> Electric utility upgrades and grid interconnection cost per type 1 site [$] | G167: ooi_type_1_electric_utility_upgrades_and_grid_interconnection_cost
F168: =OFFSET(INDIRECT(CELL("address", INDIRECT(AllNamedFields[[#This Row],[Field Code]]))), 0, -4) -> Electricity retail price in first year (type 1 station) [$/kWh] | G168: ooi_type_1_electricity_retail_price_in_first_year
F169: =OFFSET(INDIRECT(CELL("address", INDIRECT(AllNamedFields[[#This Row],[Field Code]]))), 0, -4) -> Energy storage cost per type 1 site [$] | G169: ooi_type_1_energy_storage
F170: =OFFSET(INDIRECT(CELL("address", INDIRECT(AllNamedFields[[#This Row],[Field Code]]))), 0, -4) -> Host site identification and screening per type 1 site [$] | G170: ooi_type_1_host_site_identification_and_screening
F171: =OFFSET(INDIRECT(CELL("address", INDIRECT(AllNamedFields[[#This Row],[Field Code]]))), 0, -4) -> Host site lease or access cost (average per type 1 site/year) [$] | G171: ooi_type_1_host_site_lease_or_access_cost
F172: =OFFSET(INDIRECT(CELL("address", INDIRECT(AllNamedFields[[#This Row],[Field Code]]))), 0, -4) -> Lease and property transaction costs per type 1 site (one-time fee) [$] | G172: ooi_type_1_lease_and_property_transaction_costs
F173: =OFFSET(INDIRECT(CELL("address", INDIRECT(AllNamedFields[[#This Row],[Field Code]]))), 0, -4) -> Maximum number of charging sessions per type 1 station [sessions/year/station] | G173: ooi_type_1_maximum_number_charging_sessions_per_station
F174: =OFFSET(INDIRECT(CELL("address", INDIRECT(AllNamedFields[[#This Row],[Field Code]]))), 0, -4) -> Maximum power draw from the electrical grid (type 1 station) [kW/session] | G174: ooi_type_1_maximum_power_draw
F175: =OFFSET(INDIRECT(CELL("address", INDIRECT(AllNamedFields[[#This Row],[Field Code]]))), 0, -4) -> Per-charge event user fee (type 1 station) [$/session] | G175: ooi_type_1_per_charge_event_user_fee
F176: =OFFSET(INDIRECT(CELL("address", INDIRECT(AllNamedFields[[#This Row],[Field Code]]))), 0, -4) ->  | G176: ooi_type_1_per_charge_event_user_fee_revenue_model_applies
F177: =OFFSET(INDIRECT(CELL("address", INDIRECT(AllNamedFields[[#This Row],[Field Code]]))), 0, -4) -> Per-energy user fee (type 1 station) [$/kWh] | G177: ooi_type_1_per_energy_user_fee
F178: =OFFSET(INDIRECT(CELL("address", INDIRECT(AllNamedFields[[#This Row],[Field Code]]))), 0, -4) ->  | G178: ooi_type_1_per_energy_user_fee_revenue_model_applies
F179: =OFFSET(INDIRECT(CELL("address", INDIRECT(AllNamedFields[[#This Row],[Field Code]]))), 0, -4) -> Photovoltaic energy system cost per type 1 site [$] | G179: ooi_type_1_photovoltaic_energy_system
F180: =OFFSET(INDIRECT(CELL("address", INDIRECT(AllNamedFields[[#This Row],[Field Code]]))), 0, -4) -> Share of onsite energy generation (type 1 station) [%] | G180: ooi_type_1_share_onsite_energy_generation
F181: =OFFSET(INDIRECT(CELL("address", INDIRECT(AllNamedFields[[#This Row],[Field Code]]))), 0, -4) -> Total number of type 1 sites [#] | G181: ooi_type_1_total_number_of_sites
F182: =OFFSET(INDIRECT(CELL("address", INDIRECT(AllNamedFields[[#This Row],[Field Code]]))), 0, -4) -> Total number of type 1 stations [#] | G182: ooi_type_1_total_number_of_stations
F183: =OFFSET(INDIRECT(CELL("address", INDIRECT(AllNamedFields[[#This Row],[Field Code]]))), 0, -4) -> Annual communications cost (type 2 station) [$] | G183: ooi_type_2_annual_communications_cost
F184: =OFFSET(INDIRECT(CELL("address", INDIRECT(AllNamedFields[[#This Row],[Field Code]]))), 0, -4) -> Annual compounded growth rate in electricity price (type 2 station) [%] | G184: ooi_type_2_annual_compounded_growth_rate_in_electricity_price
F185: =OFFSET(INDIRECT(CELL("address", INDIRECT(AllNamedFields[[#This Row],[Field Code]]))), 0, -4) -> Annual maintenance cost as percentage of equipment value (type 2 station) [%] | G185: ooi_type_2_annual_maintenance_cost_as_percentage_of_equipment_value
F186: =OFFSET(INDIRECT(CELL("address", INDIRECT(AllNamedFields[[#This Row],[Field Code]]))), 0, -4) -> Annual warranty cost (type 2 station) [$] | G186: ooi_type_2_annual_warranty
F187: =OFFSET(INDIRECT(CELL("address", INDIRECT(AllNamedFields[[#This Row],[Field Code]]))), 0, -4) -> Average charging energy per type 2 session [kWh/session] | G187: ooi_type_2_average_charging_energy_per_session
F188: =OFFSET(INDIRECT(CELL("address", INDIRECT(AllNamedFields[[#This Row],[Field Code]]))), 0, -4) -> Average time of charging session (type 2 station) [minutes] | G188: ooi_type_2_average_time_of_charging_session
F189: =OFFSET(INDIRECT(CELL("address", INDIRECT(AllNamedFields[[#This Row],[Field Code]]))), 0, -4) -> Charging station equipment cost per type 2 station [$] | G189: ooi_type_2_charging_station_equipment_cost
F190: =OFFSET(INDIRECT(CELL("address", INDIRECT(AllNamedFields[[#This Row],[Field Code]]))), 0, -4) -> Charging station type | G190: ooi_type_2_charging_station_type
F191: =OFFSET(INDIRECT(CELL("address", INDIRECT(AllNamedFields[[#This Row],[Field Code]]))), 0, -4) -> Construction and equipment installation cost per type 2 station [$] | G191: ooi_type_2_construction_and_equipment_installation_cost
F192: =OFFSET(INDIRECT(CELL("address", INDIRECT(AllNamedFields[[#This Row],[Field Code]]))), 0, -4) -> Demand charge (type 2 station) [$/kW/month] | G192: ooi_type_2_demand_charge
F193: =OFFSET(INDIRECT(CELL("address", INDIRECT(AllNamedFields[[#This Row],[Field Code]]))), 0, -4) -> Electric utility upgrades and grid interconnection cost per type 2 site [$] | G193: ooi_type_2_electric_utility_upgrades_and_grid_interconnection_cost
F194: =OFFSET(INDIRECT(CELL("address", INDIRECT(AllNamedFields[[#This Row],[Field Code]]))), 0, -4) -> Electricity retail price in first year (type 2 station) [$/kWh] | G194: ooi_type_2_electricity_retail_price_in_first_year
F195: =OFFSET(INDIRECT(CELL("address", INDIRECT(AllNamedFields[[#This Row],[Field Code]]))), 0, -4) -> Energy storage cost per type 2 site [$] | G195: ooi_type_2_energy_storage
F196: =OFFSET(INDIRECT(CELL("address", INDIRECT(AllNamedFields[[#This Row],[Field Code]]))), 0, -4) -> Host site identification and screening per type 2 site [$] | G196: ooi_type_2_host_site_identification_and_screening
F197: =OFFSET(INDIRECT(CELL("address", INDIRECT(AllNamedFields[[#This Row],[Field Code]]))), 0, -4) -> Host site lease or access cost (average per type 2 site/year) [$] | G197: ooi_type_2_host_site_lease_or_access_cost
F198: =OFFSET(INDIRECT(CELL("address", INDIRECT(AllNamedFields[[#This Row],[Field Code]]))), 0, -4) -> Lease and property transaction costs per type 2 site (one-time fee) [$] | G198: ooi_type_2_lease_and_property_transaction_costs
F199: =OFFSET(INDIRECT(CELL("address", INDIRECT(AllNamedFields[[#This Row],[Field Code]]))), 0, -4) -> Maximum number of charging sessions per type 2 station [sessions/year/station] | G199: ooi_type_2_maximum_number_charging_sessions_per_station
F200: =OFFSET(INDIRECT(CELL("address", INDIRECT(AllNamedFields[[#This Row],[Field Code]]))), 0, -4) -> Maximum power draw from the electrical grid (type 2 station) [kW/session] | G200: ooi_type_2_maximum_power_draw
F201: =OFFSET(INDIRECT(CELL("address", INDIRECT(AllNamedFields[[#This Row],[Field Code]]))), 0, -4) -> Per-charge event user fee (type 2 station) [$/session] | G201: ooi_type_2_per_charge_event_user_fee
F202: =OFFSET(INDIRECT(CELL("address", INDIRECT(AllNamedFields[[#This Row],[Field Code]]))), 0, -4) ->  | G202: ooi_type_2_per_charge_event_user_fee_revenue_model_applies
... 69 more rows

Sheet Market Inputs
A1: ='Initial Settings'!B5 -> Corridor and Community DC Fast Charging Complex (Urban Site)
A4: Market Assumptions
A6: EV fuel economy [miles per kilowatt-hour] | C6: =IFERROR(INDIRECT(VLOOKUP(MID(CELL("filename",E6),FIND("]", CELL("filename",E6))+1,32) & "!" & ADDRESS(ROW(E6),COLUMN(E6),4,1), SensitivitySummary[[#All],[Field Lookup]:[Sensitivity Reference]], 2, FALSE)), E6) -> 3.5 | E6: 3.5
A7: Conventional vehicle replacement fuel economy [mpg] | C7: =IFERROR(INDIRECT(VLOOKUP(MID(CELL("filename",E7),FIND("]", CELL("filename",E7))+1,32) & "!" & ADDRESS(ROW(E7),COLUMN(E7),4,1), SensitivitySummary[[#All],[Field Lookup]:[Sensitivity Reference]], 2, FALSE)), E7) -> 30 | E7: 30
A8: Energy security benefit [$ per gasoline gallon displaced] | C8: =IFERROR(INDIRECT(VLOOKUP(MID(CELL("filename",E8),FIND("]", CELL("filename",E8))+1,32) & "!" & ADDRESS(ROW(E8),COLUMN(E8),4,1), SensitivitySummary[[#All],[Field Lookup]:[Sensitivity Reference]], 2, FALSE)), E8) -> 0.01 | E8: 0.01 | F8: Reference: | G8: 0.01 | H8: Oak Ridge finding for EV replacing a 40 mpg conventional vehicle
A9: Electrical grid benefit [$ per megawatt-hour] | C9: =IFERROR(INDIRECT(VLOOKUP(MID(CELL("filename",E9),FIND("]", CELL("filename",E9))+1,32) & "!" & ADDRESS(ROW(E9),COLUMN(E9),4,1), SensitivitySummary[[#All],[Field Lookup]:[Sensitivity Reference]], 2, FALSE)), E9) -> 14.58 | E9: 14.58 | F9: Reference: | G9: =(6300000/32400000)*0.075*1000 -> 14.58333333 | H9: From Ratepayer Impact Measure Test of Case Study 3 (public charging) from EPRI Report: % Benefit x Assumed rate of $0.075/kWh
A10: Electrical grid emissions rate [carbon dioxide equivalent pounds per megawatt-hour] | C10: =IFERROR(INDIRECT(VLOOKUP(MID(CELL("filename",E10),FIND("]", CELL("filename",E10))+1,32) & "!" & ADDRESS(ROW(E10),COLUMN(E10),4,1), SensitivitySummary[[#All],[Field Lookup]:[Sensitivity Reference]], 2, FALSE)), E10) -> 1004.2 | E10: 1004.2 | F10: Reference: | G10: 1004.2 | H10: Total CO2e per MWh for United States from EPA eGrid
A11: Climate benefit [$ per ton of greenhouse gas emissions abated] | C11: =IFERROR(INDIRECT(VLOOKUP(MID(CELL("filename",E11),FIND("]", CELL("filename",E11))+1,32) & "!" & ADDRESS(ROW(E11),COLUMN(E11),4,1), SensitivitySummary[[#All],[Field Lookup]:[Sensitivity Reference]], 2, FALSE)), E11) -> 42 | E11: 42 | F11: Key Factor: | G11: 0.008887 | H11: metric tons CO2 per gasoline gallon from EPA (2020 Social Cost of Carbon)
A12: State and Local Sales tax [%] | C12: =IFERROR(INDIRECT(VLOOKUP(MID(CELL("filename",E12),FIND("]", CELL("filename",E12))+1,32) & "!" & ADDRESS(ROW(E12),COLUMN(E12),4,1), SensitivitySummary[[#All],[Field Lookup]:[Sensitivity Reference]], 2, FALSE)), E12) -> 0 | E12: 0 | G12: Currently Not Supported
A13: Use traffic-derived values [1] or direct inputs [2] | E13: N
A15: [1] Traffic-derived Utilization Values
F16: =+'Initial Settings'!$B$6+1 -> 2018 | G16: =F16+1 -> 2019 | H16: =G16+1 -> 2020 | I16: 2021 | J16: 2022 | K16: 2023 | L16: 2024 | M16: 2025 | N16: 2026 | O16: 2027
A17: Annual average traffic volume of route in first year [# of cars] | C17: =IFERROR(INDIRECT(VLOOKUP(MID(CELL("filename",E17),FIND("]", CELL("filename",E17))+1,32) & "!" & ADDRESS(ROW(E17),COLUMN(E17),4,1), SensitivitySummary[[#All],[Field Lookup]:[Sensitivity Reference]], 2, FALSE)), E17) -> 1000000 | E17: 1000000
A18: Projected annual growth rate in traffic volume [%] | C18: =IFERROR(INDIRECT(VLOOKUP(MID(CELL("filename",E18),FIND("]", CELL("filename",E18))+1,32) & "!" & ADDRESS(ROW(E18),COLUMN(E18),4,1), SensitivitySummary[[#All],[Field Lookup]:[Sensitivity Reference]], 2, FALSE)), E18) -> 0 | E18: 0
A19: Annual average traffic volume of route [# of cars] | F19: =C17 -> 1000000 | G19: =ROUND(F19*(1+$C$18),0) -> 1000000 | H19: =ROUND(G19*(1+$C$18),0) -> 1000000 | I19: 1000000 | J19: 1000000 | K19: 1000000 | L19: 1000000 | M19: 1000000 | N19: 1000000 | O19: 1000000
A20: EVs as a percentage of total registered vehicles in first year [%] | C20: =IFERROR(INDIRECT(VLOOKUP(MID(CELL("filename",E20),FIND("]", CELL("filename",E20))+1,32) & "!" & ADDRESS(ROW(E20),COLUMN(E20),4,1), SensitivitySummary[[#All],[Field Lookup]:[Sensitivity Reference]], 2, FALSE)), E20) -> 0.0065 | E20: 0.0065
A21: Projected annual growth rate of EVs as a percentage of total registered vehicles [%] | C21: =IFERROR(INDIRECT(VLOOKUP(MID(CELL("filename",E21),FIND("]", CELL("filename",E21))+1,32) & "!" & ADDRESS(ROW(E21),COLUMN(E21),4,1), SensitivitySummary[[#All],[Field Lookup]:[Sensitivity Reference]], 2, FALSE)), E21) -> 0.1 | E21: =100/12*0.012 -> 0.1
A22: EVs as a percentage of total registered vehicles [%] | F22: =C20 -> 0.0065 | G22: =F22*(1+$C$21) -> 0.00715 | H22: =G22*(1+$C$21) -> 0.007865 | I22: 0.0086515 | J22: 0.00951665 | K22: 0.010468315 | L22: 0.0115151465 | M22: 0.01266666115 | N22: 0.01393332727 | O22: 0.01532665999
A23: Annual average EV traffic [# of cars] | F23: =F19*F22 -> 6500 | G23: 7150 | H23: 7865 | I23: 8651.5 | J23: 9516.65 | K23: 10468.315 | L23: 11515.1465 | M23: 12666.66115 | N23: 13933.32727 | O23: 15326.65999
A25: ="[Station Type 1] Expected number of " & 'Owner-Operator Inputs'!E10 & " sessions per car per trip" -> [Station Type 1] Expected number of DC Fast Charging (Urban) sessions per car per trip | C25: =IFERROR(INDIRECT(VLOOKUP(MID(CELL("filename",E25),FIND("]", CELL("filename",E25))+1,32) & "!" & ADDRESS(ROW(E25),COLUMN(E25),4,1), SensitivitySummary[[#All],[Field Lookup]:[Sensitivity Reference]], 2, FALSE)), E25) -> 1 | E25: 1
A26: ="[Station Type 1] Total number of " & 'Owner-Operator Inputs'!E10 & " sessions" -> [Station Type 1] Total number of DC Fast Charging (Urban) sessions | F26: =ROUND(F$23*$C25,) -> 6500 | G26: =ROUND(G$23*$C25,) -> 7150 | H26: 7865 | I26: 8652 | J26: 9517 | K26: 10468 | L26: 11515 | M26: 12667 | N26: 13933 | O26: 15327
A27: ="[Station Type 2] Expected number of " & 'Owner-Operator Inputs'!E85 & " sessions per car per trip" -> [Station Type 2] Expected number of sessions per car per trip | C27: =IFERROR(INDIRECT(VLOOKUP(MID(CELL("filename",E27),FIND("]", CELL("filename",E27))+1,32) & "!" & ADDRESS(ROW(E27),COLUMN(E27),4,1), SensitivitySummary[[#All],[Field Lookup]:[Sensitivity Reference]], 2, FALSE)), E27) -> 0 | E27: 0
A28: ="[Station Type 2] Total number of " & 'Owner-Operator Inputs'!E85 & " sessions" -> [Station Type 2] Total number of sessions | F28: =ROUND(C$23*$C27,) -> 0 | G28: =ROUND(D$23*$C27,) -> 0 | H28: 0 | I28: 0 | J28: 0 | K28: 0 | L28: 0 | M28: 0 | N28: 0 | O28: 0
A29: ="[Station Type 3] Expected number of " & 'Owner-Operator Inputs'!E160 & " sessions per car per trip" -> [Station Type 3] Expected number of Not used sessions per car per trip | C29: =IFERROR(INDIRECT(VLOOKUP(MID(CELL("filename",E29),FIND("]", CELL("filename",E29))+1,32) & "!" & ADDRESS(ROW(E29),COLUMN(E29),4,1), SensitivitySummary[[#All],[Field Lookup]:[Sensitivity Reference]], 2, FALSE)), E29) -> 0 | E29: 0
A30: ="[Station Type 3] Total number of " & 'Owner-Operator Inputs'!E160 & " sessions" -> [Station Type 3] Total number of Not used sessions | F30: =ROUND(C$23*$C29,) -> 0 | G30: =ROUND(D$23*$C29,) -> 0 | H30: 0 | I30: 0 | J30: 0 | K30: 0 | L30: 0 | M30: 0 | N30: 0 | O30: 0
A32: [2] Direct Utilization Values
F34: =+'Initial Settings'!$B$6+1 -> 2018 | G34: =F34+1 -> 2019 | H34: 2020 | I34: 2021 | J34: 2022 | K34: 2023 | L34: 2024 | M34: 2025 | N34: 2026 | O34: 2027
A35: Expected annual utilization growth rate [%] | C35: =IFERROR(INDIRECT(VLOOKUP(MID(CELL("filename",E35),FIND("]", CELL("filename",E35))+1,32) & "!" & ADDRESS(ROW(E35),COLUMN(E35),4,1), SensitivitySummary[[#All],[Field Lookup]:[Sensitivity Reference]], 2, FALSE)), E35) -> 0.1 | E35: 0.1
A36: [Station Type 1] Initial average utilization [# of charging sessions per station per year] | C36: =IFERROR(INDIRECT(VLOOKUP(MID(CELL("filename",E36),FIND("]", CELL("filename",E36))+1,32) & "!" & ADDRESS(ROW(E36),COLUMN(E36),4,1), SensitivitySummary[[#All],[Field Lookup]:[Sensitivity Reference]], 2, FALSE)), E36) -> 5548 | E36: 5548
A37: ="[Station Type 1] Total number of " & 'Owner-Operator Inputs'!E10 & " sessions" -> [Station Type 1] Total number of DC Fast Charging (Urban) sessions | F37: =$C$36*OFFSET(ooi_type_1_total_number_of_stations, 0, -2) -> 5548 | G37: =ROUND(F37*(1+$C$35),0) -> 6103 | H37: 6713 | I37: 7384 | J37: 8122 | K37: 8934 | L37: 9827 | M37: 10810 | N37: 11891 | O37: 13080
A38: [Station Type 2] Initial average utilization [# of charging sessions per station per year] | C38: =IFERROR(INDIRECT(VLOOKUP(MID(CELL("filename",E38),FIND("]", CELL("filename",E38))+1,32) & "!" & ADDRESS(ROW(E38),COLUMN(E38),4,1), SensitivitySummary[[#All],[Field Lookup]:[Sensitivity Reference]], 2, FALSE)), E38) -> 0 | E38: 0
A39: ="[Station Type 2] Total number of " & 'Owner-Operator Inputs'!E85 & " sessions" -> [Station Type 2] Total number of sessions | F39: =$C$38*OFFSET(ooi_type_2_total_number_of_stations, 0, -2) -> 0 | G39: =ROUND(F39*(1+$C$35),0) -> 0 | H39: 0 | I39: 0 | J39: 0 | K39: 0 | L39: 0 | M39: 0 | N39: 0 | O39: 0
A40: [Station Type 3] Initial average utilization [# of charging sessions per station per year] | C40: =IFERROR(INDIRECT(VLOOKUP(MID(CELL("filename",E40),FIND("]", CELL("filename",E40))+1,32) & "!" & ADDRESS(ROW(E40),COLUMN(E40),4,1), SensitivitySummary[[#All],[Field Lookup]:[Sensitivity Reference]], 2, FALSE)), E40) -> 0 | E40: 0
A41: ="[Station Type 3] Total number of " & 'Owner-Operator Inputs'!E160 & " sessions" -> [Station Type 3] Total number of Not used sessions | F41: =$C$40*OFFSET(ooi_type_3_total_number_of_stations, 0, -2) -> 0 | G41: =ROUND(F41*(1+$C$35),0) -> 0 | H41: 0 | I41: 0 | J41: 0 | K41: 0 | L41: 0 | M41: 0 | N41: 0 | O41: 0
A43: Summary
F45: =+'Initial Settings'!$B$6+1 -> 2018 | G45: =F45+1 -> 2019 | H45: 2020 | I45: 2021 | J45: 2022 | K45: 2023 | L45: 2024 | M45: 2025 | N45: 2026 | O45: 2027
A46: ="[Station Type 1] Total number of " & 'Owner-Operator Inputs'!E10 & " sessions" -> [Station Type 1] Total number of DC Fast Charging (Urban) sessions | F46: =IF($E$13="Y",F26,F37) -> 5548 | G46: 6103 | H46: 6713 | I46: 7384 | J46: 8122 | K46: 8934 | L46: 9827 | M46: 10810 | N46: 11891 | O46: 13080
A47: ="[Station Type 2] Total number of " & 'Owner-Operator Inputs'!E85 & " sessions" -> [Station Type 2] Total number of sessions | F47: =IF($E$13="Y",F28,F39) -> 0 | G47: 0 | H47: 0 | I47: 0 | J47: 0 | K47: 0 | L47: 0 | M47: 0 | N47: 0 | O47: 0
A48: ="[Station Type 3] Total number of " & 'Owner-Operator Inputs'!E160 & " sessions" -> [Station Type 3] Total number of Not used sessions | F48: =IF($E$13="Y",F30,F41) -> 0 | G48: 0 | H48: 0 | I48: 0 | J48: 0 | K48: 0 | L48: 0 | M48: 0 | N48: 0 | O48: 0
A49: Total expected charging session per year | F49: =SUM(F46:F48) -> 5548 | G49: 6103 | H49: 6713 | I49: 7384 | J49: 8122 | K49: 8934 | L49: 9827 | M49: 10810 | N49: 11891 | O49: 13080

Sheet Owner-Operator Inputs
A1: ='Initial Settings'!$B$5 -> Corridor and Community DC Fast Charging Complex (Urban Site)
A4: Charging Station Assumptions
A6: Expected equipment lifespan [years] - All equipment types | E6: 10
A8: Charging Station Assumptions - Type 1
A10: Charging station type | E10: DC Fast Charging (Urban)
A12: Charging Station Capital Cost
A13: Installation and siting costs
A14: Charging station equipment cost per type 1 station [$] | C14: =IFERROR(INDIRECT(VLOOKUP(MID(CELL("filename",E14),FIND("]", CELL("filename",E14))+1,32) & "!" & ADDRESS(ROW(E14),COLUMN(E14),4,1), SensitivitySummary[[#All],[Field Lookup]:[Sensitivity Reference]], 2, FALSE)), E14) -> 25000 | E14: 25000
A15: Installation and siting costs
A16: Construction and equipment installation cost per type 1 station [$] | C16: =IFERROR(INDIRECT(VLOOKUP(MID(CELL("filename",E16),FIND("]", CELL("filename",E16))+1,32) & "!" & ADDRESS(ROW(E16),COLUMN(E16),4,1), SensitivitySummary[[#All],[Field Lookup]:[Sensitivity Reference]], 2, FALSE)), E16) -> 25000 | E16: 25000
A17: Energy storage cost per type 1 site [$] | C17: =IFERROR(INDIRECT(VLOOKUP(MID(CELL("filename",E17),FIND("]", CELL("filename",E17))+1,32) & "!" & ADDRESS(ROW(E17),COLUMN(E17),4,1), SensitivitySummary[[#All],[Field Lookup]:[Sensitivity Reference]], 2, FALSE)), E17) -> 0 | E17: 0
A18: Photovoltaic energy system cost per type 1 site [$] | C18: =IFERROR(INDIRECT(VLOOKUP(MID(CELL("filename",E18),FIND("]", CELL("filename",E18))+1,32) & "!" & ADDRESS(ROW(E18),COLUMN(E18),4,1), SensitivitySummary[[#All],[Field Lookup]:[Sensitivity Reference]], 2, FALSE)), E18) -> 0 | E18: 0
A19: Electric utility upgrades and grid interconnection cost per type 1 site [$] | C19: =IFERROR(INDIRECT(VLOOKUP(MID(CELL("filename",E19),FIND("]", CELL("filename",E19))+1,32) & "!" & ADDRESS(ROW(E19),COLUMN(E19),4,1), SensitivitySummary[[#All],[Field Lookup]:[Sensitivity Reference]], 2, FALSE)), E19) -> 32000 | E19: 32000
A20: Lease and property transaction costs per type 1 site (one-time fee) [$] | C20: =IFERROR(INDIRECT(VLOOKUP(MID(CELL("filename",E20),FIND("]", CELL("filename",E20))+1,32) & "!" & ADDRESS(ROW(E20),COLUMN(E20),4,1), SensitivitySummary[[#All],[Field Lookup]:[Sensitivity Reference]], 2, FALSE)), E20) -> 3000 | E20: 3000
A21: Host site identification and screening per type 1 site [$] | C21: =IFERROR(INDIRECT(VLOOKUP(MID(CELL("filename",E21),FIND("]", CELL("filename",E21))+1,32) & "!" & ADDRESS(ROW(E21),COLUMN(E21),4,1), SensitivitySummary[[#All],[Field Lookup]:[Sensitivity Reference]], 2, FALSE)), E21) -> 7500 | E21: 7500
A23: Total number of type 1 stations [#] | C23: =IFERROR(INDIRECT(VLOOKUP(MID(CELL("filename",E23),FIND("]", CELL("filename",E23))+1,32) & "!" & ADDRESS(ROW(E23),COLUMN(E23),4,1), SensitivitySummary[[#All],[Field Lookup]:[Sensitivity Reference]], 2, FALSE)), E23) -> 1 | E23: 1
A24: Total number of type 1 sites [#] | C24: =IFERROR(INDIRECT(VLOOKUP(MID(CELL("filename",E24),FIND("]", CELL("filename",E24))+1,32) & "!" & ADDRESS(ROW(E24),COLUMN(E24),4,1), SensitivitySummary[[#All],[Field Lookup]:[Sensitivity Reference]], 2, FALSE)), E24) -> 1 | E24: 1
A26: Total initial Type 1 station capital required [$] | E26: =((C14+C16)*C23)+((C17+C18+C19+C20+C21)*C24) -> 92500
A28: Annual depreciation [$] | E28: =E26/$E$6 -> 9250
F30: =+'Initial Settings'!$B$6+1 -> 2018 | G30: =F30+1 -> 2019 | H30: =G30+1 -> 2020 | I30: 2021 | J30: 2022 | K30: 2023 | L30: 2024 | M30: 2025 | N30: 2026 | O30: 2027
A31: Charging Station Utilization
A32: Maximum number of charging sessions per type 1 station [sessions/year/station] | C32: =IFERROR(INDIRECT(VLOOKUP(MID(CELL("filename",E32),FIND("]", CELL("filename",E32))+1,32) & "!" & ADDRESS(ROW(E32),COLUMN(E32),4,1), SensitivitySummary[[#All],[Field Lookup]:[Sensitivity Reference]], 2, FALSE)), E32) -> 12754.02299 | E32: 12754.02299
A33: Maximum number of charging sessions [sessions/year] | F33: =$C32*$C23 -> 12754.02299 | G33: =$C32*$C23 -> 12754.02299 | H33: 12754.02299 | I33: 12754.02299 | J33: 12754.02299 | K33: 12754.02299 | L33: 12754.02299 | M33: 12754.02299 | N33: 12754.02299 | O33: 12754.02299
A34: Projected number of charging sessions[sessions/year] | F34: =IF(COLUMN(F$6)-COLUMN($F$6)<$E$6,MIN(F33,'Market Inputs'!F46),0) -> 5548 | G34: =IF(COLUMN(G$6)-COLUMN($F$6)<$E$6,MIN(G33,'Market Inputs'!G46),0) -> 6103 | H34: =IF(COLUMN(H$6)-COLUMN($F$6)<$E$6,MIN(H33,'Market Inputs'!H46),0) -> 6713 | I34: =IF(COLUMN(I$6)-COLUMN($F$6)<$E$6,MIN(I33,'Market Inputs'!I46),0) -> 7384 | J34: =IF(COLUMN(J$6)-COLUMN($F$6)<$E$6,MIN(J33,'Market Inputs'!J46),0) -> 8122 | K34: =IF(COLUMN(K$6)-COLUMN($F$6)<$E$6,MIN(K33,'Market Inputs'!K46),0) -> 8934 | L34: =IF(COLUMN(L$6)-COLUMN($F$6)<$E$6,MIN(L33,'Market Inputs'!L46),0) -> 9827 | M34: =IF(COLUMN(M$6)-COLUMN($F$6)<$E$6,MIN(M33,'Market Inputs'!M46),0) -> 10810 | N34: =IF(COLUMN(N$6)-COLUMN($F$6)<$E$6,MIN(N33,'Market Inputs'!N46),0) -> 11891 | O34: =IF(COLUMN(O$6)-COLUMN($F$6)<$E$6,MIN(O33,'Market Inputs'!O46),0) -> 12754.02299
A36: Energy Usage
A37: Average charging energy per type 1 session [kWh/session] | C37: =IFERROR(INDIRECT(VLOOKUP(MID(CELL("filename",E37),FIND("]", CELL("filename",E37))+1,32) & "!" & ADDRESS(ROW(E37),COLUMN(E37),4,1), SensitivitySummary[[#All],[Field Lookup]:[Sensitivity Reference]], 2, FALSE)), E37) -> 9.247656813 | E37: 9.247656813
A38: Energy used/sold [kWh/year] | F38: =IF(COLUMN(F$6)-COLUMN($F$6)<$E$6,F34*$C37,0) -> 51306 | G38: =IF(COLUMN(G$6)-COLUMN($F$6)<$E$6,G34*$C37,0) -> 56438.44953 | H38: 62079.52019 | I38: 68284.69791 | J38: 75109.46864 | K38: 82618.56597 | L38: 90876.7235 | M38: 99967.17015 | N38: 109963.8872 | O38: 117944.8276
A39: Maximum power draw from the electrical grid (type 1 station) [kW/session] | C39: =IFERROR(INDIRECT(VLOOKUP(MID(CELL("filename",E39),FIND("]", CELL("filename",E39))+1,32) & "!" & ADDRESS(ROW(E39),COLUMN(E39),4,1), SensitivitySummary[[#All],[Field Lookup]:[Sensitivity Reference]], 2, FALSE)), E39) -> 50 | E39: 50
A40: Average time of charging session (type 1 station) [minutes] | C40: =IFERROR(INDIRECT(VLOOKUP(MID(CELL("filename",E40),FIND("]", CELL("filename",E40))+1,32) & "!" & ADDRESS(ROW(E40),COLUMN(E40),4,1), SensitivitySummary[[#All],[Field Lookup]:[Sensitivity Reference]], 2, FALSE)), E40) -> 11 | E40: 11
F42: =+'Initial Settings'!$B$6+1 -> 2018 | G42: =F42+1 -> 2019 | H42: 2020 | I42: 2021 | J42: 2022 | K42: 2023 | L42: 2024 | M42: 2025 | N42: 2026 | O42: 2027
A43: Charging Station Revenue [Operating Revenue - Direct]
D44: Revenue Model Applies?
A45: Per-energy user fee (type 1 station) [$/kWh] | C45: =IFERROR(INDIRECT(VLOOKUP(MID(CELL("filename",E45),FIND("]", CELL("filename",E45))+1,32) & "!" & ADDRESS(ROW(E45),COLUMN(E45),4,1), SensitivitySummary[[#All],[Field Lookup]:[Sensitivity Reference]], 2, FALSE)), E45) -> 0.6 | D45: Y | E45: 0.6
A46: Per-energy revenue | F46: =IF($D45="Y",IF(COLUMN(F$6)-COLUMN($F$6)<$E$6,F38*$C45,0),0) -> 30783.6 | G46: =IF($D45="Y",IF(COLUMN(G$6)-COLUMN($F$6)<$E$6,G38*$C45,0),0) -> 33863.06972 | H46: 37247.71211 | I46: 40970.81875 | J46: 45065.68118 | K46: 49571.13958 | L46: 54526.0341 | M46: 59980.30209 | N46: 65978.3323 | O46: 70766.89655
A47: Per-charge event user fee (type 1 station) [$/session] | C47: =IFERROR(INDIRECT(VLOOKUP(MID(CELL("filename",E47),FIND("]", CELL("filename",E47))+1,32) & "!" & ADDRESS(ROW(E47),COLUMN(E47),4,1), SensitivitySummary[[#All],[Field Lookup]:[Sensitivity Reference]], 2, FALSE)), E47) -> 0 | D47: Y | E47: 0
A48: Per-charge event revenue | F48: =IF($D47="Y",IF(COLUMN(F$6)-COLUMN($F$6)<$E$6,F34*$C47,0),0) -> 0 | G48: =IF($D47="Y",IF(COLUMN(G$6)-COLUMN($F$6)<$E$6,G34*$C47,0),0) -> 0 | H48: 0 | I48: 0 | J48: 0 | K48: 0 | L48: 0 | M48: 0 | N48: 0 | O48: 0
A50: Total charging station revenue | F50: =SUM(F46:F48) -> 30783.6 | G50: 33863.06972 | H50: 37247.71211 | I50: 40970.81875 | J50: 45065.68118 | K50: 49571.13958 | L50: 54526.0341 | M50: 59980.30209 | N50: 65978.3323 | O50: 70766.89655
F52: =+'Initial Settings'!$B$6+1 -> 2018 | G52: =F52+1 -> 2019 | H52: 2020 | I52: 2021 | J52: 2022 | K52: 2023 | L52: 2024 | M52: 2025 | N52: 2026 | O52: 2027
A53: Charging Station Operating Cost [Cost of Sales]
A54: Electricity
A55: Electricity retail price in first year (type 1 station) [$/kWh] | C55: =IFERROR(INDIRECT(VLOOKUP(MID(CELL("filename",E55),FIND("]", CELL("filename",E55))+1,32) & "!" & ADDRESS(ROW(E55),COLUMN(E55),4,1), SensitivitySummary[[#All],[Field Lookup]:[Sensitivity Reference]], 2, FALSE)), E55) -> 0.2 | E55: 0.2
A56: Monthly electricity fixed charge (type 1 site) [$] | C56: =IFERROR(INDIRECT(VLOOKUP(MID(CELL("filename",E56),FIND("]", CELL("filename",E56))+1,32) & "!" & ADDRESS(ROW(E56),COLUMN(E56),4,1), SensitivitySummary[[#All],[Field Lookup]:[Sensitivity Reference]], 2, FALSE)), E56) -> 150 | E56: 150
A57: Annual compounded growth rate in electricity price (type 1 station) [%] | C57: =IFERROR(INDIRECT(VLOOKUP(MID(CELL("filename",E57),FIND("]", CELL("filename",E57))+1,32) & "!" & ADDRESS(ROW(E57),COLUMN(E57),4,1), SensitivitySummary[[#All],[Field Lookup]:[Sensitivity Reference]], 2, FALSE)), E57) -> 0.0025 | E57: 0.0025
A58: Share of onsite energy generation (type 1 station) [%] | C58: =IFERROR(INDIRECT(VLOOKUP(MID(CELL("filename",E58),FIND("]", CELL("filename",E58))+1,32) & "!" & ADDRESS(ROW(E58),COLUMN(E58),4,1), SensitivitySummary[[#All],[Field Lookup]:[Sensitivity Reference]], 2, FALSE)), E58) -> 0 | E58: 0
A59: Electricity retail price [$/kWh] | F59: =C55 -> 0.2 | G59: =F59*(1+$C57) -> 0.2005 | H59: =G59*(1+$C57) -> 0.20100125 | I59: 0.2015037531 | J59: 0.2020075125 | K59: 0.2025125313 | L59: 0.2030188126 | M59: 0.2035263596 | N59: 0.2040351755 | O59: 0.2045452635
A60: Energy cost (based on kWh) | F60: =IF(COLUMN(F$6)-COLUMN($F$6)<$E$6,F38*F59*(1-$C$58)+$C$56*12,0) -> 12061.2 | G60: =IF(COLUMN(G$6)-COLUMN($F$6)<$E$6,G38*G59*(1-$C$58)+$C$56*12,0) -> 13115.90913 | H60: 14278.06116 | I60: 15559.62291 | J60: 16972.67693 | K60: 18531.29493 | L60: 20249.6845 | M60: 22145.95423 | N60: 24236.50102 | O60: 25925.05584
A61: Demand charge (type 1 station) [$/kW/month] | C61: =IFERROR(INDIRECT(VLOOKUP(MID(CELL("filename",E61),FIND("]", CELL("filename",E61))+1,32) & "!" & ADDRESS(ROW(E61),COLUMN(E61),4,1), SensitivitySummary[[#All],[Field Lookup]:[Sensitivity Reference]], 2, FALSE)), E61) -> 11.48 | E61: 11.48
A62: Demand charge threshold (type 1 station) [kWh/month] | C62: =IFERROR(INDIRECT(VLOOKUP(MID(CELL("filename",E62),FIND("]", CELL("filename",E62))+1,32) & "!" & ADDRESS(ROW(E62),COLUMN(E62),4,1), SensitivitySummary[[#All],[Field Lookup]:[Sensitivity Reference]], 2, FALSE)), E62) -> 0 | E62: 0
A63: Maximum load at site excluding charging stations (type 1 station) [kW] | C63: =IFERROR(INDIRECT(VLOOKUP(MID(CELL("filename",E63),FIND("]", CELL("filename",E63))+1,32) & "!" & ADDRESS(ROW(E63),COLUMN(E63),4,1), SensitivitySummary[[#All],[Field Lookup]:[Sensitivity Reference]], 2, FALSE)), E63) -> 0 | E63: 0
A64: Power cost (based on kW) | F64: =IF(COLUMN(F$6)-COLUMN($F$6)<$E$6,IF(F38/12>$C$62,($C$63+$C23*$C39)*12*$C61, 0),0) -> 6888 | G64: =IF(COLUMN(G$6)-COLUMN($F$6)<$E$6,IF(G38/12>$C$62,($C$63+$C23*$C39)*12*$C61, 0),0) -> 6888 | H64: =IF(COLUMN(H$6)-COLUMN($F$6)<$E$6,IF(H38/12>$C$62,($C$63+$C23*$C39)*12*$C61, 0),0) -> 6888 | I64: 6888 | J64: 6888 | K64: 6888 | L64: 6888 | M64: 6888 | N64: 6888 | O64: 6888
A65: Maintenance cost
A66: Annual maintenance cost as percentage of equipment value (type 1 station) [%] | C66: =IFERROR(INDIRECT(VLOOKUP(MID(CELL("filename",E66),FIND("]", CELL("filename",E66))+1,32) & "!" & ADDRESS(ROW(E66),COLUMN(E66),4,1), SensitivitySummary[[#All],[Field Lookup]:[Sensitivity Reference]], 2, FALSE)), E66) -> 0.12144 | E66: 0.12144
A67: Maintenance cost (annual) | F67: =IF(COLUMN(F$6)-COLUMN($F$6)<$E$6,$C66*$C14*$C23,0) -> 3036 | G67: 3036 | H67: 3036 | I67: 3036 | J67: 3036 | K67: 3036 | L67: 3036 | M67: 3036 | N67: 3036 | O67: 3036
A68: Communications cost
A69: Annual communications cost (average per type 1 site/year) [$] | C69: =IFERROR(INDIRECT(VLOOKUP(MID(CELL("filename",E69),FIND("]", CELL("filename",E69))+1,32) & "!" & ADDRESS(ROW(E69),COLUMN(E69),4,1), SensitivitySummary[[#All],[Field Lookup]:[Sensitivity Reference]], 2, FALSE)), E69) -> 1200 | E69: =100*12 -> 1200
A70: Communications cost (annual) | F70: =IF(COLUMN(F$6)-COLUMN($F$6)<$E$6,$C69*$C24,0) -> 1200 | G70: 1200 | H70: 1200 | I70: 1200 | J70: 1200 | K70: 1200 | L70: 1200 | M70: 1200 | N70: 1200 | O70: 1200
A71: Warrant Cost
A72: Annual warranty cost (type 1 station) [%] | C72: =IFERROR(INDIRECT(VLOOKUP(MID(CELL("filename",E72),FIND("]", CELL("filename",E72))+1,32) & "!" & ADDRESS(ROW(E72),COLUMN(E72),4,1), SensitivitySummary[[#All],[Field Lookup]:[Sensitivity Reference]], 2, FALSE)), E72) -> 0.12 | E72: 0.12
A73: Warrant cost (annual) | F73: =IF(COLUMN(F$6)-COLUMN($F$6)<$E$6,$C14*$C72*$C23,0) -> 3000 | G73: =IF(COLUMN(G$6)-COLUMN($F$6)<$E$6,$C14*$C72*$C23,0) -> 3000 | H73: 3000 | I73: 3000 | J73: 3000 | K73: 3000 | L73: 3000 | M73: 3000 | N73: 3000 | O73: 3000
A74: Host site lease or access cost
A75: Host site lease or access cost (average per type 1 site/year) [$] | C75: =IFERROR(INDIRECT(VLOOKUP(MID(CELL("filename",E75),FIND("]", CELL("filename",E75))+1,32) & "!" & ADDRESS(ROW(E75),COLUMN(E75),4,1), SensitivitySummary[[#All],[Field Lookup]:[Sensitivity Reference]], 2, FALSE)), E75) -> 500 | E75: =500*ooi_type_1_total_number_of_stations -> 500
A76: Host site lease or access cost (annual) | F76: =IF(COLUMN(F$6)-COLUMN($F$6)<$E$6,$C75*$C24,0) -> 500 | G76: =IF(COLUMN(G$6)-COLUMN($F$6)<$E$6,$C75*$C24,0) -> 500 | H76: 500 | I76: 500 | J76: 500 | K76: 500 | L76: 500 | M76: 500 | N76: 500 | O76: 500
A78: Total charging operating cost | F78: =SUM(F60:F76) -> 26685.2 | G78: 27739.90913 | H78: 28902.06116 | I78: 30183.62291 | J78: 31596.67693 | K78: 33155.29493 | L78: 34873.6845 | M78: 36769.95423 | N78: 38860.50102 | O78: 40549.05584
F80: =+'Initial Settings'!$B$6+1 -> 2018 | G80: =F80+1 -> 2019 | H80: 2020 | I80: 2021 | J80: 2022 | K80: 2023 | L80: 2024 | M80: 2025 | N80: 2026 | O80: 2027
A81: Total charging station operating margin | F81: =F50-F78 -> 4098.4 | G81: 6123.160588 | H81: 8345.650955 | I81: 10787.19584 | J81: 13469.00426 | K81: 16415.84466 | L81: 19652.3496 | M81: 23210.34787 | N81: 27117.83128 | O81: 30217.84072
A83: Charging Station Assumptions - Type 2
A85: Charging station type
A87: Charging Station Capital Cost
A88: Equipment costs
A89: Charging station equipment cost per type 2 station [$] | C89: =IFERROR(INDIRECT(VLOOKUP(MID(CELL("filename",E89),FIND("]", CELL("filename",E89))+1,32) & "!" & ADDRESS(ROW(E89),COLUMN(E89),4,1), SensitivitySummary[[#All],[Field Lookup]:[Sensitivity Reference]], 2, FALSE)), E89) -> 0 | E89: 0
A90: Installation and siting costs
A91: Construction and equipment installation cost per type 2 station [$] | C91: =IFERROR(INDIRECT(VLOOKUP(MID(CELL("filename",E91),FIND("]", CELL("filename",E91))+1,32) & "!" & ADDRESS(ROW(E91),COLUMN(E91),4,1), SensitivitySummary[[#All],[Field Lookup]:[Sensitivity Reference]], 2, FALSE)), E91) -> 0 | E91: 0
A92: Energy storage cost per type 2 site [$] | C92: =IFERROR(INDIRECT(VLOOKUP(MID(CELL("filename",E92),FIND("]", CELL("filename",E92))+1,32) & "!" & ADDRESS(ROW(E92),COLUMN(E92),4,1), SensitivitySummary[[#All],[Field Lookup]:[Sensitivity Reference]], 2, FALSE)), E92) -> 0 | E92: 0
A93: Photovoltaic energy system cost per type 2 site [$] | C93: =IFERROR(INDIRECT(VLOOKUP(MID(CELL("filename",E93),FIND("]", CELL("filename",E93))+1,32) & "!" & ADDRESS(ROW(E93),COLUMN(E93),4,1), SensitivitySummary[[#All],[Field Lookup]:[Sensitivity Reference]], 2, FALSE)), E93) -> 0 | E93: 0
A94: Electric utility upgrades and grid interconnection cost per type 2 site [$] | C94: =IFERROR(INDIRECT(VLOOKUP(MID(CELL("filename",E94),FIND("]", CELL("filename",E94))+1,32) & "!" & ADDRESS(ROW(E94),COLUMN(E94),4,1), SensitivitySummary[[#All],[Field Lookup]:[Sensitivity Reference]], 2, FALSE)), E94) -> 0 | E94: 0
A95: Lease and property transaction costs per type 2 site (one-time fee) [$] | C95: =IFERROR(INDIRECT(VLOOKUP(MID(CELL("filename",E95),FIND("]", CELL("filename",E95))+1,32) & "!" & ADDRESS(ROW(E95),COLUMN(E95),4,1), SensitivitySummary[[#All],[Field Lookup]:[Sensitivity Reference]], 2, FALSE)), E95) -> 0 | E95: 0
A96: Host site identification and screening per type 2 site [$] | C96: =IFERROR(INDIRECT(VLOOKUP(MID(CELL("filename",E96),FIND("]", CELL("filename",E96))+1,32) & "!" & ADDRESS(ROW(E96),COLUMN(E96),4,1), SensitivitySummary[[#All],[Field Lookup]:[Sensitivity Reference]], 2, FALSE)), E96) -> 0 | E96: 0
A98: Total number of type 2 stations [#] | C98: =IFERROR(INDIRECT(VLOOKUP(MID(CELL("filename",E98),FIND("]", CELL("filename",E98))+1,32) & "!" & ADDRESS(ROW(E98),COLUMN(E98),4,1), SensitivitySummary[[#All],[Field Lookup]:[Sensitivity Reference]], 2, FALSE)), E98) -> 0 | E98: 0
A99: Total number of type 2 sites [#] | C99: =IFERROR(INDIRECT(VLOOKUP(MID(CELL("filename",E99),FIND("]", CELL("filename",E99))+1,32) & "!" & ADDRESS(ROW(E99),COLUMN(E99),4,1), SensitivitySummary[[#All],[Field Lookup]:[Sensitivity Reference]], 2, FALSE)), E99) -> 0 | E99: 0
A101: Total initial Type 2 station capital required [$] | E101: =((C89+C91)*C98)+((C92+C93+C94+C95+C96)*C99) -> 0
A103: Annual depreciation [$] | E103: =E101/$E$6 -> 0
F105: =+'Initial Settings'!$B$6+1 -> 2018 | G105: =F105+1 -> 2019 | H105: 2020 | I105: 2021 | J105: 2022 | K105: 2023 | L105: 2024 | M105: 2025 | N105: 2026 | O105: 2027
A106: Charging Station Utilization
A107: Maximum number of charging sessions per type 2 station [sessions/year/station] | C107: =IFERROR(INDIRECT(VLOOKUP(MID(CELL("filename",E107),FIND("]", CELL("filename",E107))+1,32) & "!" & ADDRESS(ROW(E107),COLUMN(E107),4,1), SensitivitySummary[[#All],[Field Lookup]:[Sensitivity Reference]], 2, FALSE)), E107) -> 0 | E107: 0
A108: Maximum number of charging sessions [sessions/year] | F108: =$C107*$C98 -> 0 | G108: =$C107*$C98 -> 0 | H108: 0 | I108: 0 | J108: 0 | K108: 0 | L108: 0 | M108: 0 | N108: 0 | O108: 0
A109: Projected number of charging sessions[sessions/year] | F109: =IF(COLUMN(F$6)-COLUMN($F$6)<$E$6,MIN(F108,'Market Inputs'!F47),0) -> 0 | G109: =IF(COLUMN(G$6)-COLUMN($F$6)<$E$6,MIN(G108,'Market Inputs'!G47),0) -> 0 | H109: =IF(COLUMN(H$6)-COLUMN($F$6)<$E$6,MIN(H108,'Market Inputs'!H47),0) -> 0 | I109: =IF(COLUMN(I$6)-COLUMN($F$6)<$E$6,MIN(I108,'Market Inputs'!I47),0) -> 0 | J109: =IF(COLUMN(J$6)-COLUMN($F$6)<$E$6,MIN(J108,'Market Inputs'!J47),0) -> 0 | K109: =IF(COLUMN(K$6)-COLUMN($F$6)<$E$6,MIN(K108,'Market Inputs'!K47),0) -> 0 | L109: =IF(COLUMN(L$6)-COLUMN($F$6)<$E$6,MIN(L108,'Market Inputs'!L47),0) -> 0 | M109: =IF(COLUMN(M$6)-COLUMN($F$6)<$E$6,MIN(M108,'Market Inputs'!M47),0) -> 0 | N109: =IF(COLUMN(N$6)-COLUMN($F$6)<$E$6,MIN(N108,'Market Inputs'!N47),0) -> 0 | O109: =IF(COLUMN(O$6)-COLUMN($F$6)<$E$6,MIN(O108,'Market Inputs'!O47),0) -> 0
A111: Energy Usage
A112: Average charging energy per type 2 session [kWh/session] | C112: =IFERROR(INDIRECT(VLOOKUP(MID(CELL("filename",E112),FIND("]", CELL("filename",E112))+1,32) & "!" & ADDRESS(ROW(E112),COLUMN(E112),4,1), SensitivitySummary[[#All],[Field Lookup]:[Sensitivity Reference]], 2, FALSE)), E112) -> 0 | E112: 0
A113: Energy used/sold [kWh/year] | F113: =IF(COLUMN(F$6)-COLUMN($F$6)<$E$6,F109*$C112,0) -> 0 | G113: =IF(COLUMN(G$6)-COLUMN($F$6)<$E$6,G109*$C112,0) -> 0 | H113: 0 | I113: 0 | J113: 0 | K113: 0 | L113: 0 | M113: 0 | N113: 0 | O113: 0
A114: Maximum power draw from the electrical grid (type 2 station) [kW/session] | C114: =IFERROR(INDIRECT(VLOOKUP(MID(CELL("filename",E114),FIND("]", CELL("filename",E114))+1,32) & "!" & ADDRESS(ROW(E114),COLUMN(E114),4,1), SensitivitySummary[[#All],[Field Lookup]:[Sensitivity Reference]], 2, FALSE)), E114) -> 0 | E114: 0
A115: Average time of charging session (type 2 station) [minutes] | C115: =IFERROR(INDIRECT(VLOOKUP(MID(CELL("filename",E115),FIND("]", CELL("filename",E115))+1,32) & "!" & ADDRESS(ROW(E115),COLUMN(E115),4,1), SensitivitySummary[[#All],[Field Lookup]:[Sensitivity Reference]], 2, FALSE)), E115) -> 0 | E115: 0
F117: =+'Initial Settings'!$B$6+1 -> 2018 | G117: =F117+1 -> 2019 | H117: 2020 | I117: 2021 | J117: 2022 | K117: 2023 | L117: 2024 | M117: 2025 | N117: 2026 | O117: 2027
A118: Charging Station Revenue [Operating Revenue - Direct]
D119: Revenue Model Applies?
A120: Per-energy user fee (type 2 station) [$/kWh] | C120: =IFERROR(INDIRECT(VLOOKUP(MID(CELL("filename",E120),FIND("]", CELL("filename",E120))+1,32) & "!" & ADDRESS(ROW(E120),COLUMN(E120),4,1), SensitivitySummary[[#All],[Field Lookup]:[Sensitivity Reference]], 2, FALSE)), E120) -> 0 | D120: Y | E120: 0
A121: Per-energy revenue | F121: =IF($D120="Y",IF(COLUMN(F$6)-COLUMN($F$6)<$E$6,F113*$C120,0),0) -> 0 | G121: =IF($D120="Y",IF(COLUMN(G$6)-COLUMN($F$6)<$E$6,G113*$C120,0),0) -> 0 | H121: 0 | I121: 0 | J121: 0 | K121: 0 | L121: 0 | M121: 0 | N121: 0 | O121: 0
A122: Per-charge event user fee (type 2 station) [$/session] | C122: =IFERROR(INDIRECT(VLOOKUP(MID(CELL("filename",E122),FIND("]", CELL("filename",E122))+1,32) & "!" & ADDRESS(ROW(E122),COLUMN(E122),4,1), SensitivitySummary[[#All],[Field Lookup]:[Sensitivity Reference]], 2, FALSE)), E122) -> 0 | D122: N | E122: 0
A123: Per-charge event revenue | F123: =IF($D122="Y",IF(COLUMN(F$6)-COLUMN($F$6)<$E$6,F109*$C122,0),0) -> 0 | G123: =IF($D122="Y",IF(COLUMN(G$6)-COLUMN($F$6)<$E$6,G109*$C122,0),0) -> 0 | H123: 0 | I123: 0 | J123: 0 | K123: 0 | L123: 0 | M123: 0 | N123: 0 | O123: 0
A125: Total charging station revenue | F125: =SUM(F121:F123) -> 0 | G125: =SUM(G121:G123) -> 0 | H125: 0 | I125: 0 | J125: 0 | K125: 0 | L125: 0 | M125: 0 | N125: 0 | O125: 0
F127: =+'Initial Settings'!$B$6+1 -> 2018 | G127: =F127+1 -> 2019 | H127: 2020 | I127: 2021 | J127: 2022 | K127: 2023 | L127: 2024 | M127: 2025 | N127: 2026 | O127: 2027
A128: Charging Station Operating Cost [Cost of Sales]
A129: Electricity
A130: Electricity retail price in first year (type 2 station) [$/kWh] | C130: =IFERROR(INDIRECT(VLOOKUP(MID(CELL("filename",E130),FIND("]", CELL("filename",E130))+1,32) & "!" & ADDRESS(ROW(E130),COLUMN(E130),4,1), SensitivitySummary[[#All],[Field Lookup]:[Sensitivity Reference]], 2, FALSE)), E130) -> 0 | E130: 0
A131: Monthly electricity fixed charge (type 2 site) [$] | C131: =IFERROR(INDIRECT(VLOOKUP(MID(CELL("filename",E131),FIND("]", CELL("filename",E131))+1,32) & "!" & ADDRESS(ROW(E131),COLUMN(E131),4,1), SensitivitySummary[[#All],[Field Lookup]:[Sensitivity Reference]], 2, FALSE)), E131) -> 0 | E131: 0
A132: Annual compounded growth rate in electricity price (type 2 station) [%] | C132: =IFERROR(INDIRECT(VLOOKUP(MID(CELL("filename",E132),FIND("]", CELL("filename",E132))+1,32) & "!" & ADDRESS(ROW(E132),COLUMN(E132),4,1), SensitivitySummary[[#All],[Field Lookup]:[Sensitivity Reference]], 2, FALSE)), E132) -> 0 | E132: 0
A133: Share of onsite energy generation (type 2 station) [%] | C133: =IFERROR(INDIRECT(VLOOKUP(MID(CELL("filename",E133),FIND("]", CELL("filename",E133))+1,32) & "!" & ADDRESS(ROW(E133),COLUMN(E133),4,1), SensitivitySummary[[#All],[Field Lookup]:[Sensitivity Reference]], 2, FALSE)), E133) -> 0 | E133: 0
A134: Electricity retail price [$/kWh] | F134: =C130 -> 0 | G134: =F134*(1+$C132) -> 0 | H134: =G134*(1+$C132) -> 0 | I134: 0 | J134: 0 | K134: 0 | L134: 0 | M134: 0 | N134: 0 | O134: 0
A135: Energy cost (based on kWh) | F135: =IF(COLUMN(F$6)-COLUMN($F$6)<$E$6,F113*F134*(1-$C$133)+$C$131*12,0) -> 0 | G135: =IF(COLUMN(G$6)-COLUMN($F$6)<$E$6,G113*G134*(1-$C$133)+$C$131*12,0) -> 0 | H135: 0 | I135: 0 | J135: 0 | K135: 0 | L135: 0 | M135: 0 | N135: 0 | O135: 0
A136: Demand charge (type 2 station) [$/kW/month] | C136: =IFERROR(INDIRECT(VLOOKUP(MID(CELL("filename",E136),FIND("]", CELL("filename",E136))+1,32) & "!" & ADDRESS(ROW(E136),COLUMN(E136),4,1), SensitivitySummary[[#All],[Field Lookup]:[Sensitivity Reference]], 2, FALSE)), E136) -> 0 | E136: 0
A137: Demand charge threshold (type 2 station) [kWh/month] | C137: =IFERROR(INDIRECT(VLOOKUP(MID(CELL("filename",E137),FIND("]", CELL("filename",E137))+1,32) & "!" & ADDRESS(ROW(E137),COLUMN(E137),4,1), SensitivitySummary[[#All],[Field Lookup]:[Sensitivity Reference]], 2, FALSE)), E137) -> 0 | E137: 0
A138: Maximum load at site excluding charging stations (type 2 station) [kW] | C138: =IFERROR(INDIRECT(VLOOKUP(MID(CELL("filename",E138),FIND("]", CELL("filename",E138))+1,32) & "!" & ADDRESS(ROW(E138),COLUMN(E138),4,1), SensitivitySummary[[#All],[Field Lookup]:[Sensitivity Reference]], 2, FALSE)), E138) -> 0 | E138: 0
A139: Power cost (based on kW) | F139: =IF(COLUMN(F$6)-COLUMN($F$6)<$E$6,IF(F113/12>$C$137, ($C$138+$C98*$C114)*12*$C136, 0),0) -> 0 | G139: =IF(COLUMN(G$6)-COLUMN($F$6)<$E$6,IF(G113/12>$C$137, ($C$138+$C98*$C114)*12*$C136, 0),0) -> 0 | H139: 0 | I139: 0 | J139: 0 | K139: 0 | L139: 0 | M139: 0 | N139: 0 | O139: 0
A140: Maintenance cost
A141: Annual maintenance cost as percentage of equipment value (type 2 station) [%] | C141: =IFERROR(INDIRECT(VLOOKUP(MID(CELL("filename",E141),FIND("]", CELL("filename",E141))+1,32) & "!" & ADDRESS(ROW(E141),COLUMN(E141),4,1), SensitivitySummary[[#All],[Field Lookup]:[Sensitivity Reference]], 2, FALSE)), E141) -> 0 | E141: 0
A142: Maintenance cost (annual) | F142: =IF(COLUMN(F$6)-COLUMN($F$6)<$E$6,$C141*$C89*$C98,0) -> 0 | G142: =IF(COLUMN(G$6)-COLUMN($F$6)<$E$6,$C141*$C89*$C98,0) -> 0 | H142: 0 | I142: 0 | J142: 0 | K142: 0 | L142: 0 | M142: 0 | N142: 0 | O142: 0
A143: Communications cost
A144: Annual communications cost (type 2 station) [$] | C144: =IFERROR(INDIRECT(VLOOKUP(MID(CELL("filename",E144),FIND("]", CELL("filename",E144))+1,32) & "!" & ADDRESS(ROW(E144),COLUMN(E144),4,1), SensitivitySummary[[#All],[Field Lookup]:[Sensitivity Reference]], 2, FALSE)), E144) -> 0 | E144: 0
A145: Communications cost (annual) | F145: =IF(COLUMN(F$6)-COLUMN($F$6)<$E$6,$C144*$C99,0) -> 0 | G145: 0 | H145: 0 | I145: 0 | J145: 0 | K145: 0 | L145: 0 | M145: 0 | N145: 0 | O145: 0
A146: Warrant Cost
A147: Annual warranty cost (type 2 station) [$] | C147: =IFERROR(INDIRECT(VLOOKUP(MID(CELL("filename",E147),FIND("]", CELL("filename",E147))+1,32) & "!" & ADDRESS(ROW(E147),COLUMN(E147),4,1), SensitivitySummary[[#All],[Field Lookup]:[Sensitivity Reference]], 2, FALSE)), E147) -> 0 | E147: 0
A148: Warrant cost (annual) | F148: =IF(COLUMN(F$6)-COLUMN($F$6)<$E$6,$C147*$C99,0) -> 0 | G148: =IF(COLUMN(G$6)-COLUMN($F$6)<$E$6,$C147*$C99,0) -> 0 | H148: 0 | I148: 0 | J148: 0 | K148: 0 | L148: 0 | M148: 0 | N148: 0 | O148: 0
A149: Host site lease or access cost
A150: Host site lease or access cost (average per type 2 site/year) [$] | C150: =IFERROR(INDIRECT(VLOOKUP(MID(CELL("filename",E150),FIND("]", CELL("filename",E150))+1,32) & "!" & ADDRESS(ROW(E150),COLUMN(E150),4,1), SensitivitySummary[[#All],[Field Lookup]:[Sensitivity Reference]], 2, FALSE)), E150) -> 0 | E150: 0
A151: Host site lease or access cost (annual) | F151: =IF(COLUMN(F$6)-COLUMN($F$6)<$E$6,$C150*$C99,0) -> 0 | G151: 0 | H151: 0 | I151: 0 | J151: 0 | K151: 0 | L151: 0 | M151: 0 | N151: 0 | O151: 0
A153: Total charging operating cost | F153: =SUM(F135:F151) -> 0 | G153: 0 | H153: 0 | I153: 0 | J153: 0 | K153: 0 | L153: 0 | M153: 0 | N153: 0 | O153: 0
F155: =+'Initial Settings'!$B$6+1 -> 2018 | G155: =F155+1 -> 2019 | H155: 2020 | I155: 2021 | J155: 2022 | K155: 2023 | L155: 2024 | M155: 2025 | N155: 2026 | O155: 2027
A156: Total charging station operating margin | F156: =F125-F153 -> 0 | G156: 0 | H156: 0 | I156: 0 | J156: 0 | K156: 0 | L156: 0 | M156: 0 | N156: 0 | O156: 0
A158: Charging Station Assumptions - Type 3
A160: Charging station type | E160: Not used
A162: Charging Station Capital Cost
A163: Equipment costs
A164: Charging station equipment cost per type 3 station [$] | C164: =IFERROR(INDIRECT(VLOOKUP(MID(CELL("filename",E164),FIND("]", CELL("filename",E164))+1,32) & "!" & ADDRESS(ROW(E164),COLUMN(E164),4,1), SensitivitySummary[[#All],[Field Lookup]:[Sensitivity Reference]], 2, FALSE)), E164) -> 0 | E164: 0
A165: Installation and siting costs
A166: Construction and equipment installation cost per type 3 station [$] | C166: =IFERROR(INDIRECT(VLOOKUP(MID(CELL("filename",E166),FIND("]", CELL("filename",E166))+1,32) & "!" & ADDRESS(ROW(E166),COLUMN(E166),4,1), SensitivitySummary[[#All],[Field Lookup]:[Sensitivity Reference]], 2, FALSE)), E166) -> 0 | E166: 0
A167: Energy storage cost per type 3 site [$] | C167: =IFERROR(INDIRECT(VLOOKUP(MID(CELL("filename",E167),FIND("]", CELL("filename",E167))+1,32) & "!" & ADDRESS(ROW(E167),COLUMN(E167),4,1), SensitivitySummary[[#All],[Field Lookup]:[Sensitivity Reference]], 2, FALSE)), E167) -> 0 | E167: 0
A168: Photovoltaic energy system cost per type 3 site [$] | C168: =IFERROR(INDIRECT(VLOOKUP(MID(CELL("filename",E168),FIND("]", CELL("filename",E168))+1,32) & "!" & ADDRESS(ROW(E168),COLUMN(E168),4,1), SensitivitySummary[[#All],[Field Lookup]:[Sensitivity Reference]], 2, FALSE)), E168) -> 0 | E168: 0
A169: Electric utility upgrades and grid interconnection cost per type 3 site [$] | C169: =IFERROR(INDIRECT(VLOOKUP(MID(CELL("filename",E169),FIND("]", CELL("filename",E169))+1,32) & "!" & ADDRESS(ROW(E169),COLUMN(E169),4,1), SensitivitySummary[[#All],[Field Lookup]:[Sensitivity Reference]], 2, FALSE)), E169) -> 0 | E169: 0
A170: Lease and property transaction costs per type 3 site (one-time fee) [$] | C170: =IFERROR(INDIRECT(VLOOKUP(MID(CELL("filename",E170),FIND("]", CELL("filename",E170))+1,32) & "!" & ADDRESS(ROW(E170),COLUMN(E170),4,1), SensitivitySummary[[#All],[Field Lookup]:[Sensitivity Reference]], 2, FALSE)), E170) -> 0 | E170: 0
A171: Host site identification and screening per type 3 site [$] | C171: =IFERROR(INDIRECT(VLOOKUP(MID(CELL("filename",E171),FIND("]", CELL("filename",E171))+1,32) & "!" & ADDRESS(ROW(E171),COLUMN(E171),4,1), SensitivitySummary[[#All],[Field Lookup]:[Sensitivity Reference]], 2, FALSE)), E171) -> 0 | E171: 0
A173: Total number of type 3 stations [#] | C173: =IFERROR(INDIRECT(VLOOKUP(MID(CELL("filename",E173),FIND("]", CELL("filename",E173))+1,32) & "!" & ADDRESS(ROW(E173),COLUMN(E173),4,1), SensitivitySummary[[#All],[Field Lookup]:[Sensitivity Reference]], 2, FALSE)), E173) -> 0 | E173: 0
A174: Total number of type 3 sites [#] | C174: =IFERROR(INDIRECT(VLOOKUP(MID(CELL("filename",E174),FIND("]", CELL("filename",E174))+1,32) & "!" & ADDRESS(ROW(E174),COLUMN(E174),4,1), SensitivitySummary[[#All],[Field Lookup]:[Sensitivity Reference]], 2, FALSE)), E174) -> 0 | E174: 0
A176: Total initial Type 3 station capital required [$] | E176: =((C164+C166)*C173)+((C167+C168+C169+C170+C171)*C174) -> 0
A178: Annual depreciation [$] | E178: =E176/$E$6 -> 0
F180: =+'Initial Settings'!$B$6+1 -> 2018 | G180: =F180+1 -> 2019 | H180: 2020 | I180: 2021 | J180: 2022 | K180: 2023 | L180: 2024 | M180: 2025 | N180: 2026 | O180: 2027
A181: Charging Station Utilization
A182: Maximum number of charging sessions per type 3 station [sessions/year/station] | C182: =IFERROR(INDIRECT(VLOOKUP(MID(CELL("filename",E182),FIND("]", CELL("filename",E182))+1,32) & "!" & ADDRESS(ROW(E182),COLUMN(E182),4,1), SensitivitySummary[[#All],[Field Lookup]:[Sensitivity Reference]], 2, FALSE)), E182) -> 0 | E182: 0
A183: Maximum number of charging sessions [sessions/year] | F183: =$C182*$C173 -> 0 | G183: =$C182*$C173 -> 0 | H183: 0 | I183: 0 | J183: 0 | K183: 0 | L183: 0 | M183: 0 | N183: 0 | O183: 0
A184: Projected number of charging sessions[sessions/year] | F184: =IF(COLUMN(F$6)-COLUMN($F$6)<$E$6,MIN(F183,'Market Inputs'!F48),0) -> 0 | G184: =IF(COLUMN(G$6)-COLUMN($F$6)<$E$6,MIN(G183,'Market Inputs'!G48),0) -> 0 | H184: =IF(COLUMN(H$6)-COLUMN($F$6)<$E$6,MIN(H183,'Market Inputs'!H48),0) -> 0 | I184: =IF(COLUMN(I$6)-COLUMN($F$6)<$E$6,MIN(I183,'Market Inputs'!I48),0) -> 0 | J184: =IF(COLUMN(J$6)-COLUMN($F$6)<$E$6,MIN(J183,'Market Inputs'!J48),0) -> 0 | K184: =IF(COLUMN(K$6)-COLUMN($F$6)<$E$6,MIN(K183,'Market Inputs'!K48),0) -> 0 | L184: =IF(COLUMN(L$6)-COLUMN($F$6)<$E$6,MIN(L183,'Market Inputs'!L48),0) -> 0 | M184: =IF(COLUMN(M$6)-COLUMN($F$6)<$E$6,MIN(M183,'Market Inputs'!M48),0) -> 0 | N184: =IF(COLUMN(N$6)-COLUMN($F$6)<$E$6,MIN(N183,'Market Inputs'!N48),0) -> 0 | O184: =IF(COLUMN(O$6)-COLUMN($F$6)<$E$6,MIN(O183,'Market Inputs'!O48),0) -> 0
A186: Energy Usage
A187: Average charging energy per type 3 session [kWh/session] | C187: =IFERROR(INDIRECT(VLOOKUP(MID(CELL("filename",E187),FIND("]", CELL("filename",E187))+1,32) & "!" & ADDRESS(ROW(E187),COLUMN(E187),4,1), SensitivitySummary[[#All],[Field Lookup]:[Sensitivity Reference]], 2, FALSE)), E187) -> 0 | E187: 0
A188: Energy used/sold [kWh/year] | F188: =IF(COLUMN(F$6)-COLUMN($F$6)<$E$6,F184*$C187,0) -> 0 | G188: =IF(COLUMN(G$6)-COLUMN($F$6)<$E$6,G184*$C187,0) -> 0 | H188: 0 | I188: 0 | J188: 0 | K188: 0 | L188: 0 | M188: 0 | N188: 0 | O188: 0
A189: Maximum power draw from the electrical grid (type 3 station) [kW/session] | C189: =IFERROR(INDIRECT(VLOOKUP(MID(CELL("filename",E189),FIND("]", CELL("filename",E189))+1,32) & "!" & ADDRESS(ROW(E189),COLUMN(E189),4,1), SensitivitySummary[[#All],[Field Lookup]:[Sensitivity Reference]], 2, FALSE)), E189) -> 0 | E189: 0
A190: Average time of charging session (type 3 station) [minutes] | C190: =IFERROR(INDIRECT(VLOOKUP(MID(CELL("filename",E190),FIND("]", CELL("filename",E190))+1,32) & "!" & ADDRESS(ROW(E190),COLUMN(E190),4,1), SensitivitySummary[[#All],[Field Lookup]:[Sensitivity Reference]], 2, FALSE)), E190) -> 0 | E190: 0
F192: =+'Initial Settings'!$B$6+1 -> 2018 | G192: =F192+1 -> 2019 | H192: 2020 | I192: 2021 | J192: 2022 | K192: 2023 | L192: 2024 | M192: 2025 | N192: 2026 | O192: 2027
A193: Charging Station Revenue [Operating Revenue - Direct]
D194: Revenue Model Applies?
A195: Per-energy user fee (type 3 station) [$/kWh] | C195: =IFERROR(INDIRECT(VLOOKUP(MID(CELL("filename",E195),FIND("]", CELL("filename",E195))+1,32) & "!" & ADDRESS(ROW(E195),COLUMN(E195),4,1), SensitivitySummary[[#All],[Field Lookup]:[Sensitivity Reference]], 2, FALSE)), E195) -> 0 | D195: Y | E195: 0
A196: Per-energy revenue | F196: =IF($D195="Y",IF(COLUMN(F$6)-COLUMN($F$6)<$E$6,F188*$C195,0),0) -> 0 | G196: =IF($D195="Y",IF(COLUMN(G$6)-COLUMN($F$6)<$E$6,G188*$C195,0),0) -> 0 | H196: 0 | I196: 0 | J196: 0 | K196: 0 | L196: 0 | M196: 0 | N196: 0 | O196: 0
A197: Per-charge event user fee (type 3 station) [$/session] | C197: =IFERROR(INDIRECT(VLOOKUP(MID(CELL("filename",E197),FIND("]", CELL("filename",E197))+1,32) & "!" & ADDRESS(ROW(E197),COLUMN(E197),4,1), SensitivitySummary[[#All],[Field Lookup]:[Sensitivity Reference]], 2, FALSE)), E197) -> 0 | D197: N | E197: 0
A198: Per-charge event revenue | F198: =IF($D197="Y",IF(COLUMN(F$6)-COLUMN($F$6)<$E$6,F184*$C197,0),0) -> 0 | G198: =IF($D197="Y",IF(COLUMN(G$6)-COLUMN($F$6)<$E$6,G184*$C197,0),0) -> 0 | H198: 0 | I198: 0 | J198: 0 | K198: 0 | L198: 0 | M198: 0 | N198: 0 | O198: 0
A200: Total charging station revenue | F200: =SUM(F196:F198) -> 0 | G200: =SUM(G196:G198) -> 0 | H200: 0 | I200: 0 | J200: 0 | K200: 0 | L200: 0 | M200: 0 | N200: 0 | O200: 0
F202: =+'Initial Settings'!$B$6+1 -> 2018 | G202: =F202+1 -> 2019 | H202: 2020 | I202: 2021 | J202: 2022 | K202: 2023 | L202: 2024 | M202: 2025 | N202: 2026 | O202: 2027
A203: Charging Station Operating Cost [Cost of Sales]
A204: Electricity
A205: Electricity retail price in first year (type 3 station) [$/kWh] | C205: =IFERROR(INDIRECT(VLOOKUP(MID(CELL("filename",E205),FIND("]", CELL("filename",E205))+1,32) & "!" & ADDRESS(ROW(E205),COLUMN(E205),4,1), SensitivitySummary[[#All],[Field Lookup]:[Sensitivity Reference]], 2, FALSE)), E205) -> 0 | E205: 0
A206: Monthly electricity fixed charge (type 3 site) [$] | C206: =IFERROR(INDIRECT(VLOOKUP(MID(CELL("filename",E206),FIND("]", CELL("filename",E206))+1,32) & "!" & ADDRESS(ROW(E206),COLUMN(E206),4,1), SensitivitySummary[[#All],[Field Lookup]:[Sensitivity Reference]], 2, FALSE)), E206) -> 0 | E206: 0
A207: Annual compounded growth rate in electricity price (type 3 station) [%] | C207: =IFERROR(INDIRECT(VLOOKUP(MID(CELL("filename",E207),FIND("]", CELL("filename",E207))+1,32) & "!" & ADDRESS(ROW(E207),COLUMN(E207),4,1), SensitivitySummary[[#All],[Field Lookup]:[Sensitivity Reference]], 2, FALSE)), E207) -> 0 | E207: 0
A208: Share of onsite energy generation (type 3 station) [%] | C208: =IFERROR(INDIRECT(VLOOKUP(MID(CELL("filename",E208),FIND("]", CELL("filename",E208))+1,32) & "!" & ADDRESS(ROW(E208),COLUMN(E208),4,1), SensitivitySummary[[#All],[Field Lookup]:[Sensitivity Reference]], 2, FALSE)), E208) -> 0 | E208: 0
A209: Electricity retail price [$/kWh] | F209: =C205 -> 0 | G209: =F209*(1+$C207) -> 0 | H209: =G209*(1+$C207) -> 0 | I209: 0 | J209: 0 | K209: 0 | L209: 0 | M209: 0 | N209: 0 | O209: 0
A210: Energy cost (based on kWh) | F210: =IF(COLUMN(F$6)-COLUMN($F$6)<$E$6,F188*F209*(1-$C$208)+$C$206*12,0) -> 0 | G210: =IF(COLUMN(G$6)-COLUMN($F$6)<$E$6,G188*G209*(1-$C$208)+$C$206*12,0) -> 0 | H210: 0 | I210: 0 | J210: 0 | K210: 0 | L210: 0 | M210: 0 | N210: 0 | O210: 0
A211: Demand charge (type 3 station) [$/kW/month] | C211: =IFERROR(INDIRECT(VLOOKUP(MID(CELL("filename",E211),FIND("]", CELL("filename",E211))+1,32) & "!" & ADDRESS(ROW(E211),COLUMN(E211),4,1), SensitivitySummary[[#All],[Field Lookup]:[Sensitivity Reference]], 2, FALSE)), E211) -> 0 | E211: 0
A212: Demand charge threshold (type 3 station) [kWh/month] | C212: =IFERROR(INDIRECT(VLOOKUP(MID(CELL("filename",E212),FIND("]", CELL("filename",E212))+1,32) & "!" & ADDRESS(ROW(E212),COLUMN(E212),4,1), SensitivitySummary[[#All],[Field Lookup]:[Sensitivity Reference]], 2, FALSE)), E212) -> 0 | E212: 0
A213: Maximum load at site excluding charging stations (type 3 station) [kW] | C213: =IFERROR(INDIRECT(VLOOKUP(MID(CELL("filename",E213),FIND("]", CELL("filename",E213))+1,32) & "!" & ADDRESS(ROW(E213),COLUMN(E213),4,1), SensitivitySummary[[#All],[Field Lookup]:[Sensitivity Reference]], 2, FALSE)), E213) -> 0 | E213: 0
A214: Power cost (based on kW) | F214: =IF(COLUMN(F$6)-COLUMN($F$6)<$E$6,IF(F188/12>$C$212, ($C$213+$C173*$C189)*12*$C211, 0),0) -> 0 | G214: =IF(COLUMN(G$6)-COLUMN($F$6)<$E$6,IF(G188/12>$C$212, ($C$213+$C173*$C189)*12*$C211, 0),0) -> 0 | H214: 0 | I214: 0 | J214: 0 | K214: 0 | L214: 0 | M214: 0 | N214: 0 | O214: 0
A215: Maintenance cost
A216: Annual maintenance cost as percentage of equipment value (type 3 station) [%] | C216: =IFERROR(INDIRECT(VLOOKUP(MID(CELL("filename",E216),FIND("]", CELL("filename",E216))+1,32) & "!" & ADDRESS(ROW(E216),COLUMN(E216),4,1), SensitivitySummary[[#All],[Field Lookup]:[Sensitivity Reference]], 2, FALSE)), E216) -> 0 | E216: 0
A217: Maintenance cost (annual) | F217: =IF(COLUMN(F$6)-COLUMN($F$6)<$E$6,$C216*$C164*$C173,0) -> 0 | G217: =IF(COLUMN(G$6)-COLUMN($F$6)<$E$6,$C216*$C164*$C173,0) -> 0 | H217: 0 | I217: 0 | J217: 0 | K217: 0 | L217: 0 | M217: 0 | N217: 0 | O217: 0
A218: Communications cost
A219: Annual communications cost (type 3 station) [$] | C219: =IFERROR(INDIRECT(VLOOKUP(MID(CELL("filename",E219),FIND("]", CELL("filename",E219))+1,32) & "!" & ADDRESS(ROW(E219),COLUMN(E219),4,1), SensitivitySummary[[#All],[Field Lookup]:[Sensitivity Reference]], 2, FALSE)), E219) -> 0 | E219: 0
A220: Communications cost (annual) | F220: =IF(COLUMN(F$6)-COLUMN($F$6)<$E$6,$C219*$C174,0) -> 0 | G220: =IF(COLUMN(G$6)-COLUMN($F$6)<$E$6,$C219*$C174,0) -> 0 | H220: 0 | I220: 0 | J220: 0 | K220: 0 | L220: 0 | M220: 0 | N220: 0 | O220: 0
A221: Warrant Cost
A222: Annual warranty cost (type 3 station) [$] | C222: =IFERROR(INDIRECT(VLOOKUP(MID(CELL("filename",E222),FIND("]", CELL("filename",E222))+1,32) & "!" & ADDRESS(ROW(E222),COLUMN(E222),4,1), SensitivitySummary[[#All],[Field Lookup]:[Sensitivity Reference]], 2, FALSE)), E222) -> 0 | E222: 0
A223: Warrant cost (annual) | F223: =IF(COLUMN(F$6)-COLUMN($F$6)<$E$6,$C222*$C174,0) -> 0 | G223: =IF(COLUMN(G$6)-COLUMN($F$6)<$E$6,$C222*$C174,0) -> 0 | H223: 0 | I223: 0 | J223: 0 | K223: 0 | L223: 0 | M223: 0 | N223: 0 | O223: 0
A224: Host site lease or access cost
A225: Host site lease or access cost (average per type 3 site/year) [$] | C225: =IFERROR(INDIRECT(VLOOKUP(MID(CELL("filename",E225),FIND("]", CELL("filename",E225))+1,32) & "!" & ADDRESS(ROW(E225),COLUMN(E225),4,1), SensitivitySummary[[#All],[Field Lookup]:[Sensitivity Reference]], 2, FALSE)), E225) -> 0 | E225: 0
A226: Host site lease or access cost (annual) | F226: =IF(COLUMN(F$6)-COLUMN($F$6)<$E$6,$C225*$C174,0) -> 0 | G226: =IF(COLUMN(G$6)-COLUMN($F$6)<$E$6,$C225*$C174,0) -> 0 | H226: 0 | I226: 0 | J226: 0 | K226: 0 | L226: 0 | M226: 0 | N226: 0 | O226: 0
A228: Total charging operating cost | F228: =SUM(F210:F226) -> 0 | G228: =SUM(G210:G226) -> 0 | H228: 0 | I228: 0 | J228: 0 | K228: 0 | L228: 0 | M228: 0 | N228: 0 | O228: 0
F230: =+'Initial Settings'!$B$6+1 -> 2018 | G230: =F230+1 -> 2019 | H230: 2020 | I230: 2021 | J230: 2022 | K230: 2023 | L230: 2024 | M230: 2025 | N230: 2026 | O230: 2027
A231: Total charging station operating margin | F231: =F200-F228 -> 0 | G231: =G200-G228 -> 0 | H231: 0 | I231: 0 | J231: 0 | K231: 0 | L231: 0 | M231: 0 | N231: 0 | O231: 0
A233: Additional Revenue Assumptions
A235: Additional Operating Revenue | F235: =+'Initial Settings'!$B$6+1 -> 2018 | G235: =F235+1 -> 2019 | H235: 2020 | I235: 2021 | J235: 2022 | K235: 2023 | L235: 2024 | M235: 2025 | N235: 2026 | O235: 2027
A236: Direct revenues
A237: Number of subscribers in first year [subscribers/year] | C237: =IFERROR(INDIRECT(VLOOKUP(MID(CELL("filename",E237),FIND("]", CELL("filename",E237))+1,32) & "!" & ADDRESS(ROW(E237),COLUMN(E237),4,1), SensitivitySummary[[#All],[Field Lookup]:[Sensitivity Reference]], 2, FALSE)), E237) -> 0 | E237: 0
A238: Annual growth rate in number of subscribers [%] | C238: =IFERROR(INDIRECT(VLOOKUP(MID(CELL("filename",E238),FIND("]", CELL("filename",E238))+1,32) & "!" & ADDRESS(ROW(E238),COLUMN(E238),4,1), SensitivitySummary[[#All],[Field Lookup]:[Sensitivity Reference]], 2, FALSE)), E238) -> 0 | E238: 0
A239: Number of subscribers [subscribers/year] | F239: =C237 -> 0 | G239: =ROUND(F239*(1+$C238),0) -> 0 | H239: =ROUND(G239*(1+$C238),0) -> 0 | I239: 0 | J239: 0 | K239: 0 | L239: 0 | M239: 0 | N239: 0 | O239: 0
A240: Subscription fee [$/subscriber/year] | C240: =IFERROR(INDIRECT(VLOOKUP(MID(CELL("filename",E240),FIND("]", CELL("filename",E240))+1,32) & "!" & ADDRESS(ROW(E240),COLUMN(E240),4,1), SensitivitySummary[[#All],[Field Lookup]:[Sensitivity Reference]], 2, FALSE)), E240) -> 0 | E240: 0
A241: Subscription revenue | F241: =IF(COLUMN(F$6)-COLUMN($F$6)<$E$6,F239*$C$240,0) -> 0 | G241: 0 | H241: 0 | I241: 0 | J241: 0 | K241: 0 | L241: 0 | M241: 0 | N241: 0 | O241: 0
A243: Indirect revenues
A244: Payments from private sector partners | F244: =SUM('Private Sector Partner Inputs'!F58:F63) -> 6102.8 | G244: =SUM('Private Sector Partner Inputs'!G58:G63) -> 6713.3 | H244: =SUM('Private Sector Partner Inputs'!H58:H63) -> 7384.3 | I244: =SUM('Private Sector Partner Inputs'!I58:I63) -> 8122.4 | J244: =SUM('Private Sector Partner Inputs'!J58:J63) -> 8934.2 | K244: =SUM('Private Sector Partner Inputs'!K58:K63) -> 9827.4 | L244: =SUM('Private Sector Partner Inputs'!L58:L63) -> 10809.7 | M244: =SUM('Private Sector Partner Inputs'!M58:M63) -> 11891 | N244: =SUM('Private Sector Partner Inputs'!N58:N63) -> 13080.1 | O244: =SUM('Private Sector Partner Inputs'!O58:O63) -> 14029.42529
A245: Annual advertising revenue (In-station advertising) [$] | C245: =IFERROR(INDIRECT(VLOOKUP(MID(CELL("filename",E245),FIND("]", CELL("filename",E245))+1,32) & "!" & ADDRESS(ROW(E245),COLUMN(E245),4,1), SensitivitySummary[[#All],[Field Lookup]:[Sensitivity Reference]], 2, FALSE)), E245) -> 0 | E245: 0 | F245: =IF(COLUMN(F$6)-COLUMN($F$6)<$E$6,C245,0) -> 0 | G245: =IF(COLUMN(G$6)-COLUMN($F$6)<$E$6,F245,0) -> 0 | H245: 0 | I245: 0 | J245: 0 | K245: 0 | L245: 0 | M245: 0 | N245: 0 | O245: 0
... 79 more rows

Sheet Private Sector Partner Inputs
A1: ='Initial Settings'!$B$5 -> Corridor and Community DC Fast Charging Complex (Urban Site)
A4: Private Sector Partner(s) Inputs
A6: Private Sector Weighted Average Cost of Capital (WACC) | C6: =IFERROR(INDIRECT(VLOOKUP(MID(CELL("filename",E6),FIND("]", CELL("filename",E6))+1,32) & "!" & ADDRESS(ROW(E6),COLUMN(E6),4,1), SensitivitySummary[[#All],[Field Lookup]:[Sensitivity Reference]], 2, FALSE)), E6) -> 0.1033 | E6: 0.1033
A7: Private Sector Cost of Goods Sold [% of Revenue] | C7: =IFERROR(INDIRECT(VLOOKUP(MID(CELL("filename",E7),FIND("]", CELL("filename",E7))+1,32) & "!" & ADDRESS(ROW(E7),COLUMN(E7),4,1), SensitivitySummary[[#All],[Field Lookup]:[Sensitivity Reference]], 2, FALSE)), E7) -> 0.8 | E7: 0.8
A8: Private Sector Marginal Tax Rate | C8: =IFERROR(INDIRECT(VLOOKUP(MID(CELL("filename",E8),FIND("]", CELL("filename",E8))+1,32) & "!" & ADDRESS(ROW(E8),COLUMN(E8),4,1), SensitivitySummary[[#All],[Field Lookup]:[Sensitivity Reference]], 2, FALSE)), E8) -> 0.3160052716 | E8: 0.3160052716
A10: Revenues
F11: =+'Initial Settings'!$B$6+1 -> 2018 | G11: =F11+1 -> 2019 | H11: 2020 | I11: 2021 | J11: 2022 | K11: 2023 | L11: 2024 | M11: 2025 | N11: 2026 | O11: 2027
A12: Site Leasing Revenue
A13: Private sector captures host site lease / access fees? | E13: N
A14: Revenue from leases / access fees [$] | F14: =IF($E$13="Y",'Owner-Operator Inputs'!F151+'Owner-Operator Inputs'!F76+'Owner-Operator Inputs'!F226,0) -> 0 | G14: =IF($E$13="Y",'Owner-Operator Inputs'!G151+'Owner-Operator Inputs'!G76+'Owner-Operator Inputs'!G226,0) -> 0 | H14: =IF($E$13="Y",'Owner-Operator Inputs'!H151+'Owner-Operator Inputs'!H76+'Owner-Operator Inputs'!H226,0) -> 0 | I14: =IF($E$13="Y",'Owner-Operator Inputs'!I151+'Owner-Operator Inputs'!I76+'Owner-Operator Inputs'!I226,0) -> 0 | J14: =IF($E$13="Y",'Owner-Operator Inputs'!J151+'Owner-Operator Inputs'!J76+'Owner-Operator Inputs'!J226,0) -> 0 | K14: =IF($E$13="Y",'Owner-Operator Inputs'!K151+'Owner-Operator Inputs'!K76+'Owner-Operator Inputs'!K226,0) -> 0 | L14: =IF($E$13="Y",'Owner-Operator Inputs'!L151+'Owner-Operator Inputs'!L76+'Owner-Operator Inputs'!L226,0) -> 0 | M14: =IF($E$13="Y",'Owner-Operator Inputs'!M151+'Owner-Operator Inputs'!M76+'Owner-Operator Inputs'!M226,0) -> 0 | N14: =IF($E$13="Y",'Owner-Operator Inputs'!N151+'Owner-Operator Inputs'!N76+'Owner-Operator Inputs'!N226,0) -> 0 | O14: =IF($E$13="Y",'Owner-Operator Inputs'!O151+'Owner-Operator Inputs'!O76+'Owner-Operator Inputs'!O226,0) -> 0
A16: Point of Sale Revenue (Increases in revenue due to increased customer traffic)
A17: Average expected revenue per customer per minute [$] | C17: =IFERROR(INDIRECT(VLOOKUP(MID(CELL("filename",E17),FIND("]", CELL("filename",E17))+1,32) & "!" & ADDRESS(ROW(E17),COLUMN(E17),4,1), SensitivitySummary[[#All],[Field Lookup]:[Sensitivity Reference]], 2, FALSE)), E17) -> 1 | E17: 1
A19: Type 1 stations capture customer traffic revenue | E19: Y
A20: Maximum retail revenue per customer per session (type 1 station) [$] | C20: =IFERROR(INDIRECT(VLOOKUP(MID(CELL("filename",E20),FIND("]", CELL("filename",E20))+1,32) & "!" & ADDRESS(ROW(E20),COLUMN(E20),4,1), SensitivitySummary[[#All],[Field Lookup]:[Sensitivity Reference]], 2, FALSE)), E20) -> 20 | E20: 20
A21: Number of additional visits per year for type 1 stations [visits] | F21: ='Owner-Operator Inputs'!F$34 -> 5548 | G21: ='Owner-Operator Inputs'!G$34 -> 6103 | H21: ='Owner-Operator Inputs'!H$34 -> 6713 | I21: ='Owner-Operator Inputs'!I$34 -> 7384 | J21: ='Owner-Operator Inputs'!J$34 -> 8122 | K21: ='Owner-Operator Inputs'!K$34 -> 8934 | L21: ='Owner-Operator Inputs'!L$34 -> 9827 | M21: ='Owner-Operator Inputs'!M$34 -> 10810 | N21: ='Owner-Operator Inputs'!N$34 -> 11891 | O21: ='Owner-Operator Inputs'!O$34 -> 12754.02299
A22: Average time spent per customer per visit for type 1 stations [minutes] | E22: =OFFSET(ooi_type_1_average_time_of_charging_session, 0,-2) -> 11
A23: Expected annual revenue from increased traffic for type 1 stations | F23: =IF($E19="Y",MIN(F21*$E22*$C$17,F21*$C20),) -> 61028 | G23: 67133 | H23: 73843 | I23: 81224 | J23: 89342 | K23: 98274 | L23: 108097 | M23: 118910 | N23: 130801 | O23: 140294.2529
A25: Type 2 stations capture customer traffic revenue | E25: N
A26: Maximum retail revenue per customer per session (type 2 station) [$] | C26: =IFERROR(INDIRECT(VLOOKUP(MID(CELL("filename",E26),FIND("]", CELL("filename",E26))+1,32) & "!" & ADDRESS(ROW(E26),COLUMN(E26),4,1), SensitivitySummary[[#All],[Field Lookup]:[Sensitivity Reference]], 2, FALSE)), E26) -> 25 | E26: 25
A27: Number of additional visits per year for type 2 stations [visits] | F27: ='Owner-Operator Inputs'!F$109 -> 0 | G27: ='Owner-Operator Inputs'!G$109 -> 0 | H27: ='Owner-Operator Inputs'!H$109 -> 0 | I27: ='Owner-Operator Inputs'!I$109 -> 0 | J27: ='Owner-Operator Inputs'!J$109 -> 0 | K27: ='Owner-Operator Inputs'!K$109 -> 0 | L27: ='Owner-Operator Inputs'!L$109 -> 0 | M27: ='Owner-Operator Inputs'!M$109 -> 0 | N27: ='Owner-Operator Inputs'!N$109 -> 0 | O27: ='Owner-Operator Inputs'!O$109 -> 0
A28: Average time spent per customer per visit for type 2 stations [minutes] | E28: =OFFSET(ooi_type_2_average_time_of_charging_session, 0,-2) -> 0
A29: Expected annual revenue from increased traffic for type 2 stations | F29: =IF($E25="Y",MIN(F27*$E28*$C$17,F27*$C26),) -> 0 | G29: 0 | H29: 0 | I29: 0 | J29: 0 | K29: 0 | L29: 0 | M29: 0 | N29: 0 | O29: 0
A31: Type 3 stations capture customer traffic revenue | E31: N
A32: Maximum retail revenue per customer per session (type 3 station) [$] | C32: =IFERROR(INDIRECT(VLOOKUP(MID(CELL("filename",E32),FIND("]", CELL("filename",E32))+1,32) & "!" & ADDRESS(ROW(E32),COLUMN(E32),4,1), SensitivitySummary[[#All],[Field Lookup]:[Sensitivity Reference]], 2, FALSE)), E32) -> 25 | E32: 25
A33: Number of additional visits per year for type 3 stations [visits] | F33: ='Owner-Operator Inputs'!F$184 -> 0 | G33: ='Owner-Operator Inputs'!G$184 -> 0 | H33: ='Owner-Operator Inputs'!H$184 -> 0 | I33: ='Owner-Operator Inputs'!I$184 -> 0 | J33: ='Owner-Operator Inputs'!J$184 -> 0 | K33: ='Owner-Operator Inputs'!K$184 -> 0 | L33: ='Owner-Operator Inputs'!L$184 -> 0 | M33: ='Owner-Operator Inputs'!M$184 -> 0 | N33: ='Owner-Operator Inputs'!N$184 -> 0 | O33: ='Owner-Operator Inputs'!O$184 -> 0
A34: Average time spent per customer per visit for type 3 stations [minutes] | E34: =OFFSET(ooi_type_3_average_time_of_charging_session, 0, -2) -> 0
A35: Expected annual revenue from increased traffic for type 3 stations | F35: =IF($E31="Y",MIN(F33*$E34*$C$17,F33*$C32),) -> 0 | G35: 0 | H35: 0 | I35: 0 | J35: 0 | K35: 0 | L35: 0 | M35: 0 | N35: 0 | O35: 0
A37: Indirect Revenue (Increases unrelated to customer time spent at station)
A38: Estimated NPV of lifetime after-tax profit per station (type 1 station) [$] | C38: =IFERROR(INDIRECT(VLOOKUP(MID(CELL("filename",E38),FIND("]", CELL("filename",E38))+1,32) & "!" & ADDRESS(ROW(E38),COLUMN(E38),4,1), SensitivitySummary[[#All],[Field Lookup]:[Sensitivity Reference]], 2, FALSE)), E38) -> 0 | E38: =0*1.75 -> 0
A39: Annual per station indirect revenue (type 1 station) [$] | E39: =((-PMT($C$6,ooi_expected_equipment_lifespan_years,(C38))/(1-$C$8))/(1-$C$7))*0.62 -> 0
A40: Total annual indirect revenue all type 1 stations | F40: =$E39*OFFSET(ooi_type_1_total_number_of_stations, 0, -2) -> 0 | G40: 0 | H40: 0 | I40: 0 | J40: 0 | K40: 0 | L40: 0 | M40: 0 | N40: 0 | O40: 0
A41: Estimated NPV of lifetime after-tax profit per station (type 2 station) [$] | C41: =IFERROR(INDIRECT(VLOOKUP(MID(CELL("filename",E41),FIND("]", CELL("filename",E41))+1,32) & "!" & ADDRESS(ROW(E41),COLUMN(E41),4,1), SensitivitySummary[[#All],[Field Lookup]:[Sensitivity Reference]], 2, FALSE)), E41) -> 0 | E41: =500*1.75*0 -> 0
A42: Annual per station indirect revenue (type 2 station) [$] | E42: =((-PMT($C$6,ooi_expected_equipment_lifespan_years,(C41))/(1-$C$8))/(1-$C$7))*0.62 -> 0
A43: Total annual indirect revenue all type 2 stations | F43: =$E42*OFFSET(ooi_type_2_total_number_of_stations, 0, -2) -> 0 | G43: 0 | H43: 0 | I43: 0 | J43: 0 | K43: 0 | L43: 0 | M43: 0 | N43: 0 | O43: 0
A44: Estimated NPV of lifetime after-tax profit per station (type 3 station) [$] | C44: =IFERROR(INDIRECT(VLOOKUP(MID(CELL("filename",E44),FIND("]", CELL("filename",E44))+1,32) & "!" & ADDRESS(ROW(E44),COLUMN(E44),4,1), SensitivitySummary[[#All],[Field Lookup]:[Sensitivity Reference]], 2, FALSE)), E44) -> 0 | E44: =7000*1.75*0 -> 0
A45: Annual per station indirect revenue (type 3 stations) [$] | E45: =((-PMT($C$6,ooi_expected_equipment_lifespan_years,(C44))/(1-$C$8))/(1-$E$7))*0.62 -> 0
A46: Total annual indirect revenue all type 3 stations | F46: =$E45*OFFSET(ooi_type_3_total_number_of_stations, 0, -2) -> 0 | G46: 0 | H46: 0 | I46: 0 | J46: 0 | K46: 0 | L46: 0 | M46: 0 | N46: 0 | O46: 0
A47: Total annual indirect revenue | F47: =SUM(F40:F46) -> 0 | G47: 0 | H47: 0 | I47: 0 | J47: 0 | K47: 0 | L47: 0 | M47: 0 | N47: 0 | O47: 0
A49: Revenue from Electrical Grid Benefit Capture
A50: Capture the electrical grid benefits | E50: Y
A51: Total electric utility benefit capture revenue | F51: =IF(psp_electric_utility_benefit_capture="Y", 'Owner-Operator Inputs'!F253, 0) -> 748.04148 | G51: =IF(psp_electric_utility_benefit_capture="Y", 'Owner-Operator Inputs'!G253, 0) -> 822.8725942 | H51: =IF(psp_electric_utility_benefit_capture="Y", 'Owner-Operator Inputs'!H253, 0) -> 905.1194043 | I51: =IF(psp_electric_utility_benefit_capture="Y", 'Owner-Operator Inputs'!I253, 0) -> 995.5908955 | J51: =IF(psp_electric_utility_benefit_capture="Y", 'Owner-Operator Inputs'!J253, 0) -> 1095.096053 | K51: =IF(psp_electric_utility_benefit_capture="Y", 'Owner-Operator Inputs'!K253, 0) -> 1204.578692 | L51: =IF(psp_electric_utility_benefit_capture="Y", 'Owner-Operator Inputs'!L253, 0) -> 1324.982629 | M51: =IF(psp_electric_utility_benefit_capture="Y", 'Owner-Operator Inputs'!M253, 0) -> 1457.521341 | N51: =IF(psp_electric_utility_benefit_capture="Y", 'Owner-Operator Inputs'!N253, 0) -> 1603.273475 | O51: =IF(psp_electric_utility_benefit_capture="Y", 'Owner-Operator Inputs'!O253, 0) -> 1719.635586
A53: Total expected revenue | F53: =F14+F23+F29+F35+F47+F51 -> 61776.04148 | G53: =G14+G23+G29+G35+G47+G51 -> 67955.87259 | H53: =H14+H23+H29+H35+H47+H51 -> 74748.1194 | I53: 82219.5909 | J53: 90437.09605 | K53: 99478.57869 | L53: 109421.9826 | M53: 120367.5213 | N53: 132404.2735 | O53: 142013.8885
A55: Costs
F56: =+'Initial Settings'!$B$6+1 -> 2018 | G56: =F56+1 -> 2019 | H56: 2020 | I56: 2021 | J56: 2022 | K56: 2023 | L56: 2024 | M56: 2025 | N56: 2026 | O56: 2027
A57: Cost of Goods Sold | F57: =(F23+F29+F35+F47)*$C$7 -> 48822.4 | G57: 53706.4 | H57: 59074.4 | I57: 64979.2 | J57: 71473.6 | K57: 78619.2 | L57: 86477.6 | M57: 95128 | N57: 104640.8 | O57: 112235.4023
A58: Annual customer revenue sharing agreement (from sales) [% of revenue] | C58: =IFERROR(INDIRECT(VLOOKUP(MID(CELL("filename",E58),FIND("]", CELL("filename",E58))+1,32) & "!" & ADDRESS(ROW(E58),COLUMN(E58),4,1), SensitivitySummary[[#All],[Field Lookup]:[Sensitivity Reference]], 2, FALSE)), E58) -> 0.1 | E58: 0.1
A59: Annual customer revenue sharing costs (paid to owner-operator) [$] | F59: =(F23+F29+F35)*$C$58 -> 6102.8 | G59: 6713.3 | H59: 7384.3 | I59: 8122.4 | J59: 8934.2 | K59: 9827.4 | L59: 10809.7 | M59: 11891 | N59: 13080.1 | O59: 14029.42529
A60: Per station subsidy (type 1 station) [$] | C60: =IFERROR(INDIRECT(VLOOKUP(MID(CELL("filename",E60),FIND("]", CELL("filename",E60))+1,32) & "!" & ADDRESS(ROW(E60),COLUMN(E60),4,1), SensitivitySummary[[#All],[Field Lookup]:[Sensitivity Reference]], 2, FALSE)), E60) -> 0 | E60: 0
A61: Per station subsidy (type 2 station) [$] | C61: =IFERROR(INDIRECT(VLOOKUP(MID(CELL("filename",E61),FIND("]", CELL("filename",E61))+1,32) & "!" & ADDRESS(ROW(E61),COLUMN(E61),4,1), SensitivitySummary[[#All],[Field Lookup]:[Sensitivity Reference]], 2, FALSE)), E61) -> 0 | E61: =500*0 -> 0
A62: Per station subsidy (type 3 station) [$] | C62: =IFERROR(INDIRECT(VLOOKUP(MID(CELL("filename",E62),FIND("]", CELL("filename",E62))+1,32) & "!" & ADDRESS(ROW(E62),COLUMN(E62),4,1), SensitivitySummary[[#All],[Field Lookup]:[Sensitivity Reference]], 2, FALSE)), E62) -> 0 | E62: =7000*0 -> 0
A63: One-time initial charging equipment cost subsidy (paid to owner-operator) [$] | F63: =OFFSET(ooi_type_1_total_number_of_stations, 0, -2)*$C$60+OFFSET(ooi_type_2_total_number_of_stations, 0, -2)*$C$61+OFFSET(ooi_type_3_total_number_of_stations, 0, -2)*$C$62 -> 0
A64: Annual flat fee (paid to owner-operator) [$] | C64: =IFERROR(INDIRECT(VLOOKUP(MID(CELL("filename",E64),FIND("]", CELL("filename",E64))+1,32) & "!" & ADDRESS(ROW(E64),COLUMN(E64),4,1), SensitivitySummary[[#All],[Field Lookup]:[Sensitivity Reference]], 2, FALSE)), E64) -> 0 | E64: 0 | F64: =$C$64 -> 0 | G64: =$C$64 -> 0 | H64: 0 | I64: 0 | J64: 0 | K64: 0 | L64: 0 | M64: 0 | N64: 0 | O64: 0
A66: Total expected costs | F66: =SUM(F57:F64) -> 54925.2 | G66: =SUM(G57:G64) -> 60419.7 | H66: 66458.7 | I66: 73101.6 | J66: 80407.8 | K66: 88446.6 | L66: 97287.3 | M66: 107019 | N66: 117720.9 | O66: 126264.8276

Sheet Public Sector Partner Inputs
A1: ='Initial Settings'!$B$5 -> Corridor and Community DC Fast Charging Complex (Urban Site)
A4: Public Sector Partner Inputs
A6: Public Sector Cost of Capital [%] | C6: =IFERROR(INDIRECT(VLOOKUP(MID(CELL("filename",E6),FIND("]", CELL("filename",E6))+1,32) & "!" & ADDRESS(ROW(E6),COLUMN(E6),4,1), SensitivitySummary[[#All],[Field Lookup]:[Sensitivity Reference]], 2, FALSE)), E6) -> 0.054 | E6: 0.054
A8: Support for Initial Capitalization of Charging Infrastructure
A9: Amount of debt needed | F9: ='Owner-Operator Inputs'!F286 -> 57713.184
A10: Public sector funded portion of debt [% of debt needed] | C10: =IFERROR(INDIRECT(VLOOKUP(MID(CELL("filename",E10),FIND("]", CELL("filename",E10))+1,32) & "!" & ADDRESS(ROW(E10),COLUMN(E10),4,1), SensitivitySummary[[#All],[Field Lookup]:[Sensitivity Reference]], 2, FALSE)), E10) -> 0 | E10: 0 | F10: =F9*C10 -> 0
A11: Term [years] | C11: =IFERROR(INDIRECT(VLOOKUP(MID(CELL("filename",E11),FIND("]", CELL("filename",E11))+1,32) & "!" & ADDRESS(ROW(E11),COLUMN(E11),4,1), SensitivitySummary[[#All],[Field Lookup]:[Sensitivity Reference]], 2, FALSE)), E11) -> 10 | E11: 10
A12: Rate (APR) [%] | C12: =IFERROR(INDIRECT(VLOOKUP(MID(CELL("filename",E12),FIND("]", CELL("filename",E12))+1,32) & "!" & ADDRESS(ROW(E12),COLUMN(E12),4,1), SensitivitySummary[[#All],[Field Lookup]:[Sensitivity Reference]], 2, FALSE)), E12) -> 0.054 | E12: 0.054
A13: Amount of equity needed | F13: ='Owner-Operator Inputs'!F283 -> 38475.456 | G13: =(OFFSET(ooi_type_1_charging_station_equipment_cost, 0,-2)*OFFSET(ooi_type_1_total_number_of_stations, 0, -2))+('Owner-Operator Inputs'!E89*'Owner-Operator Inputs'!E98)+('Owner-Operator Inputs'!E164*'Owner-Operator Inputs'!E173) -> 25000 | H13: Total equipment cost
A14: Public sector funded portion of equity investment [% of equity needed] | C14: =IFERROR(INDIRECT(VLOOKUP(MID(CELL("filename",E14),FIND("]", CELL("filename",E14))+1,32) & "!" & ADDRESS(ROW(E14),COLUMN(E14),4,1), SensitivitySummary[[#All],[Field Lookup]:[Sensitivity Reference]], 2, FALSE)), E14) -> 0 | E14: 0 | F14: =F13*C14 -> 0 | G14: =F17/G13 -> 0 | H14: Percent of equipment cost funded by grant
A15: Public sector equity has capped annual returns? | E15: N
A16: Annual equity return cap [%] | C16: =IFERROR(INDIRECT(VLOOKUP(MID(CELL("filename",E16),FIND("]", CELL("filename",E16))+1,32) & "!" & ADDRESS(ROW(E16),COLUMN(E16),4,1), SensitivitySummary[[#All],[Field Lookup]:[Sensitivity Reference]], 2, FALSE)), E16) -> 0.054 | E16: 0.054
A17: Non-shareholder contribution to capital (grants, etc.) [% of equity needed] | C17: =IFERROR(INDIRECT(VLOOKUP(MID(CELL("filename",E17),FIND("]", CELL("filename",E17))+1,32) & "!" & ADDRESS(ROW(E17),COLUMN(E17),4,1), SensitivitySummary[[#All],[Field Lookup]:[Sensitivity Reference]], 2, FALSE)), E17) -> 0 | E17: 0 | F17: =F13*C17 -> 0
A18: Equity amount + grant amount should not exceed 100%--> | D18: =C17+C14 -> 0
A19: Projected Additional Ongoing Support | F19: =+'Initial Settings'!$B$6+1 -> 2018 | G19: =F19+1 -> 2019 | H19: =G19+1 -> 2020 | I19: 2021 | J19: 2022 | K19: 2023 | L19: 2024 | M19: 2025 | N19: 2026 | O19: 2027
A20: Other annual non-revolving support (grants, etc.) [$] | F20: 0

Sheet Owner-Operator DCF
A1: ='Initial Settings'!$B$5 -> Corridor and Community DC Fast Charging Complex (Urban Site)
A4: Owner-Operator Discounted Cash Flow Model | C4: ='Initial Settings'!$B$6 -> 2017 | D4: ='Owner-Operator Inputs'!F304 -> 2018 | E4: ='Owner-Operator Inputs'!G304 -> 2019 | F4: ='Owner-Operator Inputs'!H304 -> 2020 | G4: ='Owner-Operator Inputs'!I304 -> 2021 | H4: ='Owner-Operator Inputs'!J304 -> 2022 | I4: ='Owner-Operator Inputs'!K304 -> 2023 | J4: ='Owner-Operator Inputs'!L304 -> 2024 | K4: ='Owner-Operator Inputs'!M304 -> 2025 | L4: ='Owner-Operator Inputs'!N304 -> 2026 | M4: ='Owner-Operator Inputs'!O304 -> 2027
A6: Revenue | D6: ='Owner-Operator Inputs'!F266 -> 36886.4 | E6: ='Owner-Operator Inputs'!G266 -> 40576.36972 | F6: ='Owner-Operator Inputs'!H266 -> 44632.01211 | G6: ='Owner-Operator Inputs'!I266 -> 49093.21875 | H6: ='Owner-Operator Inputs'!J266 -> 53999.88118 | I6: ='Owner-Operator Inputs'!K266 -> 59398.53958 | J6: ='Owner-Operator Inputs'!L266 -> 65335.7341 | K6: ='Owner-Operator Inputs'!M266 -> 71871.30209 | L6: ='Owner-Operator Inputs'!N266 -> 79058.4323 | M6: ='Owner-Operator Inputs'!O266 -> 84796.32184
A7: Operating Costs | D7: =-'Owner-Operator Inputs'!F275 -> -28529.52 | E7: =-'Owner-Operator Inputs'!G275 -> -29768.72762 | F7: =-'Owner-Operator Inputs'!H275 -> -31133.66176 | G7: =-'Owner-Operator Inputs'!I275 -> -32638.28385 | H7: =-'Owner-Operator Inputs'!J275 -> -34296.67098 | I7: =-'Owner-Operator Inputs'!K275 -> -36125.22191 | J7: =-'Owner-Operator Inputs'!L275 -> -38140.47121 | K7: =-'Owner-Operator Inputs'!M275 -> -40363.51933 | L7: =-'Owner-Operator Inputs'!N275 -> -42813.42264 | M7: =-'Owner-Operator Inputs'!O275 -> -44788.87193
A8: EBITDA | D8: =SUM(D6:D7) -> 8356.88 | E8: 10807.6421 | F8: 13498.35035 | G8: 16454.9349 | H8: 19703.2102 | I8: 23273.31768 | J8: 27195.2629 | K8: 31507.78276 | L8: 36245.00966 | M8: 40007.44991
A10: Dep & Amortization | D10: =-'Owner-Operator Inputs'!F313 -> -9250 | E10: =-'Owner-Operator Inputs'!G313 -> -9250 | F10: =-'Owner-Operator Inputs'!H313 -> -9250 | G10: =-'Owner-Operator Inputs'!I313 -> -9250 | H10: =-'Owner-Operator Inputs'!J313 -> -9250 | I10: =-'Owner-Operator Inputs'!K313 -> -9250 | J10: =-'Owner-Operator Inputs'!L313 -> -9250 | K10: =-'Owner-Operator Inputs'!M313 -> -9250 | L10: =-'Owner-Operator Inputs'!N313 -> -9250 | M10: =-'Owner-Operator Inputs'!O313 -> -9250
A11: Operating Income (EBIT) | D11: =SUM(D8:D10) -> -893.12 | E11: 1557.642102 | F11: 4248.35035 | G11: 7204.934899 | H11: 10453.2102 | I11: 14023.31768 | J11: 17945.2629 | K11: 22257.78276 | L11: 26995.00966 | M11: 30757.44991
A12: Interest Expense | D12: ='Income Statement'!C30 -> -4664.195539 | E12: ='Income Statement'!D30 -> -4350.198394 | F12: ='Income Statement'!E30 -> -4011.171544 | G12: ='Income Statement'!F30 -> -3645.126209 | H12: ='Income Statement'!G30 -> -3249.910425 | I12: ='Income Statement'!H30 -> -2823.204492 | J12: ='Income Statement'!I30 -> -2362.498375 | K12: ='Income Statement'!J30 -> -1865.093472 | L12: ='Income Statement'!K30 -> -1328.060676 | M12: ='Income Statement'!L30 -> -745.4783143
A13: Income Before Taxes (EBT) | D13: =SUM(D11:D12) -> -5557.315539 | E13: -2792.556292 | F13: 237.1788056 | G13: 3559.80869 | H13: 7203.299773 | I13: 11200.11318 | J13: 15582.76452 | K13: 20392.68929 | L13: 25666.94899 | M13: 30011.9716
A14: Taxes | D14: =-D13*'Owner-Operator Inputs'!F322 -> 1756.141007 | E14: =-E13*'Owner-Operator Inputs'!G322 -> 882.4625096 | F14: =-F13*'Owner-Operator Inputs'!H322 -> -74.9497529 | G14: =-G13*'Owner-Operator Inputs'!I322 -> -1124.918312 | H14: =-H13*'Owner-Operator Inputs'!J322 -> -2276.280701 | I14: =-I13*'Owner-Operator Inputs'!K322 -> -3539.294809 | J14: =-J13*'Owner-Operator Inputs'!L322 -> -4924.235735 | K14: =-K13*'Owner-Operator Inputs'!M322 -> -6444.197318 | L14: =-L13*'Owner-Operator Inputs'!N322 -> -8110.891187 | M14: =-M13*'Owner-Operator Inputs'!O322 -> -9483.941237
A15: Cash Flow from Operations | D15: =D8+D12+D14 -> 5448.825467 | E15: 7339.906218 | F15: 9412.229053 | G15: 11684.89038 | H15: 14177.01907 | I15: 16910.81838 | J15: 19908.52879 | K15: 23198.49197 | L15: 26806.0578 | M15: 29778.03036
A16: Change in Non-cash Assets | D16: =-(SUM('Balance Sheet'!C8:C10)-SUM('Balance Sheet'!B8:B10)+('Balance Sheet'!C14-'Balance Sheet'!B14)) -> -1844.32 | E16: =-(SUM('Balance Sheet'!D8:D10)-SUM('Balance Sheet'!C8:C10)+('Balance Sheet'!D14-'Balance Sheet'!C14)) -> -184.4984859 | F16: =-(SUM('Balance Sheet'!E8:E10)-SUM('Balance Sheet'!D8:D10)+('Balance Sheet'!E14-'Balance Sheet'!D14)) -> -202.7821197 | G16: =-(SUM('Balance Sheet'!F8:F10)-SUM('Balance Sheet'!E8:E10)+('Balance Sheet'!F14-'Balance Sheet'!E14)) -> -223.0603317 | H16: =-(SUM('Balance Sheet'!G8:G10)-SUM('Balance Sheet'!F8:F10)+('Balance Sheet'!G14-'Balance Sheet'!F14)) -> -245.3331218 | I16: =-(SUM('Balance Sheet'!H8:H10)-SUM('Balance Sheet'!G8:G10)+('Balance Sheet'!H14-'Balance Sheet'!G14)) -> -269.93292 | J16: =-(SUM('Balance Sheet'!I8:I10)-SUM('Balance Sheet'!H8:H10)+('Balance Sheet'!I14-'Balance Sheet'!H14)) -> -296.859726 | K16: =-(SUM('Balance Sheet'!J8:J10)-SUM('Balance Sheet'!I8:I10)+('Balance Sheet'!J14-'Balance Sheet'!I14)) -> -326.7783994 | L16: =-(SUM('Balance Sheet'!K8:K10)-SUM('Balance Sheet'!J8:J10)+('Balance Sheet'!K14-'Balance Sheet'!J14)) -> -359.3565105 | M16: =-(SUM('Balance Sheet'!L8:L10)-SUM('Balance Sheet'!K8:K10)+('Balance Sheet'!L14-'Balance Sheet'!K14)) -> -286.894477
A17: Change in Liabilities | D17: ='Balance Sheet'!C33-'Balance Sheet'!B33 -> 1549.048417 | E17: ='Balance Sheet'!D33-'Balance Sheet'!C33 -> -3749.129051 | F17: ='Balance Sheet'!E33-'Balance Sheet'!D33 -> -4038.488111 | G17: ='Balance Sheet'!F33-'Balance Sheet'!E33 -> -4349.400233 | H17: ='Balance Sheet'!G33-'Balance Sheet'!F33 -> -4684.06836 | I17: ='Balance Sheet'!H33-'Balance Sheet'!G33 -> -5043.874384 | J17: ='Balance Sheet'!I33-'Balance Sheet'!H33 -> -5431.387817 | K17: ='Balance Sheet'!J33-'Balance Sheet'!I33 -> -5847.389157 | L17: ='Balance Sheet'!K33-'Balance Sheet'!J33 -> -6295.872772 | M17: ='Balance Sheet'!L33-'Balance Sheet'!K33 -> -7103.174257
A19: Free Cash Flow to Equity | D19: =SUM(D15:D17) -> 5153.553885 | E19: 3406.27868 | F19: 5170.958822 | G19: 7112.429814 | H19: 9247.61759 | I19: 11597.01107 | J19: 14180.28124 | K19: 17024.32441 | L19: 20150.82852 | M19: 22387.96163
A20: Terminal Value | M20: ='Terminal Value Model'!L16 -> -12719.44828
A21: Free Cash Flow to Public Equity Holders | D21: =IF(OFFSET(pusp_equity_return_cap, 0, -2)="Y",MIN(SUM(D19:D20)*'Owner-Operator Inputs'!$E$284,'Balance Sheet'!C$36*'Owner-Operator Inputs'!$E$284*pusp_equity_return_cap),SUM(D19:D20)*'Owner-Operator Inputs'!$E$284) -> 0 | E21: =IF(OFFSET(pusp_equity_return_cap, 0, -2)="Y",MIN(SUM(E19:E20)*'Owner-Operator Inputs'!$E$284,'Balance Sheet'!D$36*'Owner-Operator Inputs'!$E$284*pusp_equity_return_cap),SUM(E19:E20)*'Owner-Operator Inputs'!$E$284) -> 0 | F21: =IF(OFFSET(pusp_equity_return_cap, 0, -2)="Y",MIN(SUM(F19:F20)*'Owner-Operator Inputs'!$E$284,'Balance Sheet'!E$36*'Owner-Operator Inputs'!$E$284*pusp_equity_return_cap),SUM(F19:F20)*'Owner-Operator Inputs'!$E$284) -> 0 | G21: =IF(OFFSET(pusp_equity_return_cap, 0, -2)="Y",MIN(SUM(G19:G20)*'Owner-Operator Inputs'!$E$284,'Balance Sheet'!F$36*'Owner-Operator Inputs'!$E$284*pusp_equity_return_cap),SUM(G19:G20)*'Owner-Operator Inputs'!$E$284) -> 0 | H21: =IF(OFFSET(pusp_equity_return_cap, 0, -2)="Y",MIN(SUM(H19:H20)*'Owner-Operator Inputs'!$E$284,'Balance Sheet'!G$36*'Owner-Operator Inputs'!$E$284*pusp_equity_return_cap),SUM(H19:H20)*'Owner-Operator Inputs'!$E$284) -> 0 | I21: =IF(OFFSET(pusp_equity_return_cap, 0, -2)="Y",MIN(SUM(I19:I20)*'Owner-Operator Inputs'!$E$284,'Balance Sheet'!H$36*'Owner-Operator Inputs'!$E$284*pusp_equity_return_cap),SUM(I19:I20)*'Owner-Operator Inputs'!$E$284) -> 0 | J21: =IF(OFFSET(pusp_equity_return_cap, 0, -2)="Y",MIN(SUM(J19:J20)*'Owner-Operator Inputs'!$E$284,'Balance Sheet'!I$36*'Owner-Operator Inputs'!$E$284*pusp_equity_return_cap),SUM(J19:J20)*'Owner-Operator Inputs'!$E$284) -> 0 | K21: =IF(OFFSET(pusp_equity_return_cap, 0, -2)="Y",MIN(SUM(K19:K20)*'Owner-Operator Inputs'!$E$284,'Balance Sheet'!J$36*'Owner-Operator Inputs'!$E$284*pusp_equity_return_cap),SUM(K19:K20)*'Owner-Operator Inputs'!$E$284) -> 0 | L21: =IF(OFFSET(pusp_equity_return_cap, 0, -2)="Y",MIN(SUM(L19:L20)*'Owner-Operator Inputs'!$E$284,'Balance Sheet'!K$36*'Owner-Operator Inputs'!$E$284*pusp_equity_return_cap),SUM(L19:L20)*'Owner-Operator Inputs'!$E$284) -> 0 | M21: =IF(OFFSET(pusp_equity_return_cap, 0, -2)="Y",MIN(SUM(M19:M20)*'Owner-Operator Inputs'!$E$284,'Balance Sheet'!L$36*'Owner-Operator Inputs'!$E$284*pusp_equity_return_cap),SUM(M19:M20)*'Owner-Operator Inputs'!$E$284) -> 0
A22: Total Free Cash Flow to Owner-Operator Equity Holders | C22: =-('Owner-Operator Inputs'!F283-'Public Sector Partner Inputs'!F14-'Public Sector Partner Inputs'!F17) -> -38475.456 | D22: =SUM(D19:D20)-D21 -> 5153.553885 | E22: 3406.27868 | F22: 5170.958822 | G22: 7112.429814 | H22: 9247.61759 | I22: 11597.01107 | J22: 14180.28124 | K22: 17024.32441 | L22: 20150.82852 | M22: 9668.513351
A23: Discount Factor | B23: ='Owner-Operator Inputs'!$E$297 -> 0.1025 | C23: =(1/(1+$B$23))^(COLUMN(C23)-COLUMN($C$23)) -> 1 | D23: =(1/(1+$B$23))^(COLUMN(D23)-COLUMN($C$23)) -> 0.9070294785 | E23: 0.8227024748 | F23: 0.7462153966 | G23: 0.676839362 | H23: 0.6139132535 | I23: 0.5568374182 | J23: 0.505067953 | K23: 0.458111522 | L23: 0.4155206549 | M23: 0.3768894829
A24: Discounted Cash Flows | C24: =C22*C23 -> -38475.456 | D24: 4674.425292 | E24: 2802.3539 | F24: 3858.649088 | G24: 4813.972458 | H24: 5677.235002 | I24: 6457.649704 | J24: 7162.00562 | K24: 7799.039169 | L24: 8373.085462 | M24: 3643.960997
A25: Cumulative Discounted Cash Flows | C25: =C24 -> -38475.456 | D25: =C25+D24 -> -33801.03071 | E25: =D25+E24 -> -30998.67681 | F25: -27140.02772 | G25: -22326.05526 | H25: -16648.82026 | I25: -10191.17056 | J25: -3029.164936 | K25: 4769.874233 | L25: 13142.95969 | M25: 16786.92069
A27: Net Present Value for Owner-Operator Equity Holders | C27: =SUM(C24:M24) -> 16786.92069
A28: Internal Rate of Return for Owner-Operator Equity Holders | C28: =IFERROR(IRR(C24:M24,0.1),"N/A") -> 0.06451695063
A29: Discounted Payback | C29: =IFERROR(IF(MATCH(0,$D$25:$M$25,1)>=10,"N/A",MATCH(0,$D$25:$M$25,1)+1),1) -> 8

Sheet Private Sector Partner DCF
A1: ='Initial Settings'!$B$5 -> Corridor and Community DC Fast Charging Complex (Urban Site)
A4: Private Sector Discounted Cash Flow Model | C4: ='Initial Settings'!$B$6 -> 2017 | D4: ='Owner-Operator Inputs'!F304 -> 2018 | E4: ='Owner-Operator Inputs'!G304 -> 2019 | F4: ='Owner-Operator Inputs'!H304 -> 2020 | G4: ='Owner-Operator Inputs'!I304 -> 2021 | H4: ='Owner-Operator Inputs'!J304 -> 2022 | I4: ='Owner-Operator Inputs'!K304 -> 2023 | J4: ='Owner-Operator Inputs'!L304 -> 2024 | K4: ='Owner-Operator Inputs'!M304 -> 2025 | L4: ='Owner-Operator Inputs'!N304 -> 2026 | M4: ='Owner-Operator Inputs'!O304 -> 2027
A6: Revenue | D6: ='Private Sector Partner Inputs'!F53 -> 61776.04148 | E6: ='Private Sector Partner Inputs'!G53 -> 67955.87259 | F6: ='Private Sector Partner Inputs'!H53 -> 74748.1194 | G6: ='Private Sector Partner Inputs'!I53 -> 82219.5909 | H6: ='Private Sector Partner Inputs'!J53 -> 90437.09605 | I6: ='Private Sector Partner Inputs'!K53 -> 99478.57869 | J6: ='Private Sector Partner Inputs'!L53 -> 109421.9826 | K6: ='Private Sector Partner Inputs'!M53 -> 120367.5213 | L6: ='Private Sector Partner Inputs'!N53 -> 132404.2735 | M6: ='Private Sector Partner Inputs'!O53 -> 142013.8885
A7: Operating Costs | D7: =-'Private Sector Partner Inputs'!F66 -> -54925.2 | E7: =-'Private Sector Partner Inputs'!G66 -> -60419.7 | F7: =-'Private Sector Partner Inputs'!H66 -> -66458.7 | G7: =-'Private Sector Partner Inputs'!I66 -> -73101.6 | H7: =-'Private Sector Partner Inputs'!J66 -> -80407.8 | I7: =-'Private Sector Partner Inputs'!K66 -> -88446.6 | J7: =-'Private Sector Partner Inputs'!L66 -> -97287.3 | K7: =-'Private Sector Partner Inputs'!M66 -> -107019 | L7: =-'Private Sector Partner Inputs'!N66 -> -117720.9 | M7: =-'Private Sector Partner Inputs'!O66 -> -126264.8276
A8: EBITDA | D8: =SUM(D6:D7) -> 6850.84148 | E8: 7536.172594 | F8: 8289.419404 | G8: 9117.990896 | H8: 10029.29605 | I8: =SUM(I6:I7) -> 11031.97869 | J8: 12134.68263 | K8: 13348.52134 | L8: 14683.37347 | M8: 15749.06087
A9: Dep & Amortization
A10: Operating Income (EBIT) | D10: =SUM(D8:D9) -> 6850.84148 | E10: 7536.172594 | F10: 8289.419404 | G10: 9117.990896 | H10: 10029.29605 | I10: 11031.97869 | J10: 12134.68263 | K10: 13348.52134 | L10: 14683.37347 | M10: 15749.06087
A11: Interest Expense
A12: Income Before Taxes (EBT) | D12: =SUM(D10:D11) -> 6850.84148 | E12: 7536.172594 | F12: 8289.419404 | G12: 9117.990896 | H12: 10029.29605 | I12: 11031.97869 | J12: 12134.68263 | K12: 13348.52134 | L12: 14683.37347 | M12: 15749.06087
A13: Taxes | D13: =-D12*OFFSET(psp_private_sector_marginal_tax_rate, 0, -2) -> -2164.902023 | E13: -2381.470268 | F13: -2619.500231 | G13: -2881.33319 | H13: -3169.310423 | I13: -3486.163423 | J13: -3834.62368 | K13: -4218.203112 | L13: -4640.023423 | M13: -4976.786259
A14: Cash Flow from Operations | D14: =D8+D11+D13 -> 4685.939457 | E14: 5154.702326 | F14: 5669.919174 | G14: 6236.657706 | H14: 6859.985629 | I14: 7545.815269 | J14: 8300.058948 | K14: 9130.318229 | L14: 10043.35005 | M14: 10772.27461
A15: Change in Non-cash Assets
A16: Change in Liabilities
A18: Free Cash Flow | D18: =SUM(D14:D16) -> 4685.939457 | E18: 5154.702326 | F18: 5669.919174 | G18: 6236.657706 | H18: 6859.985629 | I18: 7545.815269 | J18: 8300.058948 | K18: 9130.318229 | L18: 10043.35005 | M18: 10772.27461
A19: Terminal Value | M19: 0
A20: Total Free Cash Flow | C20: 0 | D20: =D18+D19 -> 4685.939457 | E20: 5154.702326 | F20: 5669.919174 | G20: 6236.657706 | H20: 6859.985629 | I20: 7545.815269 | J20: 8300.058948 | K20: 9130.318229 | L20: 10043.35005 | M20: 10772.27461
A21: Discount Factor (WACC) | B21: =OFFSET(psp_private_sector_wacc, 0,-2) -> 0.1033 | C21: =(1/(1+$B$21))^(COLUMN(C21)-COLUMN($C$21)) -> 1 | D21: =(1/(1+$B$21))^(COLUMN(D21)-COLUMN($C$21)) -> 0.9063717937 | E21: 0.8215098284 | F21: 0.7445933367 | G21: 0.6748783982 | H21: 0.6116907443 | I21: 0.5544192371 | J21: 0.5025099584 | K21: 0.4554608524 | L21: 0.4128168697 | M21: 0.3741655667
A22: Discounted Cash Flows | C22: =C20*C21 -> 0 | D22: 4247.203351 | E22: 4234.638624 | F22: 4221.784037 | G22: 4208.985563 | H22: 4196.189716 | I22: 4183.545145 | J22: 4170.862277 | K22: 4158.502523 | L22: 4146.06433 | M22: 4030.614236
A23: Cumulative Discounted Cash Flows | C23: =C22 -> 0 | D23: =C23+D22 -> 4247.203351 | E23: =D23+E22 -> 8481.841975 | F23: 12703.62601 | G23: 16912.61157 | H23: 21108.80129 | I23: 25292.34643 | J23: 29463.20871 | K23: 33621.71123 | L23: 37767.77556 | M23: 41798.3898
A25: Net Present Value | C25: =SUM(C22:M22) -> 41798.3898
A26: Internal Rate of Return | C26: =IFERROR(IRR(C22:M22,0.1),"N/A") -> N/A
A27: Discounted Payback | C27: =IFERROR(IF(MATCH(0,$D$23:$M$23,1)>=10,"N/A",MATCH(0,$D$23:$M$23,1)+1),1) -> 1

Sheet Public Sector Partner DCF
A1: ='Initial Settings'!$B$5 -> Corridor and Community DC Fast Charging Complex (Urban Site)
A4: Public Sector Discounted Cash Flow Model | C4: ='Initial Settings'!$B$6 -> 2017 | D4: ='Owner-Operator Inputs'!F304 -> 2018 | E4: ='Owner-Operator Inputs'!G304 -> 2019 | F4: ='Owner-Operator Inputs'!H304 -> 2020 | G4: ='Owner-Operator Inputs'!I304 -> 2021 | H4: ='Owner-Operator Inputs'!J304 -> 2022 | I4: ='Owner-Operator Inputs'!K304 -> 2023 | J4: ='Owner-Operator Inputs'!L304 -> 2024 | K4: ='Owner-Operator Inputs'!M304 -> 2025 | L4: ='Owner-Operator Inputs'!N304 -> 2026 | M4: ='Owner-Operator Inputs'!O304 -> 2027
A6: Cash Outflows
A7: Loan disbursement | C7: =-'Public Sector Partner Inputs'!F10 -> 0
A8: Equity investment | C8: =-'Public Sector Partner Inputs'!F14 -> 0
A9: Non-shareholder contributions to capital (grants) | C9: =-'Public Sector Partner Inputs'!F17 -> 0 | D9: =-'Public Sector Partner Inputs'!F20 -> 0 | E9: ='Public Sector Partner Inputs'!G20 -> 0 | F9: ='Public Sector Partner Inputs'!H20 -> 0 | G9: ='Public Sector Partner Inputs'!I20 -> 0 | H9: ='Public Sector Partner Inputs'!J20 -> 0 | I9: ='Public Sector Partner Inputs'!K20 -> 0 | J9: ='Public Sector Partner Inputs'!L20 -> 0 | K9: ='Public Sector Partner Inputs'!M20 -> 0 | L9: ='Public Sector Partner Inputs'!N20 -> 0 | M9: ='Public Sector Partner Inputs'!O20 -> 0
A10: Cash Inflows
A11: Loan repayments | D11: =-('Debt Schedule'!D6+'Debt Schedule'!D7) -> 0 | E11: =-('Debt Schedule'!E6+'Debt Schedule'!E7) -> 0 | F11: =-('Debt Schedule'!F6+'Debt Schedule'!F7) -> 0 | G11: =-('Debt Schedule'!G6+'Debt Schedule'!G7) -> 0 | H11: =-('Debt Schedule'!H6+'Debt Schedule'!H7) -> 0 | I11: =-('Debt Schedule'!I6+'Debt Schedule'!I7) -> 0 | J11: =-('Debt Schedule'!J6+'Debt Schedule'!J7) -> 0 | K11: =-('Debt Schedule'!K6+'Debt Schedule'!K7) -> 0 | L11: =-('Debt Schedule'!L6+'Debt Schedule'!L7) -> 0 | M11: =-('Debt Schedule'!M6+'Debt Schedule'!M7) -> 0
A12: Cash Flow from Equity (Public Sector Portion) | D12: ='Owner-Operator DCF'!D21 -> 0 | E12: ='Owner-Operator DCF'!E21 -> 0 | F12: ='Owner-Operator DCF'!F21 -> 0 | G12: ='Owner-Operator DCF'!G21 -> 0 | H12: ='Owner-Operator DCF'!H21 -> 0 | I12: ='Owner-Operator DCF'!I21 -> 0 | J12: ='Owner-Operator DCF'!J21 -> 0 | K12: ='Owner-Operator DCF'!K21 -> 0 | L12: ='Owner-Operator DCF'!L21 -> 0 | M12: ='Owner-Operator DCF'!M21 -> 0
A13: Sales tax revenue | D13: ='Owner-Operator Inputs'!F265*OFFSET(market_inputs_sales_tax_rate,0,-2) -> 0 | E13: ='Owner-Operator Inputs'!G265*OFFSET(market_inputs_sales_tax_rate,0,-2) -> 0 | F13: ='Owner-Operator Inputs'!H265*OFFSET(market_inputs_sales_tax_rate,0,-2) -> 0 | G13: ='Owner-Operator Inputs'!I265*OFFSET(market_inputs_sales_tax_rate,0,-2) -> 0 | H13: ='Owner-Operator Inputs'!J265*OFFSET(market_inputs_sales_tax_rate,0,-2) -> 0 | I13: ='Owner-Operator Inputs'!K265*OFFSET(market_inputs_sales_tax_rate,0,-2) -> 0 | J13: ='Owner-Operator Inputs'!L265*OFFSET(market_inputs_sales_tax_rate,0,-2) -> 0 | K13: ='Owner-Operator Inputs'!M265*OFFSET(market_inputs_sales_tax_rate,0,-2) -> 0 | L13: ='Owner-Operator Inputs'!N265*OFFSET(market_inputs_sales_tax_rate,0,-2) -> 0 | M13: ='Owner-Operator Inputs'!O265*OFFSET(market_inputs_sales_tax_rate,0,-2) -> 0
A14: Energy security benefit revenue | D14: ='Owner-Operator Inputs'!F252*(1-OFFSET(ooi_energy_security_share,0,-2)) -> 59.857 | E14: ='Owner-Operator Inputs'!G252*(1-OFFSET(ooi_energy_security_share,0,-2)) -> 65.84485779 | F14: ='Owner-Operator Inputs'!H252*(1-OFFSET(ooi_energy_security_share,0,-2)) -> 72.42610689 | G14: ='Owner-Operator Inputs'!I252*(1-OFFSET(ooi_energy_security_share,0,-2)) -> 79.66548089 | H14: ='Owner-Operator Inputs'!J252*(1-OFFSET(ooi_energy_security_share,0,-2)) -> 87.62771341 | I14: ='Owner-Operator Inputs'!K252*(1-OFFSET(ooi_energy_security_share,0,-2)) -> 96.38832696 | J14: ='Owner-Operator Inputs'!L252*(1-OFFSET(ooi_energy_security_share,0,-2)) -> 106.0228441 | K14: ='Owner-Operator Inputs'!M252*(1-OFFSET(ooi_energy_security_share,0,-2)) -> 116.6283652 | L14: ='Owner-Operator Inputs'!N252*(1-OFFSET(ooi_energy_security_share,0,-2)) -> 128.2912017 | M14: ='Owner-Operator Inputs'!O252*(1-OFFSET(ooi_energy_security_share,0,-2)) -> 137.6022989
A15: Electrical grid benefit revenue | D15: ='Owner-Operator Inputs'!F253*(1-OFFSET(ooi_electrical_grid_share,0,-2)) -> 748.04148 | E15: ='Owner-Operator Inputs'!G253*(1-OFFSET(ooi_electrical_grid_share,0,-2)) -> 822.8725942 | F15: ='Owner-Operator Inputs'!H253*(1-OFFSET(ooi_electrical_grid_share,0,-2)) -> 905.1194043 | G15: ='Owner-Operator Inputs'!I253*(1-OFFSET(ooi_electrical_grid_share,0,-2)) -> 995.5908955 | H15: ='Owner-Operator Inputs'!J253*(1-OFFSET(ooi_electrical_grid_share,0,-2)) -> 1095.096053 | I15: ='Owner-Operator Inputs'!K253*(1-OFFSET(ooi_electrical_grid_share,0,-2)) -> 1204.578692 | J15: ='Owner-Operator Inputs'!L253*(1-OFFSET(ooi_electrical_grid_share,0,-2)) -> 1324.982629 | K15: ='Owner-Operator Inputs'!M253*(1-OFFSET(ooi_electrical_grid_share,0,-2)) -> 1457.521341 | L15: ='Owner-Operator Inputs'!N253*(1-OFFSET(ooi_electrical_grid_share,0,-2)) -> 1603.273475 | M15: ='Owner-Operator Inputs'!O253*(1-OFFSET(ooi_electrical_grid_share,0,-2)) -> 1719.635586
A16: Climate benefit revenue | D16: ='Owner-Operator Inputs'!F255*(1-OFFSET(ooi_climate_share,0,-2)) -> 1152.235279 | E16: ='Owner-Operator Inputs'!G255*(1-OFFSET(ooi_climate_share,0,-2)) -> 1267.500343 | F16: ='Owner-Operator Inputs'!H255*(1-OFFSET(ooi_climate_share,0,-2)) -> 1394.188072 | G16: ='Owner-Operator Inputs'!I255*(1-OFFSET(ooi_climate_share,0,-2)) -> 1533.544574 | H16: ='Owner-Operator Inputs'!J255*(1-OFFSET(ooi_climate_share,0,-2)) -> 1686.815958 | I16: ='Owner-Operator Inputs'!K255*(1-OFFSET(ooi_climate_share,0,-2)) -> 1855.456016 | J16: ='Owner-Operator Inputs'!L255*(1-OFFSET(ooi_climate_share,0,-2)) -> 2040.918544 | K16: ='Owner-Operator Inputs'!M255*(1-OFFSET(ooi_climate_share,0,-2)) -> 2245.072704 | L16: ='Owner-Operator Inputs'!N255*(1-OFFSET(ooi_climate_share,0,-2)) -> 2469.579974 | M16: ='Owner-Operator Inputs'!O255*(1-OFFSET(ooi_climate_share,0,-2)) -> 2648.816732
A18: Free Cash Flow | C18: =SUM(C7:C16) -> 0 | D18: =SUM(D7:D16) -> 1960.133759 | E18: =SUM(E7:E16) -> 2156.217795 | F18: 2371.733584 | G18: 2608.800951 | H18: 2869.539724 | I18: 3156.423035 | J18: 3471.924017 | K18: 3819.22241 | L18: 4201.144651 | M18: 4506.054617
A19: Terminal Values
A20: Loan terminal value | M20: =-NPV($B$23,'Debt Schedule'!N8:$W$8) -> 0
A21: Equity sale terminal value | M21: ='Owner-Operator DCF'!M20*'Owner-Operator Inputs'!$E$284 -> 0
A22: Total Free Cash Flow | C22: =SUM(C18:C21) -> 0 | D22: 1960.133759 | E22: 2156.217795 | F22: 2371.733584 | G22: 2608.800951 | H22: 2869.539724 | I22: 3156.423035 | J22: 3471.924017 | K22: 3819.22241 | L22: 4201.144651 | M22: 4506.054617
A23: Discount Factor (WACC) | B23: =OFFSET(pusp_public_sector_cost_of_capital, 0,-2) -> 0.054 | C23: =(1/(1+$B$23))^(COLUMN(C23)-COLUMN($C$23)) -> 1 | D23: =(1/(1+$B$23))^(COLUMN(D23)-COLUMN($C$23)) -> 0.9487666034 | E23: 0.9001580678 | F23: 0.8540399125 | G23: 0.8102845469 | H23: 0.7687709174 | I23: 0.7293841721 | J23: 0.6920153436 | K23: 0.656561047 | L23: 0.6229231945 | M23: 0.5910087235
A24: Discounted Cash Flows | C24: =C22*C23 -> 0 | D24: 1859.709448 | E24: 1940.936844 | F24: 2025.555142 | G24: 2113.871096 | H24: 2206.018686 | I24: 2302.245002 | J24: 2402.624691 | K24: 2507.552664 | L24: 2616.990447 | M24: 2663.117587
A25: Cumulative Discounted Cash Flows | C25: =C24 -> 0 | D25: =C25+D24 -> 1859.709448 | E25: =D25+E24 -> 3800.646293 | F25: 5826.201435 | G25: 7940.072531 | H25: 10146.09122 | I25: 12448.33622 | J25: 14850.96091 | K25: 17358.51358 | L25: 19975.50402 | M25: 22638.62161
A27: Net Present Value | C27: =SUM(C24:M24) -> 22638.62161
A28: Internal Rate of Return | C28: =IFERROR(IRR(C24:M24,0.05),"N/A") -> N/A
A29: Discounted Payback | C29: =IFERROR(IF(MATCH(0,$D$25:$M$25,1)>=10,"N/A",MATCH(0,$D$25:$M$25,1)+1),1) -> 1

Sheet Combined DCF
A1: ='Initial Settings'!$B$5 -> Corridor and Community DC Fast Charging Complex (Urban Site)
A4: Combined Discounted Cash Flow Model | C4: ='Initial Settings'!$B$6 -> 2017 | D4: ='Owner-Operator Inputs'!F304 -> 2018 | E4: ='Owner-Operator Inputs'!G304 -> 2019 | F4: ='Owner-Operator Inputs'!H304 -> 2020 | G4: ='Owner-Operator Inputs'!I304 -> 2021 | H4: ='Owner-Operator Inputs'!J304 -> 2022 | I4: ='Owner-Operator Inputs'!K304 -> 2023 | J4: ='Owner-Operator Inputs'!L304 -> 2024 | K4: ='Owner-Operator Inputs'!M304 -> 2025 | L4: ='Owner-Operator Inputs'!N304 -> 2026 | M4: ='Owner-Operator Inputs'!O304 -> 2027
A6: Cash flow from owner-operator | C6: ='Owner-Operator DCF'!C22 -> -38475.456 | D6: ='Owner-Operator DCF'!D22 -> 5153.553885 | E6: ='Owner-Operator DCF'!E22 -> 3406.27868 | F6: ='Owner-Operator DCF'!F22 -> 5170.958822 | G6: ='Owner-Operator DCF'!G22 -> 7112.429814 | H6: ='Owner-Operator DCF'!H22 -> 9247.61759 | I6: ='Owner-Operator DCF'!I22 -> 11597.01107 | J6: ='Owner-Operator DCF'!J22 -> 14180.28124 | K6: ='Owner-Operator DCF'!K22 -> 17024.32441 | L6: ='Owner-Operator DCF'!L22 -> 20150.82852 | M6: ='Owner-Operator DCF'!M22 -> 9668.513351
A7: Cash flow from private sector partner | C7: ='Private Sector Partner DCF'!C20 -> 0 | D7: ='Private Sector Partner DCF'!D20 -> 4685.939457 | E7: ='Private Sector Partner DCF'!E20 -> 5154.702326 | F7: ='Private Sector Partner DCF'!F20 -> 5669.919174 | G7: ='Private Sector Partner DCF'!G20 -> 6236.657706 | H7: ='Private Sector Partner DCF'!H20 -> 6859.985629 | I7: ='Private Sector Partner DCF'!I20 -> 7545.815269 | J7: ='Private Sector Partner DCF'!J20 -> 8300.058948 | K7: ='Private Sector Partner DCF'!K20 -> 9130.318229 | L7: ='Private Sector Partner DCF'!L20 -> 10043.35005 | M7: ='Private Sector Partner DCF'!M20 -> 10772.27461
A8: Cash flow from public sector partner | C8: ='Public Sector Partner DCF'!C22 -> 0 | D8: ='Public Sector Partner DCF'!D22 -> 1960.133759 | E8: ='Public Sector Partner DCF'!E22 -> 2156.217795 | F8: ='Public Sector Partner DCF'!F22 -> 2371.733584 | G8: ='Public Sector Partner DCF'!G22 -> 2608.800951 | H8: ='Public Sector Partner DCF'!H22 -> 2869.539724 | I8: ='Public Sector Partner DCF'!I22 -> 3156.423035 | J8: ='Public Sector Partner DCF'!J22 -> 3471.924017 | K8: ='Public Sector Partner DCF'!K22 -> 3819.22241 | L8: ='Public Sector Partner DCF'!L22 -> 4201.144651 | M8: ='Public Sector Partner DCF'!M22 -> 4506.054617
A10: Total Free Cash Flow | C10: =SUM(C6:C8) -> -38475.456 | D10: 11799.6271 | E10: 10717.1988 | F10: 13212.61158 | G10: 15957.88847 | H10: 18977.14294 | I10: 22299.24938 | J10: 25952.26421 | K10: 29973.86505 | L10: 34395.32322 | M10: 24946.84258
A11: Discount Factor (WACC) | B11: =('Owner-Operator Inputs'!$E$297*'Owner-Operator Inputs'!$E$285*'Owner-Operator Inputs'!$E$283)+('Owner-Operator Inputs'!C300*'Owner-Operator Inputs'!$E$288*'Owner-Operator Inputs'!$E$286)+(('Owner-Operator Inputs'!$E$283*'Owner-Operator Inputs'!$E$284+'Owner-Operator Inputs'!E286*'Owner-Operator Inputs'!$E$287)*OFFSET(pusp_public_sector_cost_of_capital, 0,-2)) -> 0.089 | C11: =(1/(1+$B$11))^(COLUMN(C11)-COLUMN($C$11)) -> 1 | D11: =(1/(1+$B$11))^(COLUMN(D11)-COLUMN($C$11)) -> 0.9182736455 | E11: 0.8432264881 | F11: 0.7743126613 | G11: 0.7110309102 | H11: 0.652920946 | I11: 0.5995600974 | J11: 0.5505602363 | K11: 0.5055649553 | L11: 0.4642469746 | M11: 0.4263057618
A12: Discounted Cash Flows | C12: =C10*C11 -> -38475.456 | D12: 10835.28659 | E12: 9037.025908 | F12: 10230.69243 | G12: 11346.55196 | H12: 12390.57412 | I12: 13369.74013 | J12: 14288.28472 | K12: 15153.73575 | L12: 15967.92474 | M12: 10634.98273
A13: Cumulative Discounted Cash Flows | C13: =C12 -> -38475.456 | D13: =C13+D12 -> -27640.16941 | E13: =D13+E12 -> -18603.1435 | F13: -8372.451064 | G13: 2974.1009 | H13: 15364.67502 | I13: 28734.41515 | J13: 43022.69987 | K13: 58176.43561 | L13: 74144.36036 | M13: 84779.34309
A15: Net Present Value | B15: =SUM(C12:M12) -> 84779.34309
A16: Internal Rate of Return | B16: =IFERROR(IRR(C12:M12,0.05),"N/A") -> 0.2675689154
A17: Discounted Payback | B17: =IFERROR(IF(MATCH(0,$D$13:$M$13,1)>=10,"N/A",MATCH(0,$D$13:$M$13,1)+1),1) -> 4

Sheet Debt Schedule
A1: ='Initial Settings'!$B$5 -> Corridor and Community DC Fast Charging Complex (Urban Site)
A4: Debt Schedule | C4: Year | D4: 1 | E4: =D4+1 -> 2 | F4: 3 | G4: 4 | H4: 5 | I4: 6 | J4: 7 | K4: 8 | L4: 9 | M4: 10 | N4: 11 | O4: 12 | P4: 13 | Q4: 14 | R4: 15 | S4: 16 | T4: 17 | U4: 18 | V4: 19 | W4: 20
A5: Public Sector Debt | C5: ='Public Sector Partner Inputs'!$F$10 -> 0
A6: Annual Principal Payment | D6: =IF(D$4<=OFFSET(pusp_term, 0, -2),PPMT('Public Sector Partner Inputs'!$E$12,D$4,OFFSET(pusp_term, 0, -2),'Public Sector Partner Inputs'!$F$10),0) -> 0 | E6: =IF(E$4<=OFFSET(pusp_term, 0, -2),PPMT('Public Sector Partner Inputs'!$E$12,E$4,OFFSET(pusp_term, 0, -2),'Public Sector Partner Inputs'!$F$10),0) -> 0 | F6: =IF(F$4<=OFFSET(pusp_term, 0, -2),PPMT('Public Sector Partner Inputs'!$E$12,F$4,OFFSET(pusp_term, 0, -2),'Public Sector Partner Inputs'!$F$10),0) -> 0 | G6: =IF(G$4<=OFFSET(pusp_term, 0, -2),PPMT('Public Sector Partner Inputs'!$E$12,G$4,OFFSET(pusp_term, 0, -2),'Public Sector Partner Inputs'!$F$10),0) -> 0 | H6: =IF(H$4<=OFFSET(pusp_term, 0, -2),PPMT('Public Sector Partner Inputs'!$E$12,H$4,OFFSET(pusp_term, 0, -2),'Public Sector Partner Inputs'!$F$10),0) -> 0 | I6: =IF(I$4<=OFFSET(pusp_term, 0, -2),PPMT('Public Sector Partner Inputs'!$E$12,I$4,OFFSET(pusp_term, 0, -2),'Public Sector Partner Inputs'!$F$10),0) -> 0 | J6: =IF(J$4<=OFFSET(pusp_term, 0, -2),PPMT('Public Sector Partner Inputs'!$E$12,J$4,OFFSET(pusp_term, 0, -2),'Public Sector Partner Inputs'!$F$10),0) -> 0 | K6: =IF(K$4<=OFFSET(pusp_term, 0, -2),PPMT('Public Sector Partner Inputs'!$E$12,K$4,OFFSET(pusp_term, 0, -2),'Public Sector Partner Inputs'!$F$10),0) -> 0 | L6: =IF(L$4<=OFFSET(pusp_term, 0, -2),PPMT('Public Sector Partner Inputs'!$E$12,L$4,OFFSET(pusp_term, 0, -2),'Public Sector Partner Inputs'!$F$10),0) -> 0 | M6: =IF(M$4<=OFFSET(pusp_term, 0, -2),PPMT('Public Sector Partner Inputs'!$E$12,M$4,OFFSET(pusp_term, 0, -2),'Public Sector Partner Inputs'!$F$10),0) -> 0 | N6: =IF(N$4<=OFFSET(pusp_term, 0, -2),PPMT('Public Sector Partner Inputs'!$E$12,N$4,OFFSET(pusp_term, 0, -2),'Public Sector Partner Inputs'!$F$10),0) -> 0 | O6: =IF(O$4<=OFFSET(pusp_term, 0, -2),PPMT('Public Sector Partner Inputs'!$E$12,O$4,OFFSET(pusp_term, 0, -2),'Public Sector Partner Inputs'!$F$10),0) -> 0 | P6: =IF(P$4<=OFFSET(pusp_term, 0, -2),PPMT('Public Sector Partner Inputs'!$E$12,P$4,OFFSET(pusp_term, 0, -2),'Public Sector Partner Inputs'!$F$10),0) -> 0 | Q6: =IF(Q$4<=OFFSET(pusp_term, 0, -2),PPMT('Public Sector Partner Inputs'!$E$12,Q$4,OFFSET(pusp_term, 0, -2),'Public Sector Partner Inputs'!$F$10),0) -> 0 | R6: =IF(R$4<=OFFSET(pusp_term, 0, -2),PPMT('Public Sector Partner Inputs'!$E$12,R$4,OFFSET(pusp_term, 0, -2),'Public Sector Partner Inputs'!$F$10),0) -> 0 | S6: =IF(S$4<=OFFSET(pusp_term, 0, -2),PPMT('Public Sector Partner Inputs'!$E$12,S$4,OFFSET(pusp_term, 0, -2),'Public Sector Partner Inputs'!$F$10),0) -> 0 | T6: =IF(T$4<=OFFSET(pusp_term, 0, -2),PPMT('Public Sector Partner Inputs'!$E$12,T$4,OFFSET(pusp_term, 0, -2),'Public Sector Partner Inputs'!$F$10),0) -> 0 | U6: =IF(U$4<=OFFSET(pusp_term, 0, -2),PPMT('Public Sector Partner Inputs'!$E$12,U$4,OFFSET(pusp_term, 0, -2),'Public Sector Partner Inputs'!$F$10),0) -> 0 | V6: =IF(V$4<=OFFSET(pusp_term, 0, -2),PPMT('Public Sector Partner Inputs'!$E$12,V$4,OFFSET(pusp_term, 0, -2),'Public Sector Partner Inputs'!$F$10),0) -> 0 | W6: =IF(W$4<=OFFSET(pusp_term, 0, -2),PPMT('Public Sector Partner Inputs'!$E$12,W$4,OFFSET(pusp_term, 0, -2),'Public Sector Partner Inputs'!$F$10),0) -> 0
A7: Annual Interest Payment | D7: =IF(D$4<=OFFSET(pusp_term, 0, -2),PMT('Public Sector Partner Inputs'!$E$12,OFFSET(pusp_term, 0, -2),'Public Sector Partner Inputs'!$F$10)-D6,0) -> 0 | E7: =IF(E$4<=OFFSET(pusp_term, 0, -2),PMT('Public Sector Partner Inputs'!$E$12,OFFSET(pusp_term, 0, -2),'Public Sector Partner Inputs'!$F$10)-E6,0) -> 0 | F7: =IF(F$4<=OFFSET(pusp_term, 0, -2),PMT('Public Sector Partner Inputs'!$E$12,OFFSET(pusp_term, 0, -2),'Public Sector Partner Inputs'!$F$10)-F6,0) -> 0 | G7: =IF(G$4<=OFFSET(pusp_term, 0, -2),PMT('Public Sector Partner Inputs'!$E$12,OFFSET(pusp_term, 0, -2),'Public Sector Partner Inputs'!$F$10)-G6,0) -> 0 | H7: =IF(H$4<=OFFSET(pusp_term, 0, -2),PMT('Public Sector Partner Inputs'!$E$12,OFFSET(pusp_term, 0, -2),'Public Sector Partner Inputs'!$F$10)-H6,0) -> 0 | I7: =IF(I$4<=OFFSET(pusp_term, 0, -2),PMT('Public Sector Partner Inputs'!$E$12,OFFSET(pusp_term, 0, -2),'Public Sector Partner Inputs'!$F$10)-I6,0) -> 0 | J7: =IF(J$4<=OFFSET(pusp_term, 0, -2),PMT('Public Sector Partner Inputs'!$E$12,OFFSET(pusp_term, 0, -2),'Public Sector Partner Inputs'!$F$10)-J6,0) -> 0 | K7: =IF(K$4<=OFFSET(pusp_term, 0, -2),PMT('Public Sector Partner Inputs'!$E$12,OFFSET(pusp_term, 0, -2),'Public Sector Partner Inputs'!$F$10)-K6,0) -> 0 | L7: =IF(L$4<=OFFSET(pusp_term, 0, -2),PMT('Public Sector Partner Inputs'!$E$12,OFFSET(pusp_term, 0, -2),'Public Sector Partner Inputs'!$F$10)-L6,0) -> 0 | M7: =IF(M$4<=OFFSET(pusp_term, 0, -2),PMT('Public Sector Partner Inputs'!$E$12,OFFSET(pusp_term, 0, -2),'Public Sector Partner Inputs'!$F$10)-M6,0) -> 0 | N7: =IF(N$4<=OFFSET(pusp_term, 0, -2),PMT('Public Sector Partner Inputs'!$E$12,OFFSET(pusp_term, 0, -2),'Public Sector Partner Inputs'!$F$10)-N6,0) -> 0 | O7: =IF(O$4<=OFFSET(pusp_term, 0, -2),PMT('Public Sector Partner Inputs'!$E$12,OFFSET(pusp_term, 0, -2),'Public Sector Partner Inputs'!$F$10)-O6,0) -> 0 | P7: =IF(P$4<=OFFSET(pusp_term, 0, -2),PMT('Public Sector Partner Inputs'!$E$12,OFFSET(pusp_term, 0, -2),'Public Sector Partner Inputs'!$F$10)-P6,0) -> 0 | Q7: =IF(Q$4<=OFFSET(pusp_term, 0, -2),PMT('Public Sector Partner Inputs'!$E$12,OFFSET(pusp_term, 0, -2),'Public Sector Partner Inputs'!$F$10)-Q6,0) -> 0 | R7: =IF(R$4<=OFFSET(pusp_term, 0, -2),PMT('Public Sector Partner Inputs'!$E$12,OFFSET(pusp_term, 0, -2),'Public Sector Partner Inputs'!$F$10)-R6,0) -> 0 | S7: =IF(S$4<=OFFSET(pusp_term, 0, -2),PMT('Public Sector Partner Inputs'!$E$12,OFFSET(pusp_term, 0, -2),'Public Sector Partner Inputs'!$F$10)-S6,0) -> 0 | T7: =IF(T$4<=OFFSET(pusp_term, 0, -2),PMT('Public Sector Partner Inputs'!$E$12,OFFSET(pusp_term, 0, -2),'Public Sector Partner Inputs'!$F$10)-T6,0) -> 0 | U7: =IF(U$4<=OFFSET(pusp_term, 0, -2),PMT('Public Sector Partner Inputs'!$E$12,OFFSET(pusp_term, 0, -2),'Public Sector Partner Inputs'!$F$10)-U6,0) -> 0 | V7: =IF(V$4<=OFFSET(pusp_term, 0, -2),PMT('Public Sector Partner Inputs'!$E$12,OFFSET(pusp_term, 0, -2),'Public Sector Partner Inputs'!$F$10)-V6,0) -> 0 | W7: =IF(W$4<=OFFSET(pusp_term, 0, -2),PMT('Public Sector Partner Inputs'!$E$12,OFFSET(pusp_term, 0, -2),'Public Sector Partner Inputs'!$F$10)-W6,0) -> 0
A8: Total Payment | D8: =SUM(D6:D7) -> 0 | E8: =SUM(E6:E7) -> 0 | F8: 0 | G8: 0 | H8: 0 | I8: 0 | J8: 0 | K8: 0 | L8: 0 | M8: 0 | N8: =SUM(N6:N7) -> 0 | O8: 0 | P8: 0 | Q8: 0 | R8: 0 | S8: 0 | T8: 0 | U8: 0 | V8: 0 | W8: 0
A10: Private Sector Debt | C10: ='Owner-Operator Inputs'!F286-'Public Sector Partner Inputs'!F10 -> 57713.184
A11: Annual Principal Payment | D11: =IF(D$4<=OFFSET(ooi_maximum_debt_term, 0, -2),PPMT(OFFSET(ooi_owner_operator_cost_of_debt, 0, -2),D$4,OFFSET(ooi_maximum_debt_term, 0, -2),$C$10),0) -> -3983.911583 | E11: -4302.624509 | F11: -4646.83447 | G11: -5018.581228 | H11: -5420.067726 | I11: -5853.673144 | J11: -6321.966995 | K11: -6827.724355 | L11: -7373.942303 | M11: -7963.857688 | N11: 0 | O11: 0 | P11: 0 | Q11: 0 | R11: 0 | S11: 0 | T11: 0 | U11: 0 | V11: 0 | W11: 0
A12: Annual Interest Payment | D12: =IF(D$4<=OFFSET(ooi_maximum_debt_term, 0, -2),PMT(OFFSET(ooi_owner_operator_cost_of_debt, 0, -2),OFFSET(ooi_maximum_debt_term, 0, -2),$C$10)-D11,0) -> -4617.05472 | E12: -4298.341793 | F12: -3954.131833 | G12: -3582.385075 | H12: -3180.898577 | I12: -2747.293159 | J12: -2278.999307 | K12: -1773.241948 | L12: -1227.023999 | M12: -637.108615 | N12: 0 | O12: 0 | P12: 0 | Q12: 0 | R12: 0 | S12: 0 | T12: 0 | U12: 0 | V12: 0 | W12: 0
A13: Total Payment | D13: =SUM(D11:D12) -> -8600.966303 | E13: =SUM(E11:E12) -> -8600.966303 | F13: -8600.966303 | G13: -8600.966303 | H13: -8600.966303 | I13: -8600.966303 | J13: -8600.966303 | K13: -8600.966303 | L13: -8600.966303 | M13: -8600.966303 | N13: =SUM(N11:N12) -> 0 | O13: 0 | P13: 0 | Q13: 0 | R13: 0 | S13: 0 | T13: 0 | U13: 0 | V13: 0 | W13: 0
A15: Total Annual Principal Payment | D15: =D6+D11 -> -3983.911583 | E15: =E6+E11 -> -4302.624509 | F15: -4646.83447 | G15: -5018.581228 | H15: -5420.067726 | I15: -5853.673144 | J15: -6321.966995 | K15: -6827.724355 | L15: -7373.942303 | M15: -7963.857688 | N15: 0 | O15: 0 | P15: 0 | Q15: 0 | R15: 0 | S15: 0 | T15: 0 | U15: 0 | V15: 0 | W15: 0
A16: Total Annual Interest Payment | D16: =D7+D12 -> -4617.05472 | E16: =E7+E12 -> -4298.341793 | F16: -3954.131833 | G16: -3582.385075 | H16: -3180.898577 | I16: -2747.293159 | J16: -2278.999307 | K16: -1773.241948 | L16: -1227.023999 | M16: -637.108615 | N16: 0 | O16: 0 | P16: 0 | Q16: 0 | R16: 0 | S16: 0 | T16: 0 | U16: 0 | V16: 0 | W16: 0
A17: Total Payment | D17: =SUM(D15:D16) -> -8600.966303 | E17: =SUM(E15:E16) -> -8600.966303 | F17: -8600.966303 | G17: -8600.966303 | H17: -8600.966303 | I17: -8600.966303 | J17: -8600.966303 | K17: -8600.966303 | L17: -8600.966303 | M17: -8600.966303 | N17: 0 | O17: 0 | P17: 0 | Q17: 0 | R17: 0 | S17: 0 | T17: 0 | U17: 0 | V17: 0 | W17: 0

Sheet Terminal Value Model
A1: ='Initial Settings'!$B$5 -> Corridor and Community DC Fast Charging Complex (Urban Site)
A4: Based on Assumed EBITDA Exit Multiple | B4: ='Initial Settings'!$B$6 -> 2017 | C4: ='Owner-Operator Inputs'!F304 -> 2018 | D4: ='Owner-Operator Inputs'!G304 -> 2019 | E4: ='Owner-Operator Inputs'!H304 -> 2020 | F4: ='Owner-Operator Inputs'!I304 -> 2021 | G4: ='Owner-Operator Inputs'!J304 -> 2022 | H4: ='Owner-Operator Inputs'!K304 -> 2023 | I4: ='Owner-Operator Inputs'!L304 -> 2024 | J4: ='Owner-Operator Inputs'!M304 -> 2025 | K4: ='Owner-Operator Inputs'!N304 -> 2026 | L4: ='Owner-Operator Inputs'!O304 -> 2027
A6: EBITDA | B6: ='Income Statement'!B23+'Income Statement'!B18 -> 0 | C6: ='Income Statement'!C23+'Income Statement'!C18 -> 8356.88 | D6: ='Income Statement'!D23+'Income Statement'!D18 -> 10807.6421 | E6: ='Income Statement'!E23+'Income Statement'!E18 -> 13498.35035 | F6: ='Income Statement'!F23+'Income Statement'!F18 -> 16454.9349 | G6: ='Income Statement'!G23+'Income Statement'!G18 -> 19703.2102 | H6: ='Income Statement'!H23+'Income Statement'!H18 -> 23273.31768 | I6: ='Income Statement'!I23+'Income Statement'!I18 -> 27195.2629 | J6: ='Income Statement'!J23+'Income Statement'!J18 -> 31507.78276 | K6: ='Income Statement'!K23+'Income Statement'!K18 -> 36245.00966 | L6: ='Income Statement'!L23+'Income Statement'!L18 -> 40007.44991
A7: Exit Multiple | B7: ='Owner-Operator Inputs'!$C$291 -> 0 | C7: ='Owner-Operator Inputs'!$C$291 -> 0 | D7: ='Owner-Operator Inputs'!$C$291 -> 0 | E7: ='Owner-Operator Inputs'!$C$291 -> 0 | F7: ='Owner-Operator Inputs'!$C$291 -> 0 | G7: ='Owner-Operator Inputs'!$C$291 -> 0 | H7: ='Owner-Operator Inputs'!$C$291 -> 0 | I7: ='Owner-Operator Inputs'!$C$291 -> 0 | J7: ='Owner-Operator Inputs'!$C$291 -> 0 | K7: ='Owner-Operator Inputs'!$C$291 -> 0 | L7: ='Owner-Operator Inputs'!$C$291 -> 0
A8: Total Enterprise Value | B8: =B7*B6 -> 0 | C8: 0 | D8: 0 | E8: 0 | F8: 0 | G8: 0 | H8: 0 | I8: 0 | J8: 0 | K8: 0 | L8: 0
A9: Less: Net Debt | B9: ='Balance Sheet'!B33 -> 57713.184 | C9: ='Balance Sheet'!C33 -> 59262.23242 | D9: ='Balance Sheet'!D33 -> 55513.10337 | E9: ='Balance Sheet'!E33 -> 51474.61526 | F9: ='Balance Sheet'!F33 -> 47125.21502 | G9: ='Balance Sheet'!G33 -> 42441.14666 | H9: ='Balance Sheet'!H33 -> 37397.27228 | I9: ='Balance Sheet'!I33 -> 31965.88446 | J9: ='Balance Sheet'!J33 -> 26118.4953 | K9: ='Balance Sheet'!K33 -> 19822.62253 | L9: ='Balance Sheet'!L33 -> 12719.44828
A10: Equity Value | B10: =B8-B9 -> -57713.184 | C10: -59262.23242 | D10: -55513.10337 | E10: -51474.61526 | F10: -47125.21502 | G10: -42441.14666 | H10: -37397.27228 | I10: -31965.88446 | J10: -26118.4953 | K10: -19822.62253 | L10: -12719.44828
A12: Terminal Value Model - Based on Remaining Property, Plant, and Equipment Value | B12: ='Initial Settings'!$B$6 -> 2017 | C12: ='Owner-Operator Inputs'!F304 -> 2018 | D12: ='Owner-Operator Inputs'!G304 -> 2019 | E12: ='Owner-Operator Inputs'!H304 -> 2020 | F12: ='Owner-Operator Inputs'!I304 -> 2021 | G12: ='Owner-Operator Inputs'!J304 -> 2022 | H12: ='Owner-Operator Inputs'!K304 -> 2023 | I12: ='Owner-Operator Inputs'!L304 -> 2024 | J12: ='Owner-Operator Inputs'!M304 -> 2025 | K12: ='Owner-Operator Inputs'!N304 -> 2026 | L12: ='Owner-Operator Inputs'!O304 -> 2027
A14: Property, Plant, and Equipment Value | B14: ='Balance Sheet'!B18 -> 92500 | C14: ='Balance Sheet'!C18 -> 83250 | D14: ='Balance Sheet'!D18 -> 74000 | E14: ='Balance Sheet'!E18 -> 64750 | F14: ='Balance Sheet'!F18 -> 55500 | G14: ='Balance Sheet'!G18 -> 46250 | H14: ='Balance Sheet'!H18 -> 37000 | I14: ='Balance Sheet'!I18 -> 27750 | J14: ='Balance Sheet'!J18 -> 18500 | K14: ='Balance Sheet'!K18 -> 9250 | L14: ='Balance Sheet'!L18 -> 0
A15: Less: Net Debt | B15: ='Balance Sheet'!B33 -> 57713.184 | C15: ='Balance Sheet'!C33 -> 59262.23242 | D15: ='Balance Sheet'!D33 -> 55513.10337 | E15: ='Balance Sheet'!E33 -> 51474.61526 | F15: ='Balance Sheet'!F33 -> 47125.21502 | G15: ='Balance Sheet'!G33 -> 42441.14666 | H15: ='Balance Sheet'!H33 -> 37397.27228 | I15: ='Balance Sheet'!I33 -> 31965.88446 | J15: ='Balance Sheet'!J33 -> 26118.4953 | K15: ='Balance Sheet'!K33 -> 19822.62253 | L15: ='Balance Sheet'!L33 -> 12719.44828
A16: Terminal Value | B16: =B14-B15 -> 34786.816 | C16: =C14-C15 -> 23987.76758 | D16: 18486.89663 | E16: 13275.38474 | F16: 8374.784977 | G16: 3808.853338 | H16: -397.2722784 | I16: -4215.884461 | J16: -7618.495305 | K16: -10572.62253 | L16: =L14-L15 -> -12719.44828

Sheet Outputs Dashboard
A1: ='Initial Settings'!$B$5 -> Corridor and Community DC Fast Charging Complex (Urban Site)
B3: Financial Performance Summary | E3: Financial Performance Details | H3: Charging Infrastructure Statistics | K3: ='Owner-Operator DCF'!A4 -> Owner-Operator Discounted Cash Flow Model
B4: Project NPV (Payback) | C4: ='Outputs Dashboard'!F6 & IF('Outputs Dashboard'!F8<>"N/A", " (" & 'Outputs Dashboard'!F8 & ")", "") -> +$84,779 (4) | E4: Project | H4: Total New Sites | I4: =OFFSET(ooi_type_1_total_number_of_sites, 0,-2)+'Owner-Operator Inputs'!E99+'Owner-Operator Inputs'!E174 -> 1 | L4: ='Owner-Operator DCF'!C4 -> 2017 | M4: ='Owner-Operator DCF'!D4 -> 2018 | N4: ='Owner-Operator DCF'!E4 -> 2019 | O4: ='Owner-Operator DCF'!F4 -> 2020 | P4: ='Owner-Operator DCF'!G4 -> 2021 | Q4: ='Owner-Operator DCF'!H4 -> 2022 | R4: ='Owner-Operator DCF'!I4 -> 2023 | S4: ='Owner-Operator DCF'!J4 -> 2024 | T4: ='Owner-Operator DCF'!K4 -> 2025 | U4: ='Owner-Operator DCF'!L4 -> 2026 | V4: ='Owner-Operator DCF'!M4 -> 2027
B5: Owner-Operator NPV (Payback) | C5: ='Outputs Dashboard'!F15 & IF('Outputs Dashboard'!F17<>"N/A", " (" & 'Outputs Dashboard'!F17 & ")", "") -> +$16,787 (8) | E5: Capital Investment | F5: ='Owner-Operator Inputs'!E281 -> 96188.64 | H5: Total New Stations | I5: =OFFSET(ooi_type_1_total_number_of_stations, 0, -2)+'Owner-Operator Inputs'!E98+'Owner-Operator Inputs'!E173 -> 1 | K5: ='Owner-Operator DCF'!A6 -> Revenue | L5: ='Owner-Operator DCF'!C6 -> 0 | M5: ='Owner-Operator DCF'!D6 -> 36886.4 | N5: ='Owner-Operator DCF'!E6 -> 40576.36972 | O5: ='Owner-Operator DCF'!F6 -> 44632.01211 | P5: ='Owner-Operator DCF'!G6 -> 49093.21875 | Q5: ='Owner-Operator DCF'!H6 -> 53999.88118 | R5: ='Owner-Operator DCF'!I6 -> 59398.53958 | S5: ='Owner-Operator DCF'!J6 -> 65335.7341 | T5: ='Owner-Operator DCF'!K6 -> 71871.30209 | U5: ='Owner-Operator DCF'!L6 -> 79058.4323 | V5: ='Owner-Operator DCF'!M6 -> 84796.32184
B6: Private Sector Partner NPV (Payback) | C6: ='Outputs Dashboard'!F24 & IF('Outputs Dashboard'!F26<>"N/A", " (" & 'Outputs Dashboard'!F26 & ")", "") -> +$41,798 (1) | E6: Net Present Value | F6: =IF('Combined DCF'!B15>0, "+" & TEXT('Combined DCF'!B15, "$#,##0"), TEXT('Combined DCF'!B15, "$#,##0")) -> +$84,779 | H6: Number of Charging Sessions Provided | I6: =SUM('Owner-Operator Inputs'!F34:O34)+SUM('Owner-Operator Inputs'!F109:O109)+SUM('Owner-Operator Inputs'!F184:O184) -> 88086.02299 | K6: ='Owner-Operator DCF'!A7 -> Operating Costs | L6: ='Owner-Operator DCF'!C7+'Owner-Operator DCF'!C13+'Owner-Operator DCF'!C16 -> 0 | M6: ='Owner-Operator DCF'!D7+'Owner-Operator DCF'!D14+'Owner-Operator DCF'!D16 -> -28617.69899 | N6: ='Owner-Operator DCF'!E7+'Owner-Operator DCF'!E14+'Owner-Operator DCF'!E16 -> -29070.76359 | O6: ='Owner-Operator DCF'!F7+'Owner-Operator DCF'!F14+'Owner-Operator DCF'!F16 -> -31411.39364 | P6: ='Owner-Operator DCF'!G7+'Owner-Operator DCF'!G14+'Owner-Operator DCF'!G16 -> -33986.26249 | Q6: ='Owner-Operator DCF'!H7+'Owner-Operator DCF'!H14+'Owner-Operator DCF'!H16 -> -36818.28481 | R6: ='Owner-Operator DCF'!I7+'Owner-Operator DCF'!I14+'Owner-Operator DCF'!I16 -> -39934.44963 | S6: ='Owner-Operator DCF'!J7+'Owner-Operator DCF'!J14+'Owner-Operator DCF'!J16 -> -43361.56667 | T6: ='Owner-Operator DCF'!K7+'Owner-Operator DCF'!K14+'Owner-Operator DCF'!K16 -> -47134.49505 | U6: ='Owner-Operator DCF'!L7+'Owner-Operator DCF'!L14+'Owner-Operator DCF'!L16 -> -51283.67033 | V6: ='Owner-Operator DCF'!M7+'Owner-Operator DCF'!M14+'Owner-Operator DCF'!M16 -> -54559.70764
B7: Public Sector Partner NPV (Payback) | C7: ='Outputs Dashboard'!F31 & IF('Outputs Dashboard'!F33<>"N/A", " (" & 'Outputs Dashboard'!F33 & ")", "") -> +$22,639 (1) | E7: Internal Rate of Return (IRR) | F7: ='Combined DCF'!B16 -> 0.2675689154 | H7: Energy Provided (kWh) | I7: =SUM('Owner-Operator Inputs'!F38:O38)+SUM('Owner-Operator Inputs'!F113:O113)+SUM('Owner-Operator Inputs'!F188:O188) -> 814589.3106 | K7: Debt Costs | L7: ='Owner-Operator DCF'!C12+'Owner-Operator DCF'!C17 -> 0 | M7: ='Owner-Operator DCF'!D12+'Owner-Operator DCF'!D17 -> -3115.147122 | N7: ='Owner-Operator DCF'!E12+'Owner-Operator DCF'!E17 -> -8099.327445 | O7: ='Owner-Operator DCF'!F12+'Owner-Operator DCF'!F17 -> -8049.659655 | P7: ='Owner-Operator DCF'!G12+'Owner-Operator DCF'!G17 -> -7994.526441 | Q7: ='Owner-Operator DCF'!H12+'Owner-Operator DCF'!H17 -> -7933.978785 | R7: ='Owner-Operator DCF'!I12+'Owner-Operator DCF'!I17 -> -7867.078876 | S7: ='Owner-Operator DCF'!J12+'Owner-Operator DCF'!J17 -> -7793.886193 | T7: ='Owner-Operator DCF'!K12+'Owner-Operator DCF'!K17 -> -7712.482628 | U7: ='Owner-Operator DCF'!L12+'Owner-Operator DCF'!L17 -> -7623.933448 | V7: ='Owner-Operator DCF'!M12+'Owner-Operator DCF'!M17+'Owner-Operator DCF'!M20 -> -20568.10085
E8: Discounted Payback (Years) | F8: ='Combined DCF'!B17 -> 4 | H8: Total Energy Security Benefits | I8: =IF(OFFSET(ooi_energy_security_share, 0,-2)<>0,SUM('Owner-Operator Inputs'!F252:O252)/OFFSET(ooi_energy_security_share, 0,-2),SUM('Owner-Operator Inputs'!F252:O252)) -> 950.3541958 | K8: Equity Costs | L8: ='Owner-Operator DCF'!C22 -> -38475.456 | M8: 0 | N8: 0 | O8: 0 | P8: 0 | Q8: 0 | R8: 0 | S8: 0 | T8: 0 | U8: 0 | V8: 0
H9: Total Electrical Grid Benefits | I9: =IF(psp_electric_utility_benefit_capture="N", IF(OFFSET(ooi_electrical_grid_share,0,-2)<>0, SUM('Owner-Operator Inputs'!F253:O253)/OFFSET(ooi_electrical_grid_share,0,-2), SUM('Owner-Operator Inputs'!F253:O253)), "Captured") -> Captured | K9: Total | L9: =SUM(L5:L8) -> -38475.456 | M9: 5153.553885 | N9: 3406.27868 | O9: 5170.958822 | P9: 7112.429814 | Q9: 9247.61759 | R9: 11597.01107 | S9: 14180.28124 | T9: 17024.32441 | U9: 20150.82852 | V9: 9668.513351
B10: =E10 -> Owner-Operator | C10: =F12 -> 38475.456 | E10: Owner-Operator | H10: Total Climate Benefits | I10: =IF(OFFSET(ooi_climate_share,0,-2)<>0, SUM('Owner-Operator Inputs'!F255:O255)/OFFSET(ooi_climate_share,0,-2), SUM('Owner-Operator Inputs'!F255:O255)) -> 18294.1282
B11: =E19 -> Private Sector Partner(s) | C11: =F22 -> 0 | E11: Capital Investment | H11: Greenhouse Gas Emissions Abated (CO2e tons) | I11: =SUM('Owner-Operator Inputs'!F254:O254) -> 435.5744809
B12: =E28 -> Public Sector Partner | C12: =F29 -> 0 | E12: Equity | F12: ='Public Sector Partner Inputs'!F13-'Public Sector Partner Inputs'!F14-'Public Sector Partner Inputs'!F17 -> 38475.456 | K12: NPV Check | L12: =NPV('Owner-Operator Inputs'!E297, M9:V9)+L9 -> 16786.92069
B13: =E13 -> Private Debt | C13: =SUM(F13:F14) -> 57713.184 | E13: Private Debt | F13: ='Owner-Operator Inputs'!F288 -> 57713.184
E14: Public Subsidized Debt | F14: ='Owner-Operator Inputs'!F287 -> 0
E15: Net Present Value | F15: =IF('Owner-Operator DCF'!C27>0, "+" & TEXT('Owner-Operator DCF'!C27, "$#,##0"), TEXT('Owner-Operator DCF'!C27, "$#,##0")) -> +$16,787
E16: Internal Rate of Return (IRR) | F16: ='Owner-Operator DCF'!C28 -> 0.06451695063
E17: Discounted Payback (Years) | F17: ='Owner-Operator DCF'!C29 -> 8
E19: Private Sector Partner(s)
E20: Funds to owner-operator initially | F20: ='Private Sector Partner Inputs'!F63 -> 0
E21: Funds to owner-operator annually | F21: =IF('Private Sector Partner Inputs'!F59>0, TEXT('Private Sector Partner Inputs'!F59, "$#,##0_);[Red]($#,##0)") & "- " & TEXT('Private Sector Partner Inputs'!O59, "$#,##0_);[Red]($#,##0)"), "$0 ") -> $6,103 - $14,029
E22: Capital Investment | F22: ='Private Sector Partner DCF'!C20 -> 0
E23: Other Contributions | F23: =SUM('Private Sector Partner Inputs'!$F$59:$O$64) -> 96894.62529
E24: Net Present Value | F24: =IF('Private Sector Partner DCF'!C25>0, "+" & TEXT('Private Sector Partner DCF'!C25, "$#,##0"), TEXT('Private Sector Partner DCF'!C25, "$#,##0")) -> +$41,798
E25: Internal Rate of Return (IRR) | F25: ='Private Sector Partner DCF'!C26 -> N/A
E26: Discounted Payback (Years) | F26: ='Private Sector Partner DCF'!C27 -> 1
E28: Public Sector Partner
E29: Capital Investment | F29: ='Public Sector Partner Inputs'!F10+'Public Sector Partner Inputs'!F14+'Public Sector Partner Inputs'!F17 -> 0
E30: Other Contributions | F30: =SUM('Public Sector Partner Inputs'!F20:O20) -> 0
E31: Net Present Value | F31: =IF('Public Sector Partner DCF'!C27>0, "+" & TEXT('Public Sector Partner DCF'!C27, "$#,##0"), TEXT('Public Sector Partner DCF'!C27, "$#,##0")) -> +$22,639
E32: Internal Rate of Return (IRR) | F32: ='Public Sector Partner DCF'!C28 -> N/A
E33: Discounted Payback (Years) | F33: ='Public Sector Partner DCF'!C29 -> 1
A35: Sensitivity Analysis
B37: ='Sensitivity Tables'!A6 -> Expected annual utilization growth rate [%]
B58: ='Sensitivity Tables'!A22 -> [Station Type 1] Initial average utilization [# of charging sessions per station per year]
B79: ='Sensitivity Tables'!A38 -> Climate benefit [$ per ton of greenhouse gas emissions abated]
B100: ='Sensitivity Tables'!A54 -> EV fuel economy [miles per kilowatt-hour]
B121: ='Sensitivity Tables'!A70 -> Share of onsite energy generation (type 1 station) [%]
B142: ='Sensitivity Tables'!A86 -> Estimated NPV of lifetime after-tax profit per station (type 1 station) [$]
B163: ='Sensitivity Tables'!A102 -> Annual customer revenue sharing agreement (from sales) [% of revenue]
B184: ='Sensitivity Tables'!A118 -> Demand charge (type 1 station) [$/kW/month]
B205: ='Sensitivity Tables'!A134 -> Per-energy user fee (type 1 station) [$/kWh]
B226: ='Sensitivity Tables'!A150 -> Total number of type 1 stations [#]

Sheet Sensitivity Tables
A1: ='Initial Settings'!A5 -> Scenario Name
A3: Sensitivity Tables
A5: Sensitivity Analysis #01
A6: =VLOOKUP(_xlfn.NUMBERVALUE(RIGHT(A5, 2)), SensitivitySummary[], 2,FALSE) -> Expected annual utilization growth rate [%]
B7: NPV | F7: Payback
A8: Scenario | B8: ='Outputs Dashboard'!$E$4 -> Project | C8: ='Outputs Dashboard'!$E$10 -> Owner-Operator | D8: ='Outputs Dashboard'!$E$19 -> Private Sector Partner(s) | E8: ='Outputs Dashboard'!$E$28 -> Public Sector Partner | F8: ='Outputs Dashboard'!$E$4 -> Project | G8: ='Outputs Dashboard'!$E$10 -> Owner-Operator | H8: ='Outputs Dashboard'!$E$19 -> Private Sector Partner(s) | I8: ='Outputs Dashboard'!$E$28 -> Public Sector Partner
A9: =INDIRECT(VLOOKUP(_xlfn.NUMBERVALUE(RIGHT(A5,2)),SensitivitySummary[],7,FALSE)) -> 0.1 | B9: =RIGHT('Outputs Dashboard'!$F$6, LEN('Outputs Dashboard'!$F$6)-1) -> $84,779 | C9: =_xlfn.NUMBERVALUE('Outputs Dashboard'!$F$15) -> 16787 | D9: =_xlfn.NUMBERVALUE('Outputs Dashboard'!$F$24) -> 41798 | E9: =_xlfn.NUMBERVALUE('Outputs Dashboard'!$F$31) -> 22639 | F9: =IF('Outputs Dashboard'!$F$8="N/A",#N/A,'Outputs Dashboard'!$F$8) -> 4 | G9: =IF('Outputs Dashboard'!$F$17="N/A",#N/A,'Outputs Dashboard'!$F$17) -> 8 | H9: =IF('Outputs Dashboard'!$F$26="N/A",#N/A,'Outputs Dashboard'!$F$26) -> 1 | I9: =IF('Outputs Dashboard'!$F$33="N/A",#N/A,'Outputs Dashboard'!$F$33) -> 1
A10: =VLOOKUP(_xlfn.NUMBERVALUE(RIGHT(A5,2)),SensitivitySummary[], 3,FALSE) -> 0 | B10: $11,379 | C10: -31480 | D10: 28389 | E10: 14846 | F10: 6 | H10: 1 | I10: 1
A11: =A12-($A$19-$A$10)/9 -> 0.06111111111 | B11: $52,263 | C11: -4562 | D11: 35863 | E11: 19173 | F11: 5 | H11: 1 | I11: 1
A12: 0.1222222222 | B12: $100,028 | C12: 26968 | D12: 44565 | E12: 24191 | F12: 4 | G12: 7 | H12: 1 | I12: 1
A13: 0.1833333333 | B13: $125,840 | C13: 44467 | D13: 49318 | E13: 26712 | F13: 4 | G13: 6 | H13: 1 | I13: 1
A14: 0.2444444444 | B14: $139,634 | C14: 53956 | D14: 51894 | E14: 28006 | F14: 3 | G14: 5 | H14: 1 | I14: 1
A15: 0.3055555556 | B15: $148,781 | C15: 60295 | D15: 53615 | E15: 28848 | F15: 3 | G15: 5 | H15: 1 | I15: 1
A16: 0.3666666667 | B16: $154,272 | C16: 64120 | D16: 54653 | E16: 29346 | F16: 3 | G16: 4 | H16: 1 | I16: 1
A17: 0.4277777778 | B17: $158,650 | C17: 67181 | D17: 55484 | E17: 29740 | F17: 3 | G17: 4 | H17: 1 | I17: 1
A18: =A19-($A$19-$A$10)/9 -> 0.4888888889 | B18: $163,168 | C18: 70339 | D18: 56341 | E18: 30146 | F18: 3 | G18: 4 | H18: 1 | I18: 1
A19: =VLOOKUP(_xlfn.NUMBERVALUE(RIGHT(A5,2)),SensitivitySummary[], 4,FALSE) -> 0.55 | B19: $165,913 | C19: 72262 | D19: 56863 | E19: 30392 | F19: 3 | G19: 4 | H19: 1 | I19: 1
A21: Sensitivity Analysis #02
A22: =VLOOKUP(_xlfn.NUMBERVALUE(RIGHT(A21, 2)), SensitivitySummary[], 2,FALSE) -> [Station Type 1] Initial average utilization [# of charging sessions per station per year]
B23: NPV | F23: Payback
A24: Scenario | B24: ='Outputs Dashboard'!$E$4 -> Project | C24: ='Outputs Dashboard'!$E$10 -> Owner-Operator | D24: ='Outputs Dashboard'!$E$19 -> Private Sector Partner(s) | E24: ='Outputs Dashboard'!$E$28 -> Public Sector Partner | F24: ='Outputs Dashboard'!$E$4 -> Project | G24: ='Outputs Dashboard'!$E$10 -> Owner-Operator | H24: ='Outputs Dashboard'!$E$19 -> Private Sector Partner(s) | I24: ='Outputs Dashboard'!$E$28 -> Public Sector Partner
A25: =INDIRECT(VLOOKUP(_xlfn.NUMBERVALUE(RIGHT(A21,2)),SensitivitySummary[],7,FALSE)) -> 5548 | B25: =RIGHT('Outputs Dashboard'!$F$6, LEN('Outputs Dashboard'!$F$6)-1) -> $84,779 | C25: =_xlfn.NUMBERVALUE('Outputs Dashboard'!$F$15) -> 16787 | D25: =_xlfn.NUMBERVALUE('Outputs Dashboard'!$F$24) -> 41798 | E25: =_xlfn.NUMBERVALUE('Outputs Dashboard'!$F$31) -> 22639 | F25: =IF('Outputs Dashboard'!$F$8="N/A",#N/A,'Outputs Dashboard'!$F$8) -> 4 | G25: =IF('Outputs Dashboard'!$F$17="N/A",#N/A,'Outputs Dashboard'!$F$17) -> 8 | H25: =IF('Outputs Dashboard'!$F$26="N/A",#N/A,'Outputs Dashboard'!$F$26) -> 1 | I25: =IF('Outputs Dashboard'!$F$33="N/A",#N/A,'Outputs Dashboard'!$F$33) -> 1
A26: =VLOOKUP(_xlfn.NUMBERVALUE(RIGHT(A21,2)),SensitivitySummary[], 3,FALSE) -> 0 | B26: $107,383 | C26: -103300 | D26: 0 | E26: 0
A27: =A28-($A$35-$A$26)/9 -> 486.6666667 | B27: $118,184 | C27: -118865 | D27: 3676 | E27: 1992 | H27: 1 | I27: 1
A28: 973.3333333 | B28: $98,585 | C28: -105769 | D28: 7357 | E28: 3987 | H28: 1 | I28: 1
A29: 1460 | B29: $79,030 | C29: -92702 | D29: 11030 | E29: 5978 | H29: 1 | I29: 1
A30: 1946.666667 | B30: $59,476 | C30: -79636 | D30: 14703 | E30: 7968 | H30: 1 | I30: 1
A31: 2433.333333 | B31: $39,882 | C31: -66543 | D31: 18384 | E31: 9962 | H31: 1 | I31: 1
A32: 2920 | B32: $20,339 | C32: -53485 | D32: 22055 | E32: 11952 | H32: 1 | I32: 1
A33: 3406.666667 | B33: $770 | C33: -40409 | D33: 25730 | E33: 13944 | H33: 1 | I33: 1
A34: 3893.333333 | B34: $18,804 | C34: -27329 | D34: 29407 | E34: 15936 | F34: 8 | H34: 1 | I34: 1
A35: =VLOOKUP(_xlfn.NUMBERVALUE(RIGHT(A21,2)),SensitivitySummary[], 4,FALSE) -> 4380 | B35: $38,373 | C35: -14253 | D35: 33083 | E35: 17928 | F35: 6 | H35: 1 | I35: 1
A37: Sensitivity Analysis #03
A38: =VLOOKUP(_xlfn.NUMBERVALUE(RIGHT(A37, 2)), SensitivitySummary[], 2,FALSE) -> Climate benefit [$ per ton of greenhouse gas emissions abated]
B39: NPV | F39: Payback
A40: Scenario | B40: ='Outputs Dashboard'!$E$4 -> Project | C40: ='Outputs Dashboard'!$E$10 -> Owner-Operator | D40: ='Outputs Dashboard'!$E$19 -> Private Sector Partner(s) | E40: ='Outputs Dashboard'!$E$28 -> Public Sector Partner | F40: ='Outputs Dashboard'!$E$4 -> Project | G40: ='Outputs Dashboard'!$E$10 -> Owner-Operator | H40: ='Outputs Dashboard'!$E$19 -> Private Sector Partner(s) | I40: ='Outputs Dashboard'!$E$28 -> Public Sector Partner
A41: =INDIRECT(VLOOKUP(_xlfn.NUMBERVALUE(RIGHT(A37,2)),SensitivitySummary[],7,FALSE)) -> 42 | B41: =RIGHT('Outputs Dashboard'!$F$6, LEN('Outputs Dashboard'!$F$6)-1) -> $84,779 | C41: =_xlfn.NUMBERVALUE('Outputs Dashboard'!$F$15) -> 16787 | D41: =_xlfn.NUMBERVALUE('Outputs Dashboard'!$F$24) -> 41798 | E41: =_xlfn.NUMBERVALUE('Outputs Dashboard'!$F$31) -> 22639 | F41: =IF('Outputs Dashboard'!$F$8="N/A",#N/A,'Outputs Dashboard'!$F$8) -> 4 | G41: =IF('Outputs Dashboard'!$F$17="N/A",#N/A,'Outputs Dashboard'!$F$17) -> 8 | H41: =IF('Outputs Dashboard'!$F$26="N/A",#N/A,'Outputs Dashboard'!$F$26) -> 1 | I41: =IF('Outputs Dashboard'!$F$33="N/A",#N/A,'Outputs Dashboard'!$F$33) -> 1
A42: =VLOOKUP(_xlfn.NUMBERVALUE(RIGHT(A37,2)),SensitivitySummary[], 3,FALSE) -> 0 | B42: $73,734 | C42: 16787 | D42: 41798 | E42: 9331 | F42: 5 | G42: 8 | H42: 1 | I42: 1
A43: =A44-($A$51-$A$42)/9 -> 11.11111111 | B43: $76,656 | C43: 16787 | D43: 41798 | E43: 12851 | F43: 5 | G43: 8 | H43: 1 | I43: 1
A44: 22.22222222 | B44: $79,578 | C44: 16787 | D44: 41798 | E44: 16372 | F44: 4 | G44: 8 | H44: 1 | I44: 1
A45: 33.33333333 | B45: $82,500 | C45: 16787 | D45: 41798 | E45: 19893 | F45: 4 | G45: 8 | H45: 1 | I45: 1
A46: 44.44444444 | B46: $85,422 | C46: 16787 | D46: 41798 | E46: 23413 | F46: 4 | G46: 8 | H46: 1 | I46: 1
A47: 55.55555556 | B47: $88,344 | C47: 16787 | D47: 41798 | E47: 26934 | F47: 4 | G47: 8 | H47: 1 | I47: 1
A48: 66.66666667 | B48: $91,266 | C48: 16787 | D48: 41798 | E48: 30454 | F48: 4 | G48: 8 | H48: 1 | I48: 1
A49: 77.77777778 | B49: $94,188 | C49: 16787 | D49: 41798 | E49: 33975 | F49: 4 | G49: 8 | H49: 1 | I49: 1
A50: =A51-($A$51-$A$42)/9 -> 88.88888889 | B50: $97,110 | C50: 16787 | D50: 41798 | E50: 37495 | F50: 4 | G50: 8 | H50: 1 | I50: 1
A51: =VLOOKUP(_xlfn.NUMBERVALUE(RIGHT(A37,2)),SensitivitySummary[], 4,FALSE) -> 100 | B51: $100,032 | C51: 16787 | D51: 41798 | E51: 41016 | F51: 4 | G51: 8 | H51: 1 | I51: 1
A53: Sensitivity Analysis #04
A54: =VLOOKUP(_xlfn.NUMBERVALUE(RIGHT(A53, 2)), SensitivitySummary[], 2,FALSE) -> EV fuel economy [miles per kilowatt-hour]
B55: NPV | F55: Payback
A56: Scenario | B56: ='Outputs Dashboard'!$E$4 -> Project | C56: ='Outputs Dashboard'!$E$10 -> Owner-Operator | D56: ='Outputs Dashboard'!$E$19 -> Private Sector Partner(s) | E56: ='Outputs Dashboard'!$E$28 -> Public Sector Partner | F56: ='Outputs Dashboard'!$E$4 -> Project | G56: ='Outputs Dashboard'!$E$10 -> Owner-Operator | H56: ='Outputs Dashboard'!$E$19 -> Private Sector Partner(s) | I56: ='Outputs Dashboard'!$E$28 -> Public Sector Partner
A57: =INDIRECT(VLOOKUP(_xlfn.NUMBERVALUE(RIGHT(A53,2)),SensitivitySummary[],7,FALSE)) -> 3.5 | B57: =RIGHT('Outputs Dashboard'!$F$6, LEN('Outputs Dashboard'!$F$6)-1) -> $84,779 | C57: =_xlfn.NUMBERVALUE('Outputs Dashboard'!$F$15) -> 16787 | D57: =_xlfn.NUMBERVALUE('Outputs Dashboard'!$F$24) -> 41798 | E57: =_xlfn.NUMBERVALUE('Outputs Dashboard'!$F$31) -> 22639 | F57: =IF('Outputs Dashboard'!$F$8="N/A",#N/A,'Outputs Dashboard'!$F$8) -> 4 | G57: =IF('Outputs Dashboard'!$F$17="N/A",#N/A,'Outputs Dashboard'!$F$17) -> 8 | H57: =IF('Outputs Dashboard'!$F$26="N/A",#N/A,'Outputs Dashboard'!$F$26) -> 1 | I57: =IF('Outputs Dashboard'!$F$33="N/A",#N/A,'Outputs Dashboard'!$F$33) -> 1
A58: =VLOOKUP(_xlfn.NUMBERVALUE(RIGHT(A53,2)),SensitivitySummary[], 3,FALSE) -> 0 | B58: $62,789 | C58: 16787 | D58: 41798 | E58: -3856 | F58: 5 | G58: 8 | H58: 1
A59: =A60-($A$67-$A$58)/9 -> 5.555555556 | B59: $97,694 | C59: 16787 | D59: 41798 | E59: 38199 | F59: 4 | G59: 8 | H59: 1 | I59: 1
A60: 11.11111111 | B60: $132,599 | C60: 16787 | D60: 41798 | E60: 80255 | F60: 3 | G60: 8 | H60: 1 | I60: 1
A61: 16.66666667 | B61: $167,504 | C61: 16787 | D61: 41798 | E61: 122311 | F61: 3 | G61: 8 | H61: 1 | I61: 1
A62: 22.22222222 | B62: $202,409 | C62: 16787 | D62: 41798 | E62: 164366 | F62: 2 | G62: 8 | H62: 1 | I62: 1
A63: 27.77777778 | B63: $237,313 | C63: 16787 | D63: 41798 | E63: 206422 | F63: 2 | G63: 8 | H63: 1 | I63: 1
A64: 33.33333333 | B64: $272,218 | C64: 16787 | D64: 41798 | E64: 248478 | F64: 2 | G64: 8 | H64: 1 | I64: 1
A65: 38.88888889 | B65: $307,123 | C65: 16787 | D65: 41798 | E65: 290534 | F65: 2 | G65: 8 | H65: 1 | I65: 1
A66: =A67-($A$67-$A$58)/9 -> 44.44444444 | B66: $342,028 | C66: 16787 | D66: 41798 | E66: 332589 | F66: 2 | G66: 8 | H66: 1 | I66: 1
A67: =VLOOKUP(_xlfn.NUMBERVALUE(RIGHT(A53,2)),SensitivitySummary[], 4,FALSE) -> 50 | B67: $376,932 | C67: 16787 | D67: 41798 | E67: 374645 | F67: 1 | G67: 8 | H67: 1 | I67: 1
A69: Sensitivity Analysis #05
A70: =VLOOKUP(_xlfn.NUMBERVALUE(RIGHT(A69, 2)), SensitivitySummary[], 2,FALSE) -> Share of onsite energy generation (type 1 station) [%]
B71: NPV | F71: Payback
A72: Scenario | B72: ='Outputs Dashboard'!$E$4 -> Project | C72: ='Outputs Dashboard'!$E$10 -> Owner-Operator | D72: ='Outputs Dashboard'!$E$19 -> Private Sector Partner(s) | E72: ='Outputs Dashboard'!$E$28 -> Public Sector Partner | F72: ='Outputs Dashboard'!$E$4 -> Project | G72: ='Outputs Dashboard'!$E$10 -> Owner-Operator | H72: ='Outputs Dashboard'!$E$19 -> Private Sector Partner(s) | I72: ='Outputs Dashboard'!$E$28 -> Public Sector Partner
A73: =INDIRECT(VLOOKUP(_xlfn.NUMBERVALUE(RIGHT(A69,2)),SensitivitySummary[],7,FALSE)) -> 0 | B73: =RIGHT('Outputs Dashboard'!$F$6, LEN('Outputs Dashboard'!$F$6)-1) -> $84,779 | C73: =_xlfn.NUMBERVALUE('Outputs Dashboard'!$F$15) -> 16787 | D73: =_xlfn.NUMBERVALUE('Outputs Dashboard'!$F$24) -> 41798 | E73: =_xlfn.NUMBERVALUE('Outputs Dashboard'!$F$31) -> 22639 | F73: =IF('Outputs Dashboard'!$F$8="N/A",#N/A,'Outputs Dashboard'!$F$8) -> 4 | G73: =IF('Outputs Dashboard'!$F$17="N/A",#N/A,'Outputs Dashboard'!$F$17) -> 8 | H73: =IF('Outputs Dashboard'!$F$26="N/A",#N/A,'Outputs Dashboard'!$F$26) -> 1 | I73: =IF('Outputs Dashboard'!$F$33="N/A",#N/A,'Outputs Dashboard'!$F$33) -> 1
A74: =VLOOKUP(_xlfn.NUMBERVALUE(RIGHT(A69,2)),SensitivitySummary[], 3,FALSE) -> 0 | B74: $84,779 | C74: 16787 | D74: 41798 | E74: 22639 | F74: 4 | G74: 8 | H74: 1 | I74: 1
A75: =A76-($A$83-$A$74)/9 -> 0.1111111111 | B75: $93,493 | C75: 23849 | D75: 41798 | E75: 24027 | F75: 4 | G75: 7 | H75: 1 | I75: 1
A76: 0.2222222222 | B76: $102,207 | C76: 30912 | D76: 41798 | E76: 25416 | F76: 4 | G76: 7 | H76: 1 | I76: 1
A77: 0.3333333333 | B77: $110,921 | C77: 37974 | D77: 41798 | E77: 26804 | F77: 4 | G77: 6 | H77: 1 | I77: 1
A78: 0.4444444444 | B78: $119,634 | C78: 45036 | D78: 41798 | E78: 28192 | F78: 3 | G78: 6 | H78: 1 | I78: 1
A79: 0.5555555556 | B79: $128,348 | C79: 52099 | D79: 41798 | E79: 29581 | F79: 3 | G79: 5 | H79: 1 | I79: 1
A80: 0.6666666667 | B80: $137,062 | C80: 59161 | D80: 41798 | E80: 30969 | F80: 3 | G80: 5 | H80: 1 | I80: 1
A81: 0.7777777778 | B81: $145,775 | C81: 66224 | D81: 41798 | E81: 32358 | F81: 3 | G81: 5 | H81: 1 | I81: 1
A82: =A83-($A$83-$A$74)/9 -> 0.8888888889 | B82: $154,489 | C82: 73286 | D82: 41798 | E82: 33746 | F82: 3 | G82: 4 | H82: 1 | I82: 1
A83: =VLOOKUP(_xlfn.NUMBERVALUE(RIGHT(A69,2)),SensitivitySummary[], 4,FALSE) -> 1 | B83: $163,203 | C83: 80348 | D83: 41798 | E83: 35135 | F83: 3 | G83: 4 | H83: 1 | I83: 1
A85: Sensitivity Analysis #06
A86: =VLOOKUP(_xlfn.NUMBERVALUE(RIGHT(A85, 2)), SensitivitySummary[], 2,FALSE) -> Estimated NPV of lifetime after-tax profit per station (type 1 station) [$]
B87: NPV | F87: Payback
A88: Scenario | B88: ='Outputs Dashboard'!$E$4 -> Project | C88: ='Outputs Dashboard'!$E$10 -> Owner-Operator | D88: ='Outputs Dashboard'!$E$19 -> Private Sector Partner(s) | E88: ='Outputs Dashboard'!$E$28 -> Public Sector Partner | F88: ='Outputs Dashboard'!$E$4 -> Project | G88: ='Outputs Dashboard'!$E$10 -> Owner-Operator | H88: ='Outputs Dashboard'!$E$19 -> Private Sector Partner(s) | I88: ='Outputs Dashboard'!$E$28 -> Public Sector Partner
A89: =INDIRECT(VLOOKUP(_xlfn.NUMBERVALUE(RIGHT(A85,2)),SensitivitySummary[],7,FALSE)) -> 0 | B89: =RIGHT('Outputs Dashboard'!$F$6, LEN('Outputs Dashboard'!$F$6)-1) -> $84,779 | C89: =_xlfn.NUMBERVALUE('Outputs Dashboard'!$F$15) -> 16787 | D89: =_xlfn.NUMBERVALUE('Outputs Dashboard'!$F$24) -> 41798 | E89: =_xlfn.NUMBERVALUE('Outputs Dashboard'!$F$31) -> 22639 | F89: =IF('Outputs Dashboard'!$F$8="N/A",#N/A,'Outputs Dashboard'!$F$8) -> 4 | G89: =IF('Outputs Dashboard'!$F$17="N/A",#N/A,'Outputs Dashboard'!$F$17) -> 8 | H89: =IF('Outputs Dashboard'!$F$26="N/A",#N/A,'Outputs Dashboard'!$F$26) -> 1 | I89: =IF('Outputs Dashboard'!$F$33="N/A",#N/A,'Outputs Dashboard'!$F$33) -> 1
A90: =VLOOKUP(_xlfn.NUMBERVALUE(RIGHT(A69,2)),SensitivitySummary[], 3,FALSE) -> 0 | B90: $84,779 | C90: 16787 | D90: 41798 | E90: 22639 | F90: 4 | G90: 8 | H90: 1 | I90: 1
A91: =A92-($A$99-$A$90)/9 -> 0.1111111111 | B91: $84,779 | C91: 16787 | D91: 41798 | E91: 22639 | F91: 4 | G91: 8 | H91: 1 | I91: 1
A92: 0.2222222222 | B92: $84,779 | C92: 16787 | D92: 41799 | E92: 22639 | F92: 4 | G92: 8 | H92: 1 | I92: 1
A93: 0.3333333333 | B93: $84,780 | C93: 16787 | D93: 41799 | E93: 22639 | F93: 4 | G93: 8 | H93: 1 | I93: 1
A94: 0.4444444444 | B94: $84,780 | C94: 16787 | D94: 41799 | E94: 22639 | F94: 4 | G94: 8 | H94: 1 | I94: 1
A95: 0.5555555556 | B95: $84,780 | C95: 16787 | D95: 41799 | E95: 22639 | F95: 4 | G95: 8 | H95: 1 | I95: 1
A96: 0.6666666667 | B96: $84,780 | C96: 16787 | D96: 41799 | E96: 22639 | F96: 4 | G96: 8 | H96: 1 | I96: 1
A97: 0.7777777778 | B97: $84,780 | C97: 16787 | D97: 41799 | E97: 22639 | F97: 4 | G97: 8 | H97: 1 | I97: 1
A98: =A99-($A$99-$A$90)/9 -> 0.8888888889 | B98: $84,780 | C98: 16787 | D98: 41799 | E98: 22639 | F98: 4 | G98: 8 | H98: 1 | I98: 1
A99: =VLOOKUP(_xlfn.NUMBERVALUE(RIGHT(A69,2)),SensitivitySummary[], 4,FALSE) -> 1 | B99: $84,780 | C99: 16787 | D99: 41799 | E99: 22639 | F99: 4 | G99: 8 | H99: 1 | I99: 1
A101: Sensitivity Analysis #07
A102: =VLOOKUP(_xlfn.NUMBERVALUE(RIGHT(A101, 2)), SensitivitySummary[], 2,FALSE) -> Annual customer revenue sharing agreement (from sales) [% of revenue]
B103: NPV | F103: Payback
A104: Scenario | B104: ='Outputs Dashboard'!$E$4 -> Project | C104: ='Outputs Dashboard'!$E$10 -> Owner-Operator | D104: ='Outputs Dashboard'!$E$19 -> Private Sector Partner(s) | E104: ='Outputs Dashboard'!$E$28 -> Public Sector Partner | F104: ='Outputs Dashboard'!$E$4 -> Project | G104: ='Outputs Dashboard'!$E$10 -> Owner-Operator | H104: ='Outputs Dashboard'!$E$19 -> Private Sector Partner(s) | I104: ='Outputs Dashboard'!$E$28 -> Public Sector Partner
A105: =INDIRECT(VLOOKUP(_xlfn.NUMBERVALUE(RIGHT(A101,2)),SensitivitySummary[],7,FALSE)) -> 0.1 | B105: =RIGHT('Outputs Dashboard'!$F$6, LEN('Outputs Dashboard'!$F$6)-1) -> $84,779 | C105: =_xlfn.NUMBERVALUE('Outputs Dashboard'!$F$15) -> 16787 | D105: =_xlfn.NUMBERVALUE('Outputs Dashboard'!$F$24) -> 41798 | E105: =_xlfn.NUMBERVALUE('Outputs Dashboard'!$F$31) -> 22639 | F105: =IF('Outputs Dashboard'!$F$8="N/A",#N/A,'Outputs Dashboard'!$F$8) -> 4 | G105: =IF('Outputs Dashboard'!$F$17="N/A",#N/A,'Outputs Dashboard'!$F$17) -> 8 | H105: =IF('Outputs Dashboard'!$F$26="N/A",#N/A,'Outputs Dashboard'!$F$26) -> 1 | I105: =IF('Outputs Dashboard'!$F$33="N/A",#N/A,'Outputs Dashboard'!$F$33) -> 1
A106: =VLOOKUP(_xlfn.NUMBERVALUE(RIGHT(A101,2)),SensitivitySummary[], 3,FALSE) -> 0 | B106: $87,256 | C106: -18336 | D106: 79033 | E106: 22639 | F106: 4 | H106: 1 | I106: 1
A107: =A108-($A$115-$A$106)/9 -> 0.05 | B107: $86,018 | C107: -775 | D107: 60416 | E107: 22639 | F107: 4 | H107: 1 | I107: 1
A108: 0.1 | B108: $84,779 | C108: 16787 | D108: 41798 | E108: 22639 | F108: 4 | G108: 8 | H108: 1 | I108: 1
A109: 0.15 | B109: $83,541 | C109: 34348 | D109: 23181 | E109: 22639 | F109: 4 | G109: 6 | H109: 1 | I109: 1
A110: 0.2 | B110: $82,302 | C110: 51910 | D110: 4564 | E110: 22639 | F110: 4 | G110: 5 | H110: 1 | I110: 1
A111: 0.25 | B111: $81,064 | C111: 69471 | D111: -14053 | E111: 22639 | F111: 4 | G111: 5 | I111: 1
A112: 0.3 | B112: $79,825 | C112: 87033 | D112: -32670 | E112: 22639 | F112: 4 | G112: 4 | I112: 1
A113: 0.35 | B113: $78,587 | C113: 104594 | D113: -51288 | E113: 22639 | F113: 4 | G113: 3 | I113: 1
A114: =A115-($A$115-$A$106)/9 -> 0.4 | B114: $77,348 | C114: 122156 | D114: -69905 | E114: 22639 | F114: 4 | G114: 3 | I114: 1
A115: =VLOOKUP(_xlfn.NUMBERVALUE(RIGHT(A101,2)),SensitivitySummary[], 4,FALSE) -> 0.45 | B115: $76,110 | C115: 139717 | D115: -88522 | E115: 22639 | F115: 4 | G115: 3 | I115: 1
A117: Sensitivity Analysis #08
A118: =VLOOKUP(_xlfn.NUMBERVALUE(RIGHT(A117, 2)), SensitivitySummary[], 2,FALSE) -> Demand charge (type 1 station) [$/kW/month]
B119: NPV | F119: Payback
A120: Scenario | B120: ='Outputs Dashboard'!$E$4 -> Project | C120: ='Outputs Dashboard'!$E$10 -> Owner-Operator | D120: ='Outputs Dashboard'!$E$19 -> Private Sector Partner(s) | E120: ='Outputs Dashboard'!$E$28 -> Public Sector Partner | F120: ='Outputs Dashboard'!$E$4 -> Project | G120: ='Outputs Dashboard'!$E$10 -> Owner-Operator | H120: ='Outputs Dashboard'!$E$19 -> Private Sector Partner(s) | I120: ='Outputs Dashboard'!$E$28 -> Public Sector Partner
A121: =INDIRECT(VLOOKUP(_xlfn.NUMBERVALUE(RIGHT(A117,2)),SensitivitySummary[],7,FALSE)) -> 11.48 | B121: =RIGHT('Outputs Dashboard'!$F$6, LEN('Outputs Dashboard'!$F$6)-1) -> $84,779 | C121: =_xlfn.NUMBERVALUE('Outputs Dashboard'!$F$15) -> 16787 | D121: =_xlfn.NUMBERVALUE('Outputs Dashboard'!$F$24) -> 41798 | E121: =_xlfn.NUMBERVALUE('Outputs Dashboard'!$F$31) -> 22639 | F121: =IF('Outputs Dashboard'!$F$8="N/A",#N/A,'Outputs Dashboard'!$F$8) -> 4 | G121: =IF('Outputs Dashboard'!$F$17="N/A",#N/A,'Outputs Dashboard'!$F$17) -> 8 | H121: =IF('Outputs Dashboard'!$F$26="N/A",#N/A,'Outputs Dashboard'!$F$26) -> 1 | I121: =IF('Outputs Dashboard'!$F$33="N/A",#N/A,'Outputs Dashboard'!$F$33) -> 1
A122: =VLOOKUP(_xlfn.NUMBERVALUE(RIGHT(A117,2)),SensitivitySummary[], 3,FALSE) -> 0 | B122: $115,149 | C122: 45428 | D122: 41798 | E122: 22639 | F122: 3 | G122: 5 | H122: 1 | I122: 1
A123: =A124-($A$131-$A$122)/9 -> 1.333333333 | B123: $111,622 | C123: 42101 | D123: 41798 | E123: 22639 | F123: 3 | G123: 6 | H123: 1 | I123: 1
A124: 2.666666667 | B124: $108,094 | C124: 38775 | D124: 41798 | E124: 22639 | F124: 3 | G124: 6 | H124: 1 | I124: 1
A125: 4 | B125: $104,567 | C125: 35448 | D125: 41798 | E125: 22639 | F125: 4 | G125: 6 | H125: 1 | I125: 1
A126: 5.333333333 | B126: $101,040 | C126: 32122 | D126: 41798 | E126: 22639 | F126: 4 | G126: 6 | H126: 1 | I126: 1
A127: 6.666666667 | B127: $97,513 | C127: 28795 | D127: 41798 | E127: 22639 | F127: 4 | G127: 7 | H127: 1 | I127: 1
A128: 8 | B128: $93,985 | C128: 25469 | D128: 41798 | E128: 22639 | F128: 4 | G128: 7 | H128: 1 | I128: 1
A129: 9.333333333 | B129: $90,458 | C129: 22143 | D129: 41798 | E129: 22639 | F129: 4 | G129: 7 | H129: 1 | I129: 1
A130: =A131-($A$131-$A$122)/9 -> 10.66666667 | B130: $86,931 | C130: 18816 | D130: 41798 | E130: 22639 | F130: 4 | G130: 8 | H130: 1 | I130: 1
A131: =VLOOKUP(_xlfn.NUMBERVALUE(RIGHT(A117,2)),SensitivitySummary[], 4,FALSE) -> 12 | B131: $83,404 | C131: 15490 | D131: 41798 | E131: 22639 | F131: 4 | G131: 8 | H131: 1 | I131: 1
A133: Sensitivity Analysis #09
A134: =VLOOKUP(_xlfn.NUMBERVALUE(RIGHT(A133, 2)), SensitivitySummary[], 2,FALSE) -> Per-energy user fee (type 1 station) [$/kWh]
B135: NPV | F135: Payback
A136: Scenario | B136: ='Outputs Dashboard'!$E$4 -> Project | C136: ='Outputs Dashboard'!$E$10 -> Owner-Operator | D136: ='Outputs Dashboard'!$E$19 -> Private Sector Partner(s) | E136: ='Outputs Dashboard'!$E$28 -> Public Sector Partner | F136: ='Outputs Dashboard'!$E$4 -> Project | G136: ='Outputs Dashboard'!$E$10 -> Owner-Operator | H136: ='Outputs Dashboard'!$E$19 -> Private Sector Partner(s) | I136: ='Outputs Dashboard'!$E$28 -> Public Sector Partner
A137: =INDIRECT(VLOOKUP(_xlfn.NUMBERVALUE(RIGHT(A133,2)),SensitivitySummary[],7,FALSE)) -> 0.6 | B137: =RIGHT('Outputs Dashboard'!$F$6, LEN('Outputs Dashboard'!$F$6)-1) -> $84,779 | C137: =_xlfn.NUMBERVALUE('Outputs Dashboard'!$F$15) -> 16787 | D137: =_xlfn.NUMBERVALUE('Outputs Dashboard'!$F$24) -> 41798 | E137: =_xlfn.NUMBERVALUE('Outputs Dashboard'!$F$31) -> 22639 | F137: =IF('Outputs Dashboard'!$F$8="N/A",#N/A,'Outputs Dashboard'!$F$8) -> 4 | G137: =IF('Outputs Dashboard'!$F$17="N/A",#N/A,'Outputs Dashboard'!$F$17) -> 8 | H137: =IF('Outputs Dashboard'!$F$26="N/A",#N/A,'Outputs Dashboard'!$F$26) -> 1 | I137: =IF('Outputs Dashboard'!$F$33="N/A",#N/A,'Outputs Dashboard'!$F$33) -> 1
A138: =VLOOKUP(_xlfn.NUMBERVALUE(RIGHT(A133,2)),SensitivitySummary[], 3,FALSE) -> 0 | B138: $104,561 | C138: -160379 | D138: 41798 | E138: 22639 | H138: 1 | I138: 1
A139: =A140-($A$147-$A$138)/9 -> 0.1111111111 | B139: $69,498 | C139: -127571 | D139: 41798 | E139: 22639 | H139: 1 | I139: 1
A140: 0.2222222222 | B140: $34,435 | C140: -94762 | D140: 41798 | E140: 22639 | H140: 1 | I140: 1
A141: 0.3333333333 | B141: $628 | C141: -61954 | D141: 41798 | E141: 22639 | F141: 10 | H141: 1 | I141: 1
A142: 0.4444444444 | B142: $35,691 | C142: -29145 | D142: 41798 | E142: 22639 | F142: 7 | H142: 1 | I142: 1
A143: 0.5555555556 | B143: $70,754 | C143: 3664 | D143: 41798 | E143: 22639 | F143: 5 | G143: 9 | H143: 1 | I143: 1
A144: 0.6666666667 | B144: $105,817 | C144: 36472 | D144: 41798 | E144: 22639 | F144: 4 | G144: 6 | H144: 1 | I144: 1
A145: 0.7777777778 | B145: $140,880 | C145: 69281 | D145: 41798 | E145: 22639 | F145: 3 | G145: 5 | H145: 1 | I145: 1
A146: 0.8888888889 | B146: $175,943 | C146: 102089 | D146: 41798 | E146: 22639 | F146: 3 | G146: 4 | H146: 1 | I146: 1
A147: =VLOOKUP(_xlfn.NUMBERVALUE(RIGHT(A133,2)),SensitivitySummary[], 4,FALSE) -> 1 | B147: $211,006 | C147: 134898 | D147: 41798 | E147: 22639 | F147: 2 | G147: 3 | H147: 1 | I147: 1
A149: Sensitivity Analysis #10
A150: =VLOOKUP(_xlfn.NUMBERVALUE(RIGHT(A149, 2)), SensitivitySummary[], 2,FALSE) -> Total number of type 1 stations [#]
B151: NPV | F151: Payback
A152: Scenario | B152: ='Outputs Dashboard'!$E$4 -> Project | C152: ='Outputs Dashboard'!$E$10 -> Owner-Operator | D152: ='Outputs Dashboard'!$E$19 -> Private Sector Partner(s) | E152: ='Outputs Dashboard'!$E$28 -> Public Sector Partner | F152: ='Outputs Dashboard'!$E$4 -> Project | G152: ='Outputs Dashboard'!$E$10 -> Owner-Operator | H152: ='Outputs Dashboard'!$E$19 -> Private Sector Partner(s) | I152: ='Outputs Dashboard'!$E$28 -> Public Sector Partner
A153: =INDIRECT(VLOOKUP(_xlfn.NUMBERVALUE(RIGHT(A149,2)),SensitivitySummary[],7,FALSE)) -> 1 | B153: =RIGHT('Outputs Dashboard'!$F$6, LEN('Outputs Dashboard'!$F$6)-1) -> $84,779 | C153: =_xlfn.NUMBERVALUE('Outputs Dashboard'!$F$15) -> 16787 | D153: =_xlfn.NUMBERVALUE('Outputs Dashboard'!$F$24) -> 41798 | E153: =_xlfn.NUMBERVALUE('Outputs Dashboard'!$F$31) -> 22639 | F153: =IF('Outputs Dashboard'!$F$8="N/A",#N/A,'Outputs Dashboard'!$F$8) -> 4 | G153: =IF('Outputs Dashboard'!$F$17="N/A",#N/A,'Outputs Dashboard'!$F$17) -> 8 | H153: =IF('Outputs Dashboard'!$F$26="N/A",#N/A,'Outputs Dashboard'!$F$26) -> 1 | I153: =IF('Outputs Dashboard'!$F$33="N/A",#N/A,'Outputs Dashboard'!$F$33) -> 1
A154: =VLOOKUP(_xlfn.NUMBERVALUE(RIGHT(A149,2)),SensitivitySummary[], 3,FALSE) -> 0 | B154: $45,452 | C154: -43797 | D154: 0 | E154: 0
A155: =A156-($A$163-$A$154)/9 -> 2.222222222 | B155: $243,994 | C155: 90863 | D155: 92893 | E155: 50313 | F155: 3 | G155: 5 | H155: 1 | I155: 1
A156: 4.444444444 | B156: $533,432 | C156: 225517 | D156: 185785 | E156: 100624 | F156: 2 | G156: 4 | H156: 1 | I156: 1
A157: 6.666666667 | B157: $822,860 | C157: 360164 | D157: 278674 | E157: 150935 | F157: 2 | G157: 4 | H157: 1 | I157: 1
A158: 8.888888889 | B158: $1,112,301 | C158: 494821 | D158: 371567 | E158: 201247 | F158: 2 | G158: 4 | H158: 1 | I158: 1
A159: 11.11111111 | B159: $1,401,748 | C159: 629480 | D159: 464460 | E159: 251559 | F159: 2 | G159: 4 | H159: 1 | I159: 1
A160: 13.33333333 | B160: $1,691,203 | C160: 764146 | D160: 557355 | E160: 301873 | F160: 2 | G160: 4 | H160: 1 | I160: 1
A161: 15.55555556 | B161: $1,980,619 | C161: 898785 | D161: 650242 | E161: 352182 | F161: 2 | G161: 4 | H161: 1 | I161: 1
A162: 17.77777778 | B162: $2,270,048 | C162: 1033434 | D162: 743132 | E162: 402493 | F162: 2 | G162: 4 | H162: 1 | I162: 1
A163: =VLOOKUP(_xlfn.NUMBERVALUE(RIGHT(A149,2)),SensitivitySummary[], 4,FALSE) -> 20 | B163: $2,559,506 | C163: 1168102 | D163: 836027 | E163: 452807 | F163: 2 | G163: 4 | H163: 1 | I163: 1

Sheet Income Statement
A1: ='Initial Settings'!$B$5 -> Corridor and Community DC Fast Charging Complex (Urban Site)
A3: Consolidated Statements of Income [$]
B5: ='Initial Settings'!B6 -> 2017 | C5: ='Owner-Operator Inputs'!F304 -> 2018 | D5: ='Owner-Operator Inputs'!G304 -> 2019 | E5: ='Owner-Operator Inputs'!H304 -> 2020 | F5: ='Owner-Operator Inputs'!I304 -> 2021 | G5: ='Owner-Operator Inputs'!J304 -> 2022 | H5: ='Owner-Operator Inputs'!K304 -> 2023 | I5: ='Owner-Operator Inputs'!L304 -> 2024 | J5: ='Owner-Operator Inputs'!M304 -> 2025 | K5: ='Owner-Operator Inputs'!N304 -> 2026 | L5: ='Owner-Operator Inputs'!O304 -> 2027
A6: Revenues
A7: Operating Revenue | B7: 0 | C7: ='Owner-Operator Inputs'!F306 -> 30783.6 | D7: ='Owner-Operator Inputs'!G306 -> 33863.06972 | E7: ='Owner-Operator Inputs'!H306 -> 37247.71211 | F7: ='Owner-Operator Inputs'!I306 -> 40970.81875 | G7: ='Owner-Operator Inputs'!J306 -> 45065.68118 | H7: ='Owner-Operator Inputs'!K306 -> 49571.13958 | I7: ='Owner-Operator Inputs'!L306 -> 54526.0341 | J7: ='Owner-Operator Inputs'!M306 -> 59980.30209 | K7: ='Owner-Operator Inputs'!N306 -> 65978.3323 | L7: ='Owner-Operator Inputs'!O306 -> 70766.89655
A8: Other Revenue | B8: 0 | C8: ='Owner-Operator Inputs'!F307 -> 6102.8 | D8: ='Owner-Operator Inputs'!G307 -> 6713.3 | E8: ='Owner-Operator Inputs'!H307 -> 7384.3 | F8: ='Owner-Operator Inputs'!I307 -> 8122.4 | G8: ='Owner-Operator Inputs'!J307 -> 8934.2 | H8: ='Owner-Operator Inputs'!K307 -> 9827.4 | I8: ='Owner-Operator Inputs'!L307 -> 10809.7 | J8: ='Owner-Operator Inputs'!M307 -> 11891 | K8: ='Owner-Operator Inputs'!N307 -> 13080.1 | L8: ='Owner-Operator Inputs'!O307 -> 14029.42529
A9: Total Revenues | B9: =SUM(B7:B8) -> 0 | C9: 36886.4 | D9: 40576.36972 | E9: 44632.01211 | F9: 49093.21875 | G9: 53999.88118 | H9: 59398.53958 | I9: 65335.7341 | J9: 71871.30209 | K9: 79058.4323 | L9: 84796.32184
A11: Expenses
A12: Operating Expenses
A13: Cost of Sales | B13: 0 | C13: ='Owner-Operator Inputs'!F310 -> 26685.2 | D13: ='Owner-Operator Inputs'!G310 -> 27739.90913 | E13: ='Owner-Operator Inputs'!H310 -> 28902.06116 | F13: ='Owner-Operator Inputs'!I310 -> 30183.62291 | G13: ='Owner-Operator Inputs'!J310 -> 31596.67693 | H13: ='Owner-Operator Inputs'!K310 -> 33155.29493 | I13: ='Owner-Operator Inputs'!L310 -> 34873.6845 | J13: ='Owner-Operator Inputs'!M310 -> 36769.95423 | K13: ='Owner-Operator Inputs'!N310 -> 38860.50102 | L13: ='Owner-Operator Inputs'!O310 -> 40549.05584
A14: Total Operating Expenses | B14: =SUM(B13:B13) -> 0 | C14: 26685.2 | D14: 27739.90913 | E14: 28902.06116 | F14: 30183.62291 | G14: 31596.67693 | H14: =SUM(H13:H13) -> 33155.29493 | I14: =SUM(I13:I13) -> 34873.6845 | J14: =SUM(J13:J13) -> 36769.95423 | K14: =SUM(K13:K13) -> 38860.50102 | L14: =SUM(L13:L13) -> 40549.05584
A16: Other Expenses
A17: SG&A (Overhead) | B17: 0 | C17: ='Owner-Operator Inputs'!F312 -> 1844.32 | D17: ='Owner-Operator Inputs'!G312 -> 2028.818486 | E17: ='Owner-Operator Inputs'!H312 -> 2231.600606 | F17: ='Owner-Operator Inputs'!I312 -> 2454.660937 | G17: ='Owner-Operator Inputs'!J312 -> 2699.994059 | H17: ='Owner-Operator Inputs'!K312 -> 2969.926979 | I17: ='Owner-Operator Inputs'!L312 -> 3266.786705 | J17: ='Owner-Operator Inputs'!M312 -> 3593.565105 | K17: ='Owner-Operator Inputs'!N312 -> 3952.921615 | L17: ='Owner-Operator Inputs'!O312 -> 4239.816092
A18: Depreciation | B18: 0 | C18: ='Owner-Operator Inputs'!F313 -> 9250 | D18: ='Owner-Operator Inputs'!G313 -> 9250 | E18: ='Owner-Operator Inputs'!H313 -> 9250 | F18: ='Owner-Operator Inputs'!I313 -> 9250 | G18: ='Owner-Operator Inputs'!J313 -> 9250 | H18: ='Owner-Operator Inputs'!K313 -> 9250 | I18: ='Owner-Operator Inputs'!L313 -> 9250 | J18: ='Owner-Operator Inputs'!M313 -> 9250 | K18: ='Owner-Operator Inputs'!N313 -> 9250 | L18: ='Owner-Operator Inputs'!O313 -> 9250
A19: Total Other Expenses | B19: =SUM(B17:B18) -> 0 | C19: 11094.32 | D19: 11278.81849 | E19: 11481.60061 | F19: 11704.66094 | G19: 11949.99406 | H19: =SUM(H17:H18) -> 12219.92698 | I19: =SUM(I17:I18) -> 12516.78671 | J19: =SUM(J17:J18) -> 12843.5651 | K19: =SUM(K17:K18) -> 13202.92161 | L19: =SUM(L17:L18) -> 13489.81609
A21: Total Expenses | B21: =B19+B14 -> 0 | C21: 37779.52 | D21: 39018.72762 | E21: 40383.66176 | F21: 41888.28385 | G21: 43546.67098 | H21: =H19+H14 -> 45375.22191 | I21: =I19+I14 -> 47390.47121 | J21: =J19+J14 -> 49613.51933 | K21: =K19+K14 -> 52063.42264 | L21: =L19+L14 -> 54038.87193
A23: Operating Income (EBIT) | B23: =B9-B21 -> 0 | C23: -893.12 | D23: 1557.642102 | E23: 4248.35035 | F23: 7204.934899 | G23: 10453.2102 | H23: =H9-H21 -> 14023.31768 | I23: =I9-I21 -> 17945.2629 | J23: =J9-J21 -> 22257.78276 | K23: =K9-K21 -> 26995.00966 | L23: =L9-L21 -> 30757.44991
A25: Interest Income | B25: 0 | C25: ='Owner-Operator Inputs'!F315 -> 0 | D25: ='Owner-Operator Inputs'!G315 -> 0 | E25: ='Owner-Operator Inputs'!H315 -> 0 | F25: ='Owner-Operator Inputs'!I315 -> 0 | G25: ='Owner-Operator Inputs'!J315 -> 0 | H25: ='Owner-Operator Inputs'!K315 -> 0 | I25: ='Owner-Operator Inputs'!L315 -> 0 | J25: ='Owner-Operator Inputs'!M315 -> 0 | K25: ='Owner-Operator Inputs'!N315 -> 0 | L25: ='Owner-Operator Inputs'!O315 -> 0
A26: Other Income, Net | B26: 0 | C26: =C$9*'Owner-Operator Inputs'!F316 -> 0 | D26: =D$9*'Owner-Operator Inputs'!G316 -> 0 | E26: =E$9*'Owner-Operator Inputs'!H316 -> 0 | F26: =F$9*'Owner-Operator Inputs'!I316 -> 0 | G26: =G$9*'Owner-Operator Inputs'!J316 -> 0 | H26: =H$9*'Owner-Operator Inputs'!K316 -> 0 | I26: =I$9*'Owner-Operator Inputs'!L316 -> 0 | J26: =J$9*'Owner-Operator Inputs'!M316 -> 0 | K26: =K$9*'Owner-Operator Inputs'!N316 -> 0 | L26: =L$9*'Owner-Operator Inputs'!O316 -> 0
A27: Other Special Charges | B27: 0 | C27: ='Owner-Operator Inputs'!F317 -> 0 | D27: ='Owner-Operator Inputs'!G317 -> 0 | E27: ='Owner-Operator Inputs'!H317 -> 0 | F27: ='Owner-Operator Inputs'!I317 -> 0 | G27: ='Owner-Operator Inputs'!J317 -> 0 | H27: ='Owner-Operator Inputs'!K317 -> 0 | I27: ='Owner-Operator Inputs'!L317 -> 0 | J27: ='Owner-Operator Inputs'!M317 -> 0 | K27: ='Owner-Operator Inputs'!N317 -> 0 | L27: ='Owner-Operator Inputs'!O317 -> 0
A28: Adjusted Operating Income (EBIT) | B28: =SUM(B23:B27) -> 0 | C28: -893.12 | D28: 1557.642102 | E28: 4248.35035 | F28: 7204.934899 | G28: 10453.2102 | H28: =SUM(H23:H27) -> 14023.31768 | I28: =SUM(I23:I27) -> 17945.2629 | J28: =SUM(J23:J27) -> 22257.78276 | K28: =SUM(K23:K27) -> 26995.00966 | L28: =SUM(L23:L27) -> 30757.44991
A30: Interest Expense | B30: 0 | C30: ='Debt Schedule'!D16+(-'Owner-Operator Inputs'!F320*('Balance Sheet'!C25)) -> -4664.195539 | D30: ='Debt Schedule'!E16+(-'Owner-Operator Inputs'!G320*('Balance Sheet'!D25)) -> -4350.198394 | E30: ='Debt Schedule'!F16+(-'Owner-Operator Inputs'!H320*('Balance Sheet'!E25)) -> -4011.171544 | F30: ='Debt Schedule'!G16+(-'Owner-Operator Inputs'!I320*('Balance Sheet'!F25)) -> -3645.126209 | G30: ='Debt Schedule'!H16+(-'Owner-Operator Inputs'!J320*('Balance Sheet'!G25)) -> -3249.910425 | H30: ='Debt Schedule'!I16+(-'Owner-Operator Inputs'!K320*('Balance Sheet'!H25)) -> -2823.204492 | I30: ='Debt Schedule'!J16+(-'Owner-Operator Inputs'!L320*('Balance Sheet'!I25)) -> -2362.498375 | J30: ='Debt Schedule'!K16+(-'Owner-Operator Inputs'!M320*('Balance Sheet'!J25)) -> -1865.093472 | K30: ='Debt Schedule'!L16+(-'Owner-Operator Inputs'!N320*('Balance Sheet'!K25)) -> -1328.060676 | L30: ='Debt Schedule'!M16+(-'Owner-Operator Inputs'!O320*('Balance Sheet'!L25)) -> -745.4783143
A31: Income Before Taxes (EBT) | B31: =SUM(B28:B30) -> 0 | C31: -5557.315539 | D31: -2792.556292 | E31: 237.1788056 | F31: 3559.80869 | G31: 7203.299773 | H31: =SUM(H28:H30) -> 11200.11318 | I31: =SUM(I28:I30) -> 15582.76452 | J31: =SUM(J28:J30) -> 20392.68929 | K31: =SUM(K28:K30) -> 25666.94899 | L31: =SUM(L28:L30) -> 30011.9716
A33: Income Taxes | B33: 0 | C33: =-C31*'Owner-Operator Inputs'!F322 -> 1756.141007 | D33: =-D31*'Owner-Operator Inputs'!G322 -> 882.4625096 | E33: =-E31*'Owner-Operator Inputs'!H322 -> -74.9497529 | F33: =-F31*'Owner-Operator Inputs'!I322 -> -1124.918312 | G33: =-G31*'Owner-Operator Inputs'!J322 -> -2276.280701 | H33: =-H31*'Owner-Operator Inputs'!K322 -> -3539.294809 | I33: =-I31*'Owner-Operator Inputs'!L322 -> -4924.235735 | J33: =-J31*'Owner-Operator Inputs'!M322 -> -6444.197318 | K33: =-K31*'Owner-Operator Inputs'!N322 -> -8110.891187 | L33: =-L31*'Owner-Operator Inputs'!O322 -> -9483.941237
A34: Net Income | B34: =SUM(B31:B33) -> 0 | C34: -3801.174533 | D34: -1910.093782 | E34: 162.2290527 | F34: 2434.890378 | G34: 4927.019072 | H34: =SUM(H31:H33) -> 7660.818375 | I34: =SUM(I31:I33) -> 10658.52879 | J34: =SUM(J31:J33) -> 13948.49197 | K34: =SUM(K31:K33) -> 17556.0578 | L34: =SUM(L31:L33) -> 20528.03036

Sheet Balance Sheet
A1: ='Initial Settings'!B5 -> Corridor and Community DC Fast Charging Complex (Urban Site)
A3: Consolidated Balance Sheet [$]
A5: Assets | B5: =+'Initial Settings'!$B$6 -> 2017 | C5: =+'Owner-Operator Inputs'!F304 -> 2018 | D5: =+'Owner-Operator Inputs'!G304 -> 2019 | E5: =+'Owner-Operator Inputs'!H304 -> 2020 | F5: =+'Owner-Operator Inputs'!I304 -> 2021 | G5: =+'Owner-Operator Inputs'!J304 -> 2022 | H5: =+'Owner-Operator Inputs'!K304 -> 2023 | I5: =+'Owner-Operator Inputs'!L304 -> 2024 | J5: =+'Owner-Operator Inputs'!M304 -> 2025 | K5: =+'Owner-Operator Inputs'!N304 -> 2026 | L5: =+'Owner-Operator Inputs'!O304 -> 2027
A6: Current assets
A7: Cash and Equivalents | B7: ='Owner-Operator Inputs'!E280 -> 3688.64 | C7: ='Cash Flow Statements'!F28 -> 8842.193885 | D7: ='Cash Flow Statements'!G28 -> 12248.47256 | E7: ='Cash Flow Statements'!H28 -> 17419.43139 | F7: ='Cash Flow Statements'!I28 -> 24531.8612 | G7: ='Cash Flow Statements'!J28 -> 33779.47879 | H7: ='Cash Flow Statements'!K28 -> 45376.48986 | I7: ='Cash Flow Statements'!L28 -> 59556.7711 | J7: ='Cash Flow Statements'!M28 -> 76581.09552 | K7: ='Cash Flow Statements'!N28 -> 96731.92404 | L7: ='Cash Flow Statements'!O28 -> 119119.8857
A8: Accounts Receivable | C8: ='Owner-Operator Inputs'!F332*'Income Statement'!C$9 -> 1844.32 | D8: ='Owner-Operator Inputs'!G332*'Income Statement'!D$9 -> 2028.818486 | E8: ='Owner-Operator Inputs'!H332*'Income Statement'!E$9 -> 2231.600606 | F8: ='Owner-Operator Inputs'!I332*'Income Statement'!F$9 -> 2454.660937 | G8: ='Owner-Operator Inputs'!J332*'Income Statement'!G$9 -> 2699.994059 | H8: ='Owner-Operator Inputs'!K332*'Income Statement'!H$9 -> 2969.926979 | I8: ='Owner-Operator Inputs'!L332*'Income Statement'!I$9 -> 3266.786705 | J8: ='Owner-Operator Inputs'!M332*'Income Statement'!J$9 -> 3593.565105 | K8: ='Owner-Operator Inputs'!N332*'Income Statement'!K$9 -> 3952.921615 | L8: ='Owner-Operator Inputs'!O332*'Income Statement'!L$9 -> 4239.816092
A9: Other Receivable | C9: ='Owner-Operator Inputs'!F333*'Income Statement'!C$9 -> 0 | D9: ='Owner-Operator Inputs'!G333*'Income Statement'!D$9 -> 0 | E9: ='Owner-Operator Inputs'!H333*'Income Statement'!E$9 -> 0 | F9: ='Owner-Operator Inputs'!I333*'Income Statement'!F$9 -> 0 | G9: ='Owner-Operator Inputs'!J333*'Income Statement'!G$9 -> 0 | H9: ='Owner-Operator Inputs'!K333*'Income Statement'!H$9 -> 0 | I9: ='Owner-Operator Inputs'!L333*'Income Statement'!I$9 -> 0 | J9: ='Owner-Operator Inputs'!M333*'Income Statement'!J$9 -> 0 | K9: ='Owner-Operator Inputs'!N333*'Income Statement'!K$9 -> 0 | L9: ='Owner-Operator Inputs'!O333*'Income Statement'!L$9 -> 0
A10: Prepaid Expenses | C10: ='Owner-Operator Inputs'!F334*'Income Statement'!C$9 -> 0 | D10: ='Owner-Operator Inputs'!G334*'Income Statement'!D$9 -> 0 | E10: ='Owner-Operator Inputs'!H334*'Income Statement'!E$9 -> 0 | F10: ='Owner-Operator Inputs'!I334*'Income Statement'!F$9 -> 0 | G10: ='Owner-Operator Inputs'!J334*'Income Statement'!G$9 -> 0 | H10: ='Owner-Operator Inputs'!K334*'Income Statement'!H$9 -> 0 | I10: ='Owner-Operator Inputs'!L334*'Income Statement'!I$9 -> 0 | J10: ='Owner-Operator Inputs'!M334*'Income Statement'!J$9 -> 0 | K10: ='Owner-Operator Inputs'!N334*'Income Statement'!K$9 -> 0 | L10: ='Owner-Operator Inputs'!O334*'Income Statement'!L$9 -> 0
A11: Total current assets | B11: =SUM(B7:B10) -> 3688.64 | C11: 10686.51388 | D11: 14277.29105 | E11: 19651.03199 | F11: 26986.52214 | G11: 36479.47285 | H11: =SUM(H7:H10) -> 48346.41684 | I11: =SUM(I7:I10) -> 62823.55781 | J11: =SUM(J7:J10) -> 80174.66062 | K11: =SUM(K7:K10) -> 100684.8457 | L11: =SUM(L7:L10) -> 123359.7018
A13: Non-Current Assets
A14: Gross Fixed Assets (Plant, Prop. & Equip.) | B14: ='Owner-Operator Inputs'!E337 -> 92500 | C14: ='Owner-Operator Inputs'!F337 -> 92500 | D14: ='Owner-Operator Inputs'!G337 -> 92500 | E14: ='Owner-Operator Inputs'!H337 -> 92500 | F14: ='Owner-Operator Inputs'!I337 -> 92500 | G14: ='Owner-Operator Inputs'!J337 -> 92500 | H14: ='Owner-Operator Inputs'!K337 -> 92500 | I14: ='Owner-Operator Inputs'!L337 -> 92500 | J14: ='Owner-Operator Inputs'!M337 -> 92500 | K14: ='Owner-Operator Inputs'!N337 -> 92500 | L14: ='Owner-Operator Inputs'!O337 -> 92500
A15: Accumulated Depreciation & Depletion | C15: ='Owner-Operator Inputs'!F338 -> -9250 | D15: ='Owner-Operator Inputs'!G338 -> -18500 | E15: ='Owner-Operator Inputs'!H338 -> -27750 | F15: ='Owner-Operator Inputs'!I338 -> -37000 | G15: ='Owner-Operator Inputs'!J338 -> -46250 | H15: ='Owner-Operator Inputs'!K338 -> -55500 | I15: ='Owner-Operator Inputs'!L338 -> -64750 | J15: ='Owner-Operator Inputs'!M338 -> -74000 | K15: ='Owner-Operator Inputs'!N338 -> -83250 | L15: ='Owner-Operator Inputs'!O338 -> -92500
A16: Intangibles (Goodwill) | C16: ='Owner-Operator Inputs'!F339*'Income Statement'!C$9 -> 0 | D16: ='Owner-Operator Inputs'!G339*'Income Statement'!D$9 -> 0 | E16: ='Owner-Operator Inputs'!H339*'Income Statement'!E$9 -> 0 | F16: ='Owner-Operator Inputs'!I339*'Income Statement'!F$9 -> 0 | G16: ='Owner-Operator Inputs'!J339*'Income Statement'!G$9 -> 0 | H16: ='Owner-Operator Inputs'!K339*'Income Statement'!H$9 -> 0 | I16: ='Owner-Operator Inputs'!L339*'Income Statement'!I$9 -> 0 | J16: ='Owner-Operator Inputs'!M339*'Income Statement'!J$9 -> 0 | K16: ='Owner-Operator Inputs'!N339*'Income Statement'!K$9 -> 0 | L16: ='Owner-Operator Inputs'!O339*'Income Statement'!L$9 -> 0
A17: Other Non-Current Assets | C17: ='Owner-Operator Inputs'!F340*'Income Statement'!C$9 -> 0 | D17: ='Owner-Operator Inputs'!G340*'Income Statement'!D$9 -> 0 | E17: ='Owner-Operator Inputs'!H340*'Income Statement'!E$9 -> 0 | F17: ='Owner-Operator Inputs'!I340*'Income Statement'!F$9 -> 0 | G17: ='Owner-Operator Inputs'!J340*'Income Statement'!G$9 -> 0 | H17: ='Owner-Operator Inputs'!K340*'Income Statement'!H$9 -> 0 | I17: ='Owner-Operator Inputs'!L340*'Income Statement'!I$9 -> 0 | J17: ='Owner-Operator Inputs'!M340*'Income Statement'!J$9 -> 0 | K17: ='Owner-Operator Inputs'!N340*'Income Statement'!K$9 -> 0 | L17: ='Owner-Operator Inputs'!O340*'Income Statement'!L$9 -> 0
A18: Total Non-Current Assets | B18: =SUM(B14:B17) -> 92500 | C18: 83250 | D18: 74000 | E18: 64750 | F18: 55500 | G18: 46250 | H18: =SUM(H14:H17) -> 37000 | I18: =SUM(I14:I17) -> 27750 | J18: =SUM(J14:J17) -> 18500 | K18: =SUM(K14:K17) -> 9250 | L18: =SUM(L14:L17) -> 0
A20: Total assets | B20: =B11+B18 -> 96188.64 | C20: 93936.51388 | D20: 88277.29105 | E20: 84401.03199 | F20: 82486.52214 | G20: 82729.47285 | H20: =H11+H18 -> 85346.41684 | I20: =I11+I18 -> 90573.55781 | J20: =J11+J18 -> 98674.66062 | K20: =K11+K18 -> 109934.8457 | L20: =L11+L18 -> 123359.7018
A22: Liabilities and stockholders' equity
A23: Current liabilities:
A24: Accounts Payable | C24: ='Owner-Operator Inputs'!F344*'Income Statement'!C$9 -> 4426.368 | D24: ='Owner-Operator Inputs'!G344*'Income Statement'!D$9 -> 4869.164366 | E24: ='Owner-Operator Inputs'!H344*'Income Statement'!E$9 -> 5355.841453 | F24: ='Owner-Operator Inputs'!I344*'Income Statement'!F$9 -> 5891.186249 | G24: ='Owner-Operator Inputs'!J344*'Income Statement'!G$9 -> 6479.985742 | H24: ='Owner-Operator Inputs'!K344*'Income Statement'!H$9 -> 7127.82475 | I24: ='Owner-Operator Inputs'!L344*'Income Statement'!I$9 -> 7840.288092 | J24: ='Owner-Operator Inputs'!M344*'Income Statement'!J$9 -> 8624.556251 | K24: ='Owner-Operator Inputs'!N344*'Income Statement'!K$9 -> 9487.011876 | L24: ='Owner-Operator Inputs'!O344*'Income Statement'!L$9 -> 10175.55862
A25: Revolving Line of Credit | C25: ='Owner-Operator Inputs'!F345*'Income Statement'!C$9 -> 1106.592 | D25: ='Owner-Operator Inputs'!G345*'Income Statement'!D$9 -> 1217.291092 | E25: ='Owner-Operator Inputs'!H345*'Income Statement'!E$9 -> 1338.960363 | F25: ='Owner-Operator Inputs'!I345*'Income Statement'!F$9 -> 1472.796562 | G25: ='Owner-Operator Inputs'!J345*'Income Statement'!G$9 -> 1619.996435 | H25: ='Owner-Operator Inputs'!K345*'Income Statement'!H$9 -> 1781.956187 | I25: ='Owner-Operator Inputs'!L345*'Income Statement'!I$9 -> 1960.072023 | J25: ='Owner-Operator Inputs'!M345*'Income Statement'!J$9 -> 2156.139063 | K25: ='Owner-Operator Inputs'!N345*'Income Statement'!K$9 -> 2371.752969 | L25: ='Owner-Operator Inputs'!O345*'Income Statement'!L$9 -> 2543.889655
A26: Current Portion of Long Term Debt | B26: ='Owner-Operator Inputs'!E346 -> 3983.911583 | C26: ='Owner-Operator Inputs'!F346 -> 4302.624509 | D26: ='Owner-Operator Inputs'!G346 -> 4646.83447 | E26: ='Owner-Operator Inputs'!H346 -> 5018.581228 | F26: ='Owner-Operator Inputs'!I346 -> 5420.067726 | G26: ='Owner-Operator Inputs'!J346 -> 5853.673144 | H26: ='Owner-Operator Inputs'!K346 -> 6321.966995 | I26: ='Owner-Operator Inputs'!L346 -> 6827.724355 | J26: ='Owner-Operator Inputs'!M346 -> 7373.942303 | K26: ='Owner-Operator Inputs'!N346 -> 7963.857688 | L26: ='Owner-Operator Inputs'!O346 -> 0
A27: Total current liabilities | B27: =SUM(B24:B26) -> 3983.911583 | C27: 9835.584509 | D27: 10733.28993 | E27: 11713.38304 | F27: 12784.05054 | G27: 13953.65532 | H27: =SUM(H24:H26) -> 15231.74793 | I27: =SUM(I24:I26) -> 16628.08447 | J27: =SUM(J24:J26) -> 18154.63762 | K27: =SUM(K24:K26) -> 19822.62253 | L27: =SUM(L24:L26) -> 12719.44828
A29: Non-Current Liabilities
A30: Long Term Debt, Net Current Portion | B30: ='Owner-Operator Inputs'!E349 -> 53729.27242 | C30: ='Owner-Operator Inputs'!F349 -> 49426.64791 | D30: ='Owner-Operator Inputs'!G349 -> 44779.81344 | E30: ='Owner-Operator Inputs'!H349 -> 39761.23221 | F30: ='Owner-Operator Inputs'!I349 -> 34341.16448 | G30: ='Owner-Operator Inputs'!J349 -> 28487.49134 | H30: ='Owner-Operator Inputs'!K349 -> 22165.52435 | I30: ='Owner-Operator Inputs'!L349 -> 15337.79999 | J30: ='Owner-Operator Inputs'!M349 -> 7963.857688 | K30: ='Owner-Operator Inputs'!N349 -> 0 | L30: ='Owner-Operator Inputs'!O349 -> 0
A31: Total Non-Current Liabilities | B31: =SUM(B30:B30) -> 53729.27242 | C31: 49426.64791 | D31: 44779.81344 | E31: 39761.23221 | F31: 34341.16448 | G31: 28487.49134 | H31: =SUM(H30:H30) -> 22165.52435 | I31: =SUM(I30:I30) -> 15337.79999 | J31: =SUM(J30:J30) -> 7963.857688 | K31: =SUM(K30:K30) -> 0 | L31: =SUM(L30:L30) -> 0
A33: Total Liabilities | B33: =B31+B27 -> 57713.184 | C33: 59262.23242 | D33: 55513.10337 | E33: 51474.61526 | F33: 47125.21502 | G33: 42441.14666 | H33: =H31+H27 -> 37397.27228 | I33: =I31+I27 -> 31965.88446 | J33: =J31+J27 -> 26118.4953 | K33: =K31+K27 -> 19822.62253 | L33: =L31+L27 -> 12719.44828
A36: Total stockholders' equity | B36: ='Owner-Operator Inputs'!F283 -> 38475.456 | C36: =B36+'Cash Flow Statements'!F7 -> 34674.28147 | D36: =C36+'Cash Flow Statements'!G7 -> 32764.18768 | E36: =D36+'Cash Flow Statements'!H7 -> 32926.41674 | F36: =E36+'Cash Flow Statements'!I7 -> 35361.30712 | G36: =F36+'Cash Flow Statements'!J7 -> 40288.32619 | H36: =G36+'Cash Flow Statements'!K7 -> 47949.14456 | I36: =H36+'Cash Flow Statements'!L7 -> 58607.67335 | J36: =I36+'Cash Flow Statements'!M7 -> 72556.16532 | K36: =J36+'Cash Flow Statements'!N7 -> 90112.22312 | L36: =K36+'Cash Flow Statements'!O7 -> 110640.2535
A38: Total liabilities and stockholders' equity | B38: =B33+B36 -> 96188.64 | C38: 93936.51388 | D38: 88277.29105 | E38: 84401.03199 | F38: 82486.52214 | G38: 82729.47285 | H38: =H33+H36 -> 85346.41684 | I38: =I33+I36 -> 90573.55781 | J38: =J33+J36 -> 98674.66062 | K38: =K33+K36 -> 109934.8457 | L38: =L33+L36 -> 123359.7018
A39: Unreconciled Difference | B39: =B20-B38 -> 0 | C39: 0 | D39: 0 | E39: 0 | F39: 0 | G39: 0 | H39: =H20-H38 -> 0 | I39: =I20-I38 -> 0 | J39: =J20-J38 -> 0 | K39: =K20-K38 -> 0 | L39: =L20-L38 -> 0

Sheet Cash Flow Statements
A1: ='Initial Settings'!$B$5 -> Corridor and Community DC Fast Charging Complex (Urban Site)
A3: Consolidated Statement of Cash Flows [$]
F5: ='Owner-Operator Inputs'!F304 -> 2018 | G5: ='Owner-Operator Inputs'!G304 -> 2019 | H5: ='Owner-Operator Inputs'!H304 -> 2020 | I5: ='Owner-Operator Inputs'!I304 -> 2021 | J5: ='Owner-Operator Inputs'!J304 -> 2022 | K5: ='Owner-Operator Inputs'!K304 -> 2023 | L5: ='Owner-Operator Inputs'!L304 -> 2024 | M5: ='Owner-Operator Inputs'!M304 -> 2025 | N5: ='Owner-Operator Inputs'!N304 -> 2026 | O5: ='Owner-Operator Inputs'!O304 -> 2027
A6: Cash Flow from Operations
A7: Net Income (Loss) | F7: ='Income Statement'!C34 -> -3801.174533 | G7: ='Income Statement'!D34 -> -1910.093782 | H7: ='Income Statement'!E34 -> 162.2290527 | I7: ='Income Statement'!F34 -> 2434.890378 | J7: ='Income Statement'!G34 -> 4927.019072 | K7: ='Income Statement'!H34 -> 7660.818375 | L7: ='Income Statement'!I34 -> 10658.52879 | M7: ='Income Statement'!J34 -> 13948.49197 | N7: ='Income Statement'!K34 -> 17556.0578 | O7: ='Income Statement'!L34 -> 20528.03036
A8: Depreciation | F8: ='Income Statement'!C18 -> 9250 | G8: ='Income Statement'!D18 -> 9250 | H8: ='Income Statement'!E18 -> 9250 | I8: ='Income Statement'!F18 -> 9250 | J8: ='Income Statement'!G18 -> 9250 | K8: ='Income Statement'!H18 -> 9250 | L8: ='Income Statement'!I18 -> 9250 | M8: ='Income Statement'!J18 -> 9250 | N8: ='Income Statement'!K18 -> 9250 | O8: ='Income Statement'!L18 -> 9250
A9: (Increase) Decrease in Accounts Receivable | F9: ='Balance Sheet'!B8-'Balance Sheet'!C8 -> -1844.32 | G9: ='Balance Sheet'!C8-'Balance Sheet'!D8 -> -184.4984859 | H9: ='Balance Sheet'!D8-'Balance Sheet'!E8 -> -202.7821197 | I9: ='Balance Sheet'!E8-'Balance Sheet'!F8 -> -223.0603317 | J9: ='Balance Sheet'!F8-'Balance Sheet'!G8 -> -245.3331218 | K9: ='Balance Sheet'!G8-'Balance Sheet'!H8 -> -269.93292 | L9: ='Balance Sheet'!H8-'Balance Sheet'!I8 -> -296.859726 | M9: ='Balance Sheet'!I8-'Balance Sheet'!J8 -> -326.7783994 | N9: ='Balance Sheet'!J8-'Balance Sheet'!K8 -> -359.3565105 | O9: ='Balance Sheet'!K8-'Balance Sheet'!L8 -> -286.894477
A10: (Increase) Decrease in Other Receivable | F10: ='Balance Sheet'!B9-'Balance Sheet'!C9 -> 0 | G10: ='Balance Sheet'!C9-'Balance Sheet'!D9 -> 0 | H10: ='Balance Sheet'!D9-'Balance Sheet'!E9 -> 0 | I10: ='Balance Sheet'!E9-'Balance Sheet'!F9 -> 0 | J10: ='Balance Sheet'!F9-'Balance Sheet'!G9 -> 0 | K10: ='Balance Sheet'!G9-'Balance Sheet'!H9 -> 0 | L10: ='Balance Sheet'!H9-'Balance Sheet'!I9 -> 0 | M10: ='Balance Sheet'!I9-'Balance Sheet'!J9 -> 0 | N10: ='Balance Sheet'!J9-'Balance Sheet'!K9 -> 0 | O10: ='Balance Sheet'!K9-'Balance Sheet'!L9 -> 0
A11: (Increase) Decrease in Prepaid Expenses | F11: ='Balance Sheet'!B10-'Balance Sheet'!C10 -> 0 | G11: ='Balance Sheet'!C10-'Balance Sheet'!D10 -> 0 | H11: ='Balance Sheet'!D10-'Balance Sheet'!E10 -> 0 | I11: ='Balance Sheet'!E10-'Balance Sheet'!F10 -> 0 | J11: ='Balance Sheet'!F10-'Balance Sheet'!G10 -> 0 | K11: ='Balance Sheet'!G10-'Balance Sheet'!H10 -> 0 | L11: ='Balance Sheet'!H10-'Balance Sheet'!I10 -> 0 | M11: ='Balance Sheet'!I10-'Balance Sheet'!J10 -> 0 | N11: ='Balance Sheet'!J10-'Balance Sheet'!K10 -> 0 | O11: ='Balance Sheet'!K10-'Balance Sheet'!L10 -> 0
A12: (Increase) Decrease in Intangibles | F12: ='Balance Sheet'!B16-'Balance Sheet'!C16 -> 0 | G12: ='Balance Sheet'!C16-'Balance Sheet'!D16 -> 0 | H12: ='Balance Sheet'!D16-'Balance Sheet'!E16 -> 0 | I12: ='Balance Sheet'!E16-'Balance Sheet'!F16 -> 0 | J12: ='Balance Sheet'!F16-'Balance Sheet'!G16 -> 0 | K12: ='Balance Sheet'!G16-'Balance Sheet'!H16 -> 0 | L12: ='Balance Sheet'!H16-'Balance Sheet'!I16 -> 0 | M12: ='Balance Sheet'!I16-'Balance Sheet'!J16 -> 0 | N12: ='Balance Sheet'!J16-'Balance Sheet'!K16 -> 0 | O12: ='Balance Sheet'!K16-'Balance Sheet'!L16 -> 0
A13: (Increase) Decrease in Other Non-Current Assets | F13: ='Balance Sheet'!B17-'Balance Sheet'!C17 -> 0 | G13: ='Balance Sheet'!C17-'Balance Sheet'!D17 -> 0 | H13: ='Balance Sheet'!D17-'Balance Sheet'!E17 -> 0 | I13: ='Balance Sheet'!E17-'Balance Sheet'!F17 -> 0 | J13: ='Balance Sheet'!F17-'Balance Sheet'!G17 -> 0 | K13: ='Balance Sheet'!G17-'Balance Sheet'!H17 -> 0 | L13: ='Balance Sheet'!H17-'Balance Sheet'!I17 -> 0 | M13: ='Balance Sheet'!I17-'Balance Sheet'!J17 -> 0 | N13: ='Balance Sheet'!J17-'Balance Sheet'!K17 -> 0 | O13: ='Balance Sheet'!K17-'Balance Sheet'!L17 -> 0
A14: (Decrease) Increase in Accounts Payable | F14: ='Balance Sheet'!C24-'Balance Sheet'!B24 -> 4426.368 | G14: ='Balance Sheet'!D24-'Balance Sheet'!C24 -> 442.7963663 | H14: ='Balance Sheet'!E24-'Balance Sheet'!D24 -> 486.6770872 | I14: ='Balance Sheet'!F24-'Balance Sheet'!E24 -> 535.344796 | J14: ='Balance Sheet'!G24-'Balance Sheet'!F24 -> 588.7994924 | K14: ='Balance Sheet'!H24-'Balance Sheet'!G24 -> 647.8390079 | L14: ='Balance Sheet'!I24-'Balance Sheet'!H24 -> 712.4633425 | M14: ='Balance Sheet'!J24-'Balance Sheet'!I24 -> 784.2681586 | N14: ='Balance Sheet'!K24-'Balance Sheet'!J24 -> 862.4556251 | O14: ='Balance Sheet'!L24-'Balance Sheet'!K24 -> 688.5467447
A15: Total | F15: =SUM(F7:F14) -> 8030.873467 | G15: 7598.204098 | H15: 9696.12402 | I15: 11997.17484 | J15: 14520.48544 | K15: 17288.72446 | L15: 20324.1324 | M15: 23655.98173 | N15: 27309.15692 | O15: 30179.68263
A17: Cash Flow from Investing
A18: CAPEX | F18: =-((SUM('Balance Sheet'!C14:C15)-SUM('Balance Sheet'!B14:B15))+'Income Statement'!C18) -> 0 | G18: =-((SUM('Balance Sheet'!D14:D15)-SUM('Balance Sheet'!C14:C15))+'Income Statement'!D18) -> 0 | H18: =-((SUM('Balance Sheet'!E14:E15)-SUM('Balance Sheet'!D14:D15))+'Income Statement'!E18) -> 0 | I18: =-((SUM('Balance Sheet'!F14:F15)-SUM('Balance Sheet'!E14:E15))+'Income Statement'!F18) -> 0 | J18: =-((SUM('Balance Sheet'!G14:G15)-SUM('Balance Sheet'!F14:F15))+'Income Statement'!G18) -> 0 | K18: =-((SUM('Balance Sheet'!H14:H15)-SUM('Balance Sheet'!G14:G15))+'Income Statement'!H18) -> 0 | L18: =-((SUM('Balance Sheet'!I14:I15)-SUM('Balance Sheet'!H14:H15))+'Income Statement'!I18) -> 0 | M18: =-((SUM('Balance Sheet'!J14:J15)-SUM('Balance Sheet'!I14:I15))+'Income Statement'!J18) -> 0 | N18: =-((SUM('Balance Sheet'!K14:K15)-SUM('Balance Sheet'!J14:J15))+'Income Statement'!K18) -> 0 | O18: =-((SUM('Balance Sheet'!L14:L15)-SUM('Balance Sheet'!K14:K15))+'Income Statement'!L18) -> 0
A19: Total | F19: =SUM(F18:F18) -> 0 | G19: 0 | H19: 0 | I19: 0 | J19: 0 | K19: 0 | L19: 0 | M19: 0 | N19: 0 | O19: 0
A21: Cash Flow from Financing
A22: Revolving Line of Credit | F22: ='Balance Sheet'!C25-'Balance Sheet'!B25 -> 1106.592 | G22: ='Balance Sheet'!D25-'Balance Sheet'!C25 -> 110.6990916 | H22: ='Balance Sheet'!E25-'Balance Sheet'!D25 -> 121.6692718 | I22: ='Balance Sheet'!F25-'Balance Sheet'!E25 -> 133.836199 | J22: ='Balance Sheet'!G25-'Balance Sheet'!F25 -> 147.1998731 | K22: ='Balance Sheet'!H25-'Balance Sheet'!G25 -> 161.959752 | L22: ='Balance Sheet'!I25-'Balance Sheet'!H25 -> 178.1158356 | M22: ='Balance Sheet'!J25-'Balance Sheet'!I25 -> 196.0670397 | N22: ='Balance Sheet'!K25-'Balance Sheet'!J25 -> 215.6139063 | O22: ='Balance Sheet'!L25-'Balance Sheet'!K25 -> 172.1366862
A23: Long Term Debt | F23: =('Balance Sheet'!C30-'Balance Sheet'!B30)+('Balance Sheet'!C26-'Balance Sheet'!B26) -> -3983.911583 | G23: =('Balance Sheet'!D30-'Balance Sheet'!C30)+('Balance Sheet'!D26-'Balance Sheet'!C26) -> -4302.624509 | H23: =('Balance Sheet'!E30-'Balance Sheet'!D30)+('Balance Sheet'!E26-'Balance Sheet'!D26) -> -4646.83447 | I23: =('Balance Sheet'!F30-'Balance Sheet'!E30)+('Balance Sheet'!F26-'Balance Sheet'!E26) -> -5018.581228 | J23: =('Balance Sheet'!G30-'Balance Sheet'!F30)+('Balance Sheet'!G26-'Balance Sheet'!F26) -> -5420.067726 | K23: =('Balance Sheet'!H30-'Balance Sheet'!G30)+('Balance Sheet'!H26-'Balance Sheet'!G26) -> -5853.673144 | L23: =('Balance Sheet'!I30-'Balance Sheet'!H30)+('Balance Sheet'!I26-'Balance Sheet'!H26) -> -6321.966995 | M23: =('Balance Sheet'!J30-'Balance Sheet'!I30)+('Balance Sheet'!J26-'Balance Sheet'!I26) -> -6827.724355 | N23: =('Balance Sheet'!K30-'Balance Sheet'!J30)+('Balance Sheet'!K26-'Balance Sheet'!J26) -> -7373.942303 | O23: =('Balance Sheet'!L30-'Balance Sheet'!K30)+('Balance Sheet'!L26-'Balance Sheet'!K26) -> -7963.857688
A24: Total | F24: =SUM(F22:F23) -> -2877.319583 | G24: -4191.925418 | H24: -4525.165198 | I24: -4884.745029 | J24: -5272.867853 | K24: -5691.713392 | L24: -6143.85116 | M24: -6631.657315 | N24: -7158.328397 | O24: -7791.721001
A26: Net Change in Cash | F26: =F15+F19+F24 -> 5153.553885 | G26: 3406.27868 | H26: 5170.958822 | I26: 7112.429814 | J26: 9247.61759 | K26: 11597.01107 | L26: 14180.28124 | M26: 17024.32441 | N26: 20150.82852 | O26: 22387.96163
A27: Cash at Beginning of Year | F27: ='Balance Sheet'!B7 -> 3688.64 | G27: ='Balance Sheet'!C7 -> 8842.193885 | H27: ='Balance Sheet'!D7 -> 12248.47256 | I27: ='Balance Sheet'!E7 -> 17419.43139 | J27: ='Balance Sheet'!F7 -> 24531.8612 | K27: ='Balance Sheet'!G7 -> 33779.47879 | L27: ='Balance Sheet'!H7 -> 45376.48986 | M27: ='Balance Sheet'!I7 -> 59556.7711 | N27: ='Balance Sheet'!J7 -> 76581.09552 | O27: ='Balance Sheet'!K7 -> 96731.92404
A28: Cash at End of Year | F28: =F26+F27 -> 8842.193885 | G28: 12248.47256 | H28: 17419.43139 | I28: 24531.8612 | J28: 33779.47879 | K28: 45376.48986 | L28: 59556.7711 | M28: 76581.09552 | N28: 96731.92404 | O28: 119119.8857
A29: Cash Per Balance Sheet | F29: ='Balance Sheet'!C7 -> 8842.193885 | G29: ='Balance Sheet'!D7 -> 12248.47256 | H29: ='Balance Sheet'!E7 -> 17419.43139 | I29: ='Balance Sheet'!F7 -> 24531.8612 | J29: ='Balance Sheet'!G7 -> 33779.47879 | K29: ='Balance Sheet'!H7 -> 45376.48986 | L29: ='Balance Sheet'!I7 -> 59556.7711 | M29: ='Balance Sheet'!J7 -> 76581.09552 | N29: ='Balance Sheet'!K7 -> 96731.92404 | O29: ='Balance Sheet'!L7 -> 119119.8857
A30: Unreconciled Difference | F30: =F29-F28 -> 0 | G30: 0 | H30: 0 | I30: 0 | J30: 0 | K30: 0 | L30: 0 | M30: 0 | N30: 0 | O30: 0

Sheet Version
A1: Version | B1: Date | C1: Author | D1: Organization | E1: Revisions
A2: 1 | B2: 2015-11-01 | C2: Philip Quebe | D2: The Cadmus Group, Inc. | E2: First launch
A3: 1.1 | B3: 2015-11-01 | C3: Philip Quebe | D3: The Cadmus Group, Inc. | E3: Added cumulative NPV and new discounted payback calculations (removed old average payback based on IRR) Fixed #N/As on sensitivity charts Added other contributions to outputs tab
A4: 1.5 | B4: 2015-11-01 | C4: Philip Quebe | D4: The Cadmus Group, Inc. | E4: Streamlined the sensitivity analysis. Put the tables on a separate tab. Redid table formats Rewired the sensitivity analysis so that it pulls inputs from the input tabs, not the other way around. Major overhaul to more accurately reflect equipment lives other than 10 years. Examples: - Owner-operator income streams now stop if equipment depreciates faster than 10 years - Terminal value function has been redone to consider equipment value if there is remaining equipment life at the end of the 10-year DCF Consolidated some variables like equipment life, revenue per hour, etc. so that one variable feeds into all three station types. This removes some granularity of control, but makes sensitivity analysis easier. Reversed the flow of the equation on the “Private Sector” tabs to derive revenue from NPV value instead of an NPV value from revenue (as requested by C2ES) Moved sensitivity charts off output tab. Added additional charts.
A5: 1.6 | B5: 2015-11-01 | C5: Philip Quebe | D5: The Cadmus Group, Inc. | E5: Revised revenue sharing formulas Add capped (semi-subordinated) public equity option (functions like a loan that is repaid only if funds are available) Add blended discount rate for the project
A6: 1.7 | B6: 2015-11-01 | C6: Nick Nigro | D6: Center for Climate and Energy Solutions | E6: Add ability to import/export all user inputs. Named each user input cell. Change private sector partner summary for charging equipment (allow for individual subsidies by station type). Added "Report" tab
A7: 1.8 | B7: 2015-11-01 | C7: Philip Quebe | D7: The Cadmus Group, Inc. | E7: Added final formatting, spell check, consistent title, label, and unit formats Digitally signed macros Fixed public sector equity cap equation
A8: 1.9 | B8: 2015-07-01 | C8: Nick Nigro | D8: Atlas Public Policy | E8: Added charts to Report Worksheet (hidden)
A9: 2 | B9: 2017-02-03 | C9: Nick Nigro | D9: Atlas Public Policy | E9: Added flexible sensitivity tables Reformat style; merge Report Worksheet with Outputs Dashboard Added public benefit variables (climate, energy security, electrical grid) Reworked demand charge modeling Added support for onsite generation and storage
A10: 2.1 | B10: 2019-04-11 | C10: Nick Nigro | D10: Atlas Public Policy | E10: Add option for private sector partner to capture electrical grid benefits Added support for multi-variate scenario analysis (undocumented feature) Fixed error in calculation for total energy use and total charging sessions from Outputs Dashboard tab.
A12: Future:
B13: Lock non-input cells + add data validation
B14: Consider modeling private sector partner initial subsidy as time "0" non-shareholder capital investment, as opposed to year 1
B15: revenue for the owner-operator

Sheet Automated Inputs (hidden)
A1: Index | B1: ooi_type_1_total_number_of_stations | C1: market_inputs_station_1_initial_average_utilization | D1: ooi_type_1_average_charging_energy_per_session | E1: ooi_type_1_maximum_power_draw | F1: ooi_type_1_average_time_of_charging_session | G1: ooi_type_1_photovoltaic_energy_system | H1: ooi_type_1_energy_storage | I1: ooi_type_1_charging_station_equipment_cost | J1: ooi_type_1_construction_and_equipment_installation_cost | K1: ooi_type_1_electric_utility_upgrades_and_grid_interconnection_cost | L1: ooi_type_1_host_site_identification_and_screening | M1: ooi_type_1_annual_maintenance_cost_as_percentage_of_equipment_value | N1: ooi_type_1_electricity_retail_price_in_first_year | O1: ooi_type_1_demand_charge | P1: ooi_type_1_electricity_fixed_charge | Q1: ooi_type_1_maximum_number_charging_sessions_per_station | R1: psp_per_station_subsidy_type_1 | S1: pusp_other_annual_non_revolving_support_1 | T1: ooi_type_1_per_energy_user_fee_revenue_model_applies | U1: ooi_type_1_per_energy_user_fee | V1: ooi_type_1_per_charge_event_user_fee_revenue_model_applies | W1: ooi_type_1_per_charge_event_user_fee | X1: market_inputs_expected_annual_utilization_rate | Y1: Scenario_Type
A2: 0 | B2: 1 | C2: 609 | D2: 8.215106732 | E2: 50 | F2: 10 | G2: 5290 | H2: 0 | I2: 25000 | J2: 25000 | K2: 20000 | L2: 12500 | M2: 0.12144 | N2: 0.28 | O2: 22.08 | P2: 151 | Q2: 1400 | R2: 0 | S2: 0 | T2: Y | U2: 0 | V2: Y | W2: 0 | X2: 0 | Y2: PV_Storage
A3: 1 | B3: 1 | C3: 609 | D3: 8.215106732 | E3: 50 | F3: 10 | G3: 5290 | H3: 0 | I3: 25000 | J3: 25000 | K3: 20000 | L3: 12500 | M3: 0.12144 | N3: 0.28 | O3: 22.08 | P3: 151 | Q3: 1400 | R3: 0 | S3: 0 | T3: Y | U3: 0 | V3: Y | W3: 0 | X3: 0.05 | Y3: PV_Storage
A4: 2 | B4: 1 | C4: 609 | D4: 8.215106732 | E4: 50 | F4: 10 | G4: 5290 | H4: 0 | I4: 25000 | J4: 25000 | K4: 20000 | L4: 12500 | M4: 0.12144 | N4: 0.28 | O4: 22.08 | P4: 151 | Q4: 1400 | R4: 0 | S4: 0 | T4: Y | U4: 0 | V4: Y | W4: 0 | X4: 0.1 | Y4: PV_Storage
A5: 3 | B5: 1 | C5: 609 | D5: 8.215106732 | E5: 50 | F5: 10 | G5: 5290 | H5: 0 | I5: 25000 | J5: 25000 | K5: 20000 | L5: 12500 | M5: 0.12144 | N5: 0.28 | O5: 22.08 | P5: 151 | Q5: 1400 | R5: 0 | S5: 0 | T5: Y | U5: 0 | V5: Y | W5: 4 | X5: 0 | Y5: PV_Storage
A6: 4 | B6: 1 | C6: 609 | D6: 8.215106732 | E6: 50 | F6: 10 | G6: 5290 | H6: 0 | I6: 25000 | J6: 25000 | K6: 20000 | L6: 12500 | M6: 0.12144 | N6: 0.28 | O6: 22.08 | P6: 151 | Q6: 1400 | R6: 0 | S6: 0 | T6: Y | U6: 0 | V6: Y | W6: 4 | X6: 0.05 | Y6: PV_Storage

Sheet Automated Outputs (hidden)
D2: Start/resume on this index number:
D3: 1
A5: Index | B5: Output_New_Sites | C5: Output_New_Stations | D5: Output_Charging_Sessions | E5: Output_Energy_Provided | F5: Output_Energy_Security_Benefits | G5: Output_Electrical_Grid_Benefits | H5: Output_Climate_Benefits | I5: Output_GHG_Abated | J5: Output_Project_Capital_Investment | K5: Output_Project_NPV | L5: Output_Project_IRR | M5: Output_Project_Discounted_Payback | N5: Output_Owner_Equity | O5: Output_Owner_Private_Debt | P5: Output_Owner_Public_Subsidized_Debt | Q5: Output_Owner_NPV | R5: Output_Owner_IRR | S5: Output_Owner_Discounted_Payback | T5: Output_Private_Funds_To_Owner_Initially | U5: Output_Private_Funds_To_Owner_Annually | V5: Output_Private_Capital_Investment | W5: Output_Private_Other_Contributions | X5: Output_Private_NPV | Y5: Output_Private_IRR | Z5: Output_Private_Discounted_Payback | AA5: Output_Public_Capital_Investment | AB5: Output_Public_Other_Contributions | AC5: Output_Public_NPV | AD5: Output_Public_IRR | AE5: Output_Public_Discounted_Payback

Sheet Named Cells (hidden)
A1: List_Yes_No | B1: =Lists_Hidden!$A$6:$A$7
A2: market_inputs_annual_avg_traffic_volume | B2: ='Market Inputs'!$E$17
A3: market_inputs_annual_growth_rate_traffic_volume | B3: ='Market Inputs'!$E$18
A4: market_inputs_climate_benefit | B4: ='Market Inputs'!$E$11
A5: market_inputs_co2e_gasoline | B5: ='Market Inputs'!$G$11
A6: market_inputs_electrical_grid_benefit | B6: ='Market Inputs'!$E$9
A7: market_inputs_electrical_grid_emissions_rate | B7: ='Market Inputs'!$E$10
A8: market_inputs_energy_security_benefit | B8: ='Market Inputs'!$E$8
A9: market_inputs_ev_fuel_economy | B9: ='Market Inputs'!$E$6
A10: market_inputs_evs_as_percentage_of_total_registered_vehicles | B10: ='Market Inputs'!$E$20
A11: market_inputs_expected_annual_utilization_rate | B11: ='Market Inputs'!$E$35
A12: market_inputs_expected_dc_fast_charging_local_sessions_per_car_per_trip | B12: ='Market Inputs'!$E$29
A13: market_inputs_expected_dc_sessions_per_car_per_trip | B13: ='Market Inputs'!$E$25
A14: market_inputs_expected_level_2_sessions_per_car_per_trip | B14: ='Market Inputs'!$E$27
A15: market_inputs_gasoline_fuel_economy | B15: ='Market Inputs'!$E$7
A16: market_inputs_projects_annual_growth_rate_evs | B16: ='Market Inputs'!$E$21
A17: market_inputs_sales_tax_rate | B17: ='Market Inputs'!$E$12
A18: market_inputs_station_1_initial_average_utilization | B18: ='Market Inputs'!$E$36
A19: market_inputs_station_2_initial_average_utilization | B19: ='Market Inputs'!$E$38
A20: market_inputs_station_3_initial_average_utilization | B20: ='Market Inputs'!$E$40
A21: market_inputs_use_traffic_derived_values_or_direct_inputs | B21: ='Market Inputs'!$E$13
A22: model_settings_company_name | B22: ='Initial Settings'!$B$5
A23: model_settings_initial_year | B23: ='Initial Settings'!$B$6
A24: Names_to_Export | B24: =InputFields[Input Field]
A25: ooi_accounts_payable_1 | B25: ='Owner-Operator Inputs'!$F$344
A26: ooi_accounts_payable_10 | B26: ='Owner-Operator Inputs'!$O$344
A27: ooi_accounts_payable_2 | B27: ='Owner-Operator Inputs'!$G$344
A28: ooi_accounts_payable_3 | B28: ='Owner-Operator Inputs'!$H$344
A29: ooi_accounts_payable_4 | B29: ='Owner-Operator Inputs'!$I$344
A30: ooi_accounts_payable_5 | B30: ='Owner-Operator Inputs'!$J$344
A31: ooi_accounts_payable_6 | B31: ='Owner-Operator Inputs'!$K$344
A32: ooi_accounts_payable_7 | B32: ='Owner-Operator Inputs'!$L$344
A33: ooi_accounts_payable_8 | B33: ='Owner-Operator Inputs'!$M$344
A34: ooi_accounts_payable_9 | B34: ='Owner-Operator Inputs'!$N$344
A35: ooi_accounts_receivable_1 | B35: ='Owner-Operator Inputs'!$F$332
A36: ooi_accounts_receivable_10 | B36: ='Owner-Operator Inputs'!$O$332
A37: ooi_accounts_receivable_2 | B37: ='Owner-Operator Inputs'!$G$332
A38: ooi_accounts_receivable_3 | B38: ='Owner-Operator Inputs'!$H$332
A39: ooi_accounts_receivable_4 | B39: ='Owner-Operator Inputs'!$I$332
A40: ooi_accounts_receivable_5 | B40: ='Owner-Operator Inputs'!$J$332
A41: ooi_accounts_receivable_6 | B41: ='Owner-Operator Inputs'!$K$332
A42: ooi_accounts_receivable_7 | B42: ='Owner-Operator Inputs'!$L$332
A43: ooi_accounts_receivable_8 | B43: ='Owner-Operator Inputs'!$M$332
A44: ooi_accounts_receivable_9 | B44: ='Owner-Operator Inputs'!$N$332
A45: ooi_annual_advertising_revenue | B45: ='Owner-Operator Inputs'!$E$245
A46: ooi_annual_growth_rate_in_number_of_subscribers | B46: ='Owner-Operator Inputs'!$E$238
A47: ooi_climate_share | B47: ='Owner-Operator Inputs'!$E$250
A48: ooi_electrical_grid_share | B48: ='Owner-Operator Inputs'!$E$249
A49: ooi_energy_security_share | B49: ='Owner-Operator Inputs'!$E$248
A50: ooi_expected_equipment_lifespan_years | B50: ='Owner-Operator Inputs'!$E$6
A51: ooi_income_taxes | B51: ='Owner-Operator Inputs'!$E$322
A52: ooi_intangibles_1 | B52: ='Owner-Operator Inputs'!$F$339
A53: ooi_intangibles_10 | B53: ='Owner-Operator Inputs'!$O$339
A54: ooi_intangibles_2 | B54: ='Owner-Operator Inputs'!$G$339
A55: ooi_intangibles_3 | B55: ='Owner-Operator Inputs'!$H$339
A56: ooi_intangibles_4 | B56: ='Owner-Operator Inputs'!$I$339
A57: ooi_intangibles_5 | B57: ='Owner-Operator Inputs'!$J$339
A58: ooi_intangibles_6 | B58: ='Owner-Operator Inputs'!$K$339
A59: ooi_intangibles_7 | B59: ='Owner-Operator Inputs'!$L$339
A60: ooi_intangibles_8 | B60: ='Owner-Operator Inputs'!$M$339
A61: ooi_intangibles_9 | B61: ='Owner-Operator Inputs'!$N$339
A62: ooi_interest_expense_rate_1 | B62: ='Owner-Operator Inputs'!$F$320
A63: ooi_interest_expense_rate_10 | B63: ='Owner-Operator Inputs'!$O$320
A64: ooi_interest_expense_rate_2 | B64: ='Owner-Operator Inputs'!$G$320
A65: ooi_interest_expense_rate_3 | B65: ='Owner-Operator Inputs'!$H$320
A66: ooi_interest_expense_rate_4 | B66: ='Owner-Operator Inputs'!$I$320
A67: ooi_interest_expense_rate_5 | B67: ='Owner-Operator Inputs'!$J$320
A68: ooi_interest_expense_rate_6 | B68: ='Owner-Operator Inputs'!$K$320
A69: ooi_interest_expense_rate_7 | B69: ='Owner-Operator Inputs'!$L$320
A70: ooi_interest_expense_rate_8 | B70: ='Owner-Operator Inputs'!$M$320
A71: ooi_interest_expense_rate_9 | B71: ='Owner-Operator Inputs'!$N$320
A72: ooi_interest_income_1 | B72: ='Owner-Operator Inputs'!$F$315
A73: ooi_interest_income_10 | B73: ='Owner-Operator Inputs'!$O$315
A74: ooi_interest_income_2 | B74: ='Owner-Operator Inputs'!$G$315
A75: ooi_interest_income_3 | B75: ='Owner-Operator Inputs'!$H$315
A76: ooi_interest_income_4 | B76: ='Owner-Operator Inputs'!$I$315
A77: ooi_interest_income_5 | B77: ='Owner-Operator Inputs'!$J$315
A78: ooi_interest_income_6 | B78: ='Owner-Operator Inputs'!$K$315
A79: ooi_interest_income_7 | B79: ='Owner-Operator Inputs'!$L$315
A80: ooi_interest_income_8 | B80: ='Owner-Operator Inputs'!$M$315
A81: ooi_interest_income_9 | B81: ='Owner-Operator Inputs'!$N$315
A82: ooi_market_risk_premium | B82: ='Owner-Operator Inputs'!$E$296
A83: ooi_maximum_debt_term | B83: ='Owner-Operator Inputs'!$E$299
A84: ooi_number_of_subscribers_in_first_year | B84: ='Owner-Operator Inputs'!$E$237
A85: ooi_other_income_net_1 | B85: ='Owner-Operator Inputs'!$F$316
A86: ooi_other_income_net_10 | B86: ='Owner-Operator Inputs'!$O$316
A87: ooi_other_income_net_2 | B87: ='Owner-Operator Inputs'!$G$316
A88: ooi_other_income_net_3 | B88: ='Owner-Operator Inputs'!$H$316
A89: ooi_other_income_net_4 | B89: ='Owner-Operator Inputs'!$I$316
A90: ooi_other_income_net_5 | B90: ='Owner-Operator Inputs'!$J$316
A91: ooi_other_income_net_6 | B91: ='Owner-Operator Inputs'!$K$316
A92: ooi_other_income_net_7 | B92: ='Owner-Operator Inputs'!$L$316
A93: ooi_other_income_net_8 | B93: ='Owner-Operator Inputs'!$M$316
A94: ooi_other_income_net_9 | B94: ='Owner-Operator Inputs'!$N$316
A95: ooi_other_non_current_assets_1 | B95: ='Owner-Operator Inputs'!$F$340
A96: ooi_other_non_current_assets_10 | B96: ='Owner-Operator Inputs'!$O$340
A97: ooi_other_non_current_assets_2 | B97: ='Owner-Operator Inputs'!$G$340
A98: ooi_other_non_current_assets_3 | B98: ='Owner-Operator Inputs'!$H$340
A99: ooi_other_non_current_assets_4 | B99: ='Owner-Operator Inputs'!$I$340
A100: ooi_other_non_current_assets_5 | B100: ='Owner-Operator Inputs'!$J$340
A101: ooi_other_non_current_assets_6 | B101: ='Owner-Operator Inputs'!$K$340
A102: ooi_other_non_current_assets_7 | B102: ='Owner-Operator Inputs'!$L$340
A103: ooi_other_non_current_assets_8 | B103: ='Owner-Operator Inputs'!$M$340
A104: ooi_other_non_current_assets_9 | B104: ='Owner-Operator Inputs'!$N$340
A105: ooi_other_receivable_1 | B105: ='Owner-Operator Inputs'!$F$333
A106: ooi_other_receivable_10 | B106: ='Owner-Operator Inputs'!$O$333
A107: ooi_other_receivable_2 | B107: ='Owner-Operator Inputs'!$G$333
A108: ooi_other_receivable_3 | B108: ='Owner-Operator Inputs'!$H$333
A109: ooi_other_receivable_4 | B109: ='Owner-Operator Inputs'!$I$333
A110: ooi_other_receivable_5 | B110: ='Owner-Operator Inputs'!$J$333
A111: ooi_other_receivable_6 | B111: ='Owner-Operator Inputs'!$K$333
A112: ooi_other_receivable_7 | B112: ='Owner-Operator Inputs'!$L$333
A113: ooi_other_receivable_8 | B113: ='Owner-Operator Inputs'!$M$333
A114: ooi_other_receivable_9 | B114: ='Owner-Operator Inputs'!$N$333
A115: ooi_other_special_charges_1 | B115: ='Owner-Operator Inputs'!$F$317
A116: ooi_other_special_charges_10 | B116: ='Owner-Operator Inputs'!$O$317
A117: ooi_other_special_charges_2 | B117: ='Owner-Operator Inputs'!$G$317
A118: ooi_other_special_charges_3 | B118: ='Owner-Operator Inputs'!$H$317
A119: ooi_other_special_charges_4 | B119: ='Owner-Operator Inputs'!$I$317
A120: ooi_other_special_charges_5 | B120: ='Owner-Operator Inputs'!$J$317
A121: ooi_other_special_charges_6 | B121: ='Owner-Operator Inputs'!$K$317
A122: ooi_other_special_charges_7 | B122: ='Owner-Operator Inputs'!$L$317
A123: ooi_other_special_charges_8 | B123: ='Owner-Operator Inputs'!$M$317
A124: ooi_other_special_charges_9 | B124: ='Owner-Operator Inputs'!$N$317
A125: ooi_owner_operator_cost_of_debt | B125: ='Owner-Operator Inputs'!$E$300
A126: ooi_percent_equity_funded | B126: ='Owner-Operator Inputs'!$E$283
A127: ooi_prepaid_expenses_1 | B127: ='Owner-Operator Inputs'!$F$334
A128: ooi_prepaid_expenses_10 | B128: ='Owner-Operator Inputs'!$O$334
A129: ooi_prepaid_expenses_2 | B129: ='Owner-Operator Inputs'!$G$334
A130: ooi_prepaid_expenses_3 | B130: ='Owner-Operator Inputs'!$H$334
A131: ooi_prepaid_expenses_4 | B131: ='Owner-Operator Inputs'!$I$334
A132: ooi_prepaid_expenses_5 | B132: ='Owner-Operator Inputs'!$J$334
A133: ooi_prepaid_expenses_6 | B133: ='Owner-Operator Inputs'!$K$334
A134: ooi_prepaid_expenses_7 | B134: ='Owner-Operator Inputs'!$L$334
A135: ooi_prepaid_expenses_8 | B135: ='Owner-Operator Inputs'!$M$334
A136: ooi_prepaid_expenses_9 | B136: ='Owner-Operator Inputs'!$N$334
A137: ooi_projected_shares_outstanding | B137: ='Owner-Operator Inputs'!$E$324
A138: ooi_revolving_line_of_credit_1 | B138: ='Owner-Operator Inputs'!$F$345
A139: ooi_revolving_line_of_credit_10 | B139: ='Owner-Operator Inputs'!$O$345
A140: ooi_revolving_line_of_credit_2 | B140: ='Owner-Operator Inputs'!$G$345
A141: ooi_revolving_line_of_credit_3 | B141: ='Owner-Operator Inputs'!$H$345
A142: ooi_revolving_line_of_credit_4 | B142: ='Owner-Operator Inputs'!$I$345
A143: ooi_revolving_line_of_credit_5 | B143: ='Owner-Operator Inputs'!$J$345
A144: ooi_revolving_line_of_credit_6 | B144: ='Owner-Operator Inputs'!$K$345
A145: ooi_revolving_line_of_credit_7 | B145: ='Owner-Operator Inputs'!$L$345
A146: ooi_revolving_line_of_credit_8 | B146: ='Owner-Operator Inputs'!$M$345
A147: ooi_revolving_line_of_credit_9 | B147: ='Owner-Operator Inputs'!$N$345
A148: ooi_risk_free_rate | B148: ='Owner-Operator Inputs'!$E$294
A149: ooi_sales_general_and_administrative | B149: ='Owner-Operator Inputs'!$E$272
A150: ooi_subscription_fee | B150: ='Owner-Operator Inputs'!$E$240
A151: ooi_type_1_annual_communications_cost | B151: ='Owner-Operator Inputs'!$E$69
A152: ooi_type_1_annual_compounded_growth_rate_in_electricity_price | B152: ='Owner-Operator Inputs'!$E$57
A153: ooi_type_1_annual_maintenance_cost_as_percentage_of_equipment_value | B153: ='Owner-Operator Inputs'!$E$66
A154: ooi_type_1_annual_warranty | B154: ='Owner-Operator Inputs'!$E$72
A155: ooi_type_1_average_charging_energy_per_session | B155: ='Owner-Operator Inputs'!$E$37
A156: ooi_type_1_average_time_of_charging_session | B156: ='Owner-Operator Inputs'!$E$40
A157: ooi_type_1_charging_station_equipment_cost | B157: ='Owner-Operator Inputs'!$E$14
A158: ooi_type_1_charging_station_type | B158: ='Owner-Operator Inputs'!$E$10
A159: ooi_type_1_construction_and_equipment_installation_cost | B159: ='Owner-Operator Inputs'!$E$16
A160: ooi_type_1_demand_charge | B160: ='Owner-Operator Inputs'!$E$61
A161: ooi_type_1_demand_charge_threshold | B161: ='Owner-Operator Inputs'!$E$62
A162: ooi_type_1_electric_utility_upgrades_and_grid_interconnection_cost | B162: ='Owner-Operator Inputs'!$E$19
A163: ooi_type_1_electricity_fixed_charge | B163: ='Owner-Operator Inputs'!$E$56
A164: ooi_type_1_electricity_retail_price_in_first_year | B164: ='Owner-Operator Inputs'!$E$55
A165: ooi_type_1_energy_storage | B165: ='Owner-Operator Inputs'!$E$17
A166: ooi_type_1_host_site_identification_and_screening | B166: ='Owner-Operator Inputs'!$E$21
A167: ooi_type_1_host_site_lease_or_access_cost | B167: ='Owner-Operator Inputs'!$E$75
A168: ooi_type_1_lease_and_property_transaction_costs | B168: ='Owner-Operator Inputs'!$E$20
A169: ooi_type_1_max_load_site | B169: ='Owner-Operator Inputs'!$E$63
A170: ooi_type_1_maximum_number_charging_sessions_per_station | B170: ='Owner-Operator Inputs'!$E$32
A171: ooi_type_1_maximum_power_draw | B171: ='Owner-Operator Inputs'!$E$39
A172: ooi_type_1_per_charge_event_user_fee | B172: ='Owner-Operator Inputs'!$E$47
A173: ooi_type_1_per_charge_event_user_fee_revenue_model_applies | B173: ='Owner-Operator Inputs'!$D$47
A174: ooi_type_1_per_energy_user_fee | B174: ='Owner-Operator Inputs'!$E$45
A175: ooi_type_1_per_energy_user_fee_revenue_model_applies | B175: ='Owner-Operator Inputs'!$D$45
A176: ooi_type_1_photovoltaic_energy_system | B176: ='Owner-Operator Inputs'!$E$18
A177: ooi_type_1_share_onsite_energy_generation | B177: ='Owner-Operator Inputs'!$E$58
A178: ooi_type_1_total_number_of_sites | B178: ='Owner-Operator Inputs'!$E$24
A179: ooi_type_1_total_number_of_stations | B179: ='Owner-Operator Inputs'!$E$23
A180: ooi_type_2_annual_communications_cost | B180: ='Owner-Operator Inputs'!$E$144
A181: ooi_type_2_annual_compounded_growth_rate_in_electricity_price | B181: ='Owner-Operator Inputs'!$E$132
A182: ooi_type_2_annual_maintenance_cost_as_percentage_of_equipment_value | B182: ='Owner-Operator Inputs'!$E$141
A183: ooi_type_2_annual_warranty | B183: ='Owner-Operator Inputs'!$E$147
A184: ooi_type_2_average_charging_energy_per_session | B184: ='Owner-Operator Inputs'!$E$112
A185: ooi_type_2_average_time_of_charging_session | B185: ='Owner-Operator Inputs'!$E$115
A186: ooi_type_2_charging_station_equipment_cost | B186: ='Owner-Operator Inputs'!$E$89
A187: ooi_type_2_charging_station_type | B187: ='Owner-Operator Inputs'!$E$85
A188: ooi_type_2_construction_and_equipment_installation_cost | B188: ='Owner-Operator Inputs'!$E$91
A189: ooi_type_2_demand_charge | B189: ='Owner-Operator Inputs'!$E$136
A190: ooi_type_2_demand_charge_threshold | B190: ='Owner-Operator Inputs'!$E$137
A191: ooi_type_2_electric_utility_upgrades_and_grid_interconnection_cost | B191: ='Owner-Operator Inputs'!$E$94
A192: ooi_type_2_electricity_fixed_charge | B192: ='Owner-Operator Inputs'!$E$131
A193: ooi_type_2_electricity_retail_price_in_first_year | B193: ='Owner-Operator Inputs'!$E$130
A194: ooi_type_2_energy_storage | B194: ='Owner-Operator Inputs'!$E$92
A195: ooi_type_2_host_site_identification_and_screening | B195: ='Owner-Operator Inputs'!$E$96
A196: ooi_type_2_host_site_lease_or_access_cost | B196: ='Owner-Operator Inputs'!$E$150
A197: ooi_type_2_lease_and_property_transaction_costs | B197: ='Owner-Operator Inputs'!$E$95
A198: ooi_type_2_max_load_site | B198: ='Owner-Operator Inputs'!$E$138
A199: ooi_type_2_maximum_number_charging_sessions_per_station | B199: ='Owner-Operator Inputs'!$E$107
A200: ooi_type_2_maximum_power_draw | B200: ='Owner-Operator Inputs'!$E$114
... 98 more rows
